Workbook

Sheet Wksh 1 - Market Experience
A1: Press TAB and directional arrow keys to read through the document. If macros are disabled, press and hold the ALT key and press the F, then I, and then N key. After that, select the Enable All Content option by pressing enter. (note that you can also press the C key to select "Enable All Content") Instructions can be found in cells K1 through K4. If screen reader fails to announce a cell after performing a dropdown selection, please press F2 and then ESC to force the screen reader to resume. | B1: Unified Rate Review v6.1 [assistive technology users, please reference cell A1 for instructions] | K1: To add a product to Worksheet 2 - Plan Product Info, select the Add Product button or Ctrl + Shift + P.
K2: To add a plan to Worksheet 2 - Plan Product Info, select the Add Plan button or Ctrl + Shift + L.
B3: Company Legal Name: | C3: UnitedHealthcare of Kentucky, Ltd. | K3: To validate, select the Validate button or Ctrl + Shift + I.
B4: HIOS Issuer ID: | C4: 23671 | D4: State: | E4: KY | K4: To finalize, select the Finalize button or Ctrl + Shift + F.
B5: Effective Date of Rate Change(s): | C5: =MAX('Wksh 2 - Plan Product Info'!E19:DA19) -> 00:00:00 | D5: Market: | E5: Small Group
B8: Market Level Calculations (Same for all Plans)
B11: Section I: Experience Period Data
B12: Experience Period: | D12: 2023-01-01 | E12: to | F12: =EDATE(D12,12)-1 -> 12/31/2023
E13: Total | F13: PMPM
B14: Allowed Claims | E14: 19901102.58 | F14: =E14/E19 -> 721.0022
B15: Reinsurance | E15: 0 | F15: =E15/E19 -> 0
B16: Incurred Claims in Experience Period | E16: 16049409.05 | F16: =E16/E19 -> 581.4582
B17: Risk Adjustment | E17: -2078966.58 | F17: =E17/E19 -> -75.3194
B18: Experience Period Premium | E18: 21213946.41 | F18: =E18/E19 -> 768.5656
B19: Experience Period Member Months | E19: ='Wksh 2 - Plan Product Info'!D33 -> 27602
B21: Section II: Projections
D22: Year 1 Trend | F22: Year 2 Trend
B23: Benefit Category | C23: Experience Period Index Rate PMPM | D23: Cost | E23: Utilization | F23: Cost | G23: Utilization | H23: Trended EHB Allowed Claims PMPM
B24: Inpatient Hospital | C24: 106.03 | D24: 1.04 | E24: 1.053 | F24: 1.04 | G24: 1.038 | H24: =PRODUCT(C24:G24) -> 125.3491
B25: Outpatient Hospital | C25: 329.67 | D25: 1.04 | E25: 1.053 | F25: 1.04 | G25: 1.038 | H25: 389.7372
B26: Professional | C26: 131.52 | D26: 1.04 | E26: 1.053 | F26: 1.04 | G26: 1.038 | H26: 155.4835
B27: Other Medical | C27: 1.1 | D27: 1.04 | E27: 1.053 | F27: 1.04 | G27: 1.038 | H27: 1.3004
B28: Capitation | C28: 17.25 | D28: 1.04 | E28: 1.053 | F28: 1.04 | G28: 1.038 | H28: 20.393
B29: Prescription Drug | C29: 135.43 | D29: 1.04 | E29: 1.053 | F29: 1.04 | G29: 1.038 | H29: 160.1059
B30: Total | C30: =SUM(C24:C29) -> 721 | H30: =SUM(H24:H29) -> 852.369
B32: Morbidity Adjustment | F32: 1.06
B33: Demographic Shift | F33: 1
B34: Plan Design Changes | F34: 1.003
B35: Other | F35: 0.961
B36: Adjusted Trended EHB Allowed Claims PMPM for | D36: =IF(C5<>"",C5,"") -> 1/1/2025 | F36: =H30*PRODUCT(F32:F35) -> 870.8791
B38: Manual EHB Allowed Claims PMPM | F38: 878.9
B39: Applied Credibility % | F39: 0
G41: Projected Period Totals
B42: Projected Index Rate for | D42: =IF(C5<>"",C5,"") -> 1/1/2025 | F42: =ROUND(F39*F36+(1-F39)*F38,2) -> 878.9 | G42: =F42*F48 -> 13326760.7
B43: Reinsurance | F43: 0 | G43: =F43*F48 -> 0
B44: Risk Adjustment Payment/Charge | F44: -119.21 | G44: =F44*F48 -> -1807581.23
B45: Exchange User Fees | F45: 0 | G45: =F45*F46*F48 -> 0
B46: Market Adjusted Index Rate | F46: =(F42-F43-F44)/(1-F45) -> 998.11 | G46: =F46*F48 -> 15134341.93
B48: Projected Member Months | F48: ='Wksh 2 - Plan Product Info'!D73 -> 15163
B50: Information Not Releasable to the Public Unless Authorized by Law: This information has not been publically disclosed and may be privileged and confidential. It is for internal government use only and must not be disseminated, distributed, or copied to persons not authorized to receive the information. Unauthorized disclosure may result in prosecution to the full extent of the law.

Sheet Wksh 2 - Plan Product Info
A1: Press TAB and directional arrow keys to read through the document. If macros are disabled, press and hold the ALT key and press the F, then I, and then N key. After that, select the Enable All Content option by pressing enter. (note that you can also press the C key to select "Enable All Content") Instructions can be found in cells P1 through P6. If screen reader fails to announce a cell after performing a dropdown selection, please press F2 and then ESC to force the screen reader to resume. | C1: Product-Plan Data Collection [assistive technology users, please reference cell A1 for instructions] | P1: To add a product to Worksheet 2 - Plan Product Info, select the Add Product button or Ctrl + Shift + P.
P2: To add a plan to Worksheet 2 - Plan Product Info, select the Add Plan button or Ctrl + Shift + L.
C3: Company Legal Name: | D3: =IF('Wksh 1 - Market Experience'!C3<>"", 'Wksh 1 - Market Experience'!C3,"") ->  | P3: To validate, select the Validate button or Ctrl + Shift + I.
C4: HIOS Issuer ID: | D4: =IF('Wksh 1 - Market Experience'!C4<>"", 'Wksh 1 - Market Experience'!C4,"") ->  | E4: State: | F4: =IF('Wksh 1 - Market Experience'!E4<>"",'Wksh 1 - Market Experience'!E4,"") ->  | P4: To finalize, select the Finalize button or Ctrl + Shift + F.
C5: Effective Date of Rate Change(s): | D5: =IF('Wksh 1 - Market Experience'!C5<>"", 'Wksh 1 - Market Experience'!C5,"") -> 00:00:00 | E5: Market: | F5: =IF('Wksh 1 - Market Experience'!E5<>"",'Wksh 1 - Market Experience'!E5,"") ->  | P5: To remove a product, navigate to the corresponding Product Name/Product ID field and select the Remove Product button or Ctrl + Shift + Q.
P6: To remove a plan, navigate to the corresponding Plan Name/Plan ID field and select the Remove Plan button or Ctrl + Shift + A.
C7: Product/Plan Level Calculations
B9: Field # | C9: Section I: General Product and Plan Information
B10: 1.1 | C10: Product Name | E10: 23671KY002 Plans | G10: 23671KY007 Plans | BD10: 23671KY008 Plans | CZ10: 23671KY009 Plans
B11: 1.2 | C11: Product ID | E11: 23671KY002 | G11: 23671KY007 | BD11: 23671KY008 | CZ11: 23671KY009
B12: 1.3 | C12: Plan Name | E12: CC-BI | F12: CC-CX | G12: DW15 | H12: DW19 | I12: DW2O | J12: DW16 | K12: DW17 | L12: DW18 | M12: DW2A | N12: DW2B | O12: DW2C | P12: DW13 | Q12: DW2K | R12: DW24 | S12: DW2L | T12: DW2M | U12: DW2N | V12: DW2P | W12: DW2Q | X12: DW2R | Y12: DW22 | Z12: CC-B5 | AA12: CM-SA | AB12: CC-CM | AC12: CC-B7 | AD12: CM-SW | AE12: CC-DA | AF12: CC-DB | AG12: CC-CA | AH12: CC-BZ | AI12: CM-R8 | AJ12: CM-SC | AK12: CM-SD | AL12: CM-SE | AM12: CM-S2 | AN12: CM-S3 | AO12: CM-S4 | AP12: CM-S5 | AQ12: CM-S6 | AR12: CM-S8 | AS12: CM-S9 | AT12: CM-TA | AU12: CM-TB | AV12: CM-TC | AW12: CM-SI | AX12: CM-TF | AY12: CM-TG | AZ12: CM-TK | BA12: CM-TL | BB12: CM-TM | BC12: CM-TO | BD12: DW2Z | BE12: DW1X | BF12: DW1Y | BG12: DW1Z | BH12: DW12 | BI12: DW2D | BJ12: DW2E | BK12: DW2F | BL12: DW2G | BM12: DW14 | BN12: DW2S | BO12: DW25 | BP12: DW2T | BQ12: DW2U | BR12: DW2V | BS12: DW2W | BT12: DW2X | BU12: DW2Y | BV12: DW23 | BW12: CC-BK | BX12: CC-CF | BY12: CC-CG | BZ12: CM-SU | CA12: CC-C6 | CB12: CC-C7 | CC12: DDST | CD12: CT9F | CE12: CM-SM | CF12: CM-SS | CG12: CM-TD | CH12: CM-TI | CI12: CM-TJ | CJ12: CT8E | CK12: CT8F | CL12: CT8G | CM12: CT8H | CN12: DDSU | CO12: DDSV | CP12: DDSW | CQ12: CT8M | CR12: CT87 | CS12: DDT7 | CT12: CT89 | CU12: CT9A | CV12: CT9B | CW12: CT9C | CX12: CT9D | CY12: CT9E | CZ12: CC-CO | DA12: CC-CP
B13: 1.4 | C13: Plan ID (Standard Component ID) | E13: 23671KY0020047 | F13: 23671KY0020078 | G13: 23671KY0070003 | H13: 23671KY0070012 | I13: 23671KY0070037 | J13: 23671KY0070046 | K13: 23671KY0070047 | L13: 23671KY0070048 | M13: 23671KY0070049 | N13: 23671KY0070050 | O13: 23671KY0070051 | P13: 23671KY0070052 | Q13: 23671KY0070053 | R13: 23671KY0070054 | S13: 23671KY0070055 | T13: 23671KY0070056 | U13: 23671KY0070057 | V13: 23671KY0070058 | W13: 23671KY0070059 | X13: 23671KY0070060 | Y13: 23671KY0070061 | Z13: 23671KY0070002 | AA13: 23671KY0070004 | AB13: 23671KY0070005 | AC13: 23671KY0070006 | AD13: 23671KY0070007 | AE13: 23671KY0070008 | AF13: 23671KY0070009 | AG13: 23671KY0070011 | AH13: 23671KY0070014 | AI13: 23671KY0070017 | AJ13: 23671KY0070019 | AK13: 23671KY0070020 | AL13: 23671KY0070021 | AM13: 23671KY0070022 | AN13: 23671KY0070023 | AO13: 23671KY0070024 | AP13: 23671KY0070025 | AQ13: 23671KY0070026 | AR13: 23671KY0070028 | AS13: 23671KY0070029 | AT13: 23671KY0070030 | AU13: 23671KY0070031 | AV13: 23671KY0070032 | AW13: 23671KY0070035 | AX13: 23671KY0070039 | AY13: 23671KY0070040 | AZ13: 23671KY0070041 | BA13: 23671KY0070042 | BB13: 23671KY0070043 | BC13: 23671KY0070045 | BD13: 23671KY0080025 | BE13: 23671KY0080034 | BF13: 23671KY0080035 | BG13: 23671KY0080036 | BH13: 23671KY0080037 | BI13: 23671KY0080038 | BJ13: 23671KY0080039 | BK13: 23671KY0080040 | BL13: 23671KY0080041 | BM13: 23671KY0080042 | BN13: 23671KY0080043 | BO13: 23671KY0080044 | BP13: 23671KY0080045 | BQ13: 23671KY0080046 | BR13: 23671KY0080047 | BS13: 23671KY0080048 | BT13: 23671KY0080049 | BU13: 23671KY0080050 | BV13: 23671KY0080067 | BW13: 23671KY0080001 | BX13: 23671KY0080003 | BY13: 23671KY0080004 | BZ13: 23671KY0080005 | CA13: 23671KY0080006 | CB13: 23671KY0080007 | CC13: 23671KY0080009 | CD13: 23671KY0080010 | CE13: 23671KY0080023 | CF13: 23671KY0080028 | CG13: 23671KY0080029 | CH13: 23671KY0080032 | CI13: 23671KY0080033 | CJ13: 23671KY0080051 | CK13: 23671KY0080052 | CL13: 23671KY0080053 | CM13: 23671KY0080054 | CN13: 23671KY0080055 | CO13: 23671KY0080056 | CP13: 23671KY0080057 | CQ13: 23671KY0080058 | CR13: 23671KY0080059 | CS13: 23671KY0080060 | CT13: 23671KY0080061 | CU13: 23671KY0080062 | CV13: 23671KY0080063 | CW13: 23671KY0080064 | CX13: 23671KY0080065 | CY13: 23671KY0080066 | CZ13: 23671KY0090001 | DA13: 23671KY0090002
B14: 1.5 | C14: Metal | E14: Silver | F14: Silver | G14: Gold | H14: Silver | I14: Gold | J14: Gold | K14: Gold | L14: Gold | M14: Silver | N14: Bronze | O14: Gold | P14: Gold | Q14: Platinum | R14: Platinum | S14: Gold | T14: Gold | U14: Gold | V14: Gold | W14: Gold | X14: Silver | Y14: Gold | Z14: Silver | AA14: Bronze | AB14: Silver | AC14: Gold | AD14: Silver | AE14: Silver | AF14: Silver | AG14: Silver | AH14: Silver | AI14: Silver | AJ14: Bronze | AK14: Silver | AL14: Gold | AM14: Platinum | AN14: Platinum | AO14: Gold | AP14: Gold | AQ14: Silver | AR14: Silver | AS14: Gold | AT14: Gold | AU14: Gold | AV14: Silver | AW14: Gold | AX14: Gold | AY14: Gold | AZ14: Gold | BA14: Gold | BB14: Gold | BC14: Silver | BD14: Silver | BE14: Gold | BF14: Gold | BG14: Gold | BH14: Gold | BI14: Silver | BJ14: Silver | BK14: Bronze | BL14: Gold | BM14: Gold | BN14: Platinum | BO14: Platinum | BP14: Gold | BQ14: Gold | BR14: Gold | BS14: Gold | BT14: Gold | BU14: Gold | BV14: Gold | BW14: Silver | BX14: Gold | BY14: Silver | BZ14: Silver | CA14: Silver | CB14: Silver | CC14: Silver | CD14: Silver | CE14: Gold | CF14: Gold | CG14: Gold | CH14: Gold | CI14: Silver | CJ14: Gold | CK14: Gold | CL14: Gold | CM14: Gold | CN14: Silver | CO14: Bronze | CP14: Gold | CQ14: Gold | CR14: Platinum | CS14: Platinum | CT14: Gold | CU14: Gold | CV14: Gold | CW14: Gold | CX14: Gold | CY14: Gold | CZ14: Silver | DA14: Silver
B15: 1.6 | C15: AV Metal Value | E15: 0.718 | F15: 0.72 | G15: 0.802 | H15: 0.718 | I15: 0.8 | J15: 0.795 | K15: 0.794 | L15: 0.794 | M15: 0.716 | N15: 0.648 | O15: 0.819 | P15: 0.793 | Q15: 0.894 | R15: 0.883 | S15: 0.799 | T15: 0.79 | U15: 0.804 | V15: 0.791 | W15: 0.787 | X15: 0.714 | Y15: 0.806 | Z15: 0.717 | AA15: 0.65 | AB15: 0.713 | AC15: 0.815 | AD15: 0.705 | AE15: 0.693 | AF15: 0.67 | AG15: 0.719 | AH15: 0.72 | AI15: 0.715 | AJ15: 0.65 | AK15: 0.719 | AL15: 0.818 | AM15: 0.87 | AN15: 0.873 | AO15: 0.787 | AP15: 0.781 | AQ15: 0.718 | AR15: 0.72 | AS15: 0.801 | AT15: 0.802 | AU15: 0.814 | AV15: 0.698 | AW15: 0.781 | AX15: 0.806 | AY15: 0.791 | AZ15: 0.775 | BA15: 0.784 | BB15: 0.795 | BC15: 0.715 | BD15: 0.714 | BE15: 0.802 | BF15: 0.795 | BG15: 0.794 | BH15: 0.794 | BI15: 0.718 | BJ15: 0.716 | BK15: 0.648 | BL15: 0.819 | BM15: 0.793 | BN15: 0.894 | BO15: 0.883 | BP15: 0.799 | BQ15: 0.79 | BR15: 0.804 | BS15: 0.8 | BT15: 0.791 | BU15: 0.787 | BV15: 0.806 | BW15: 0.712 | BX15: 0.796 | BY15: 0.712 | BZ15: 0.705 | CA15: 0.693 | CB15: 0.67 | CC15: 0.72 | CD15: 0.718 | CE15: 0.781 | CF15: 0.82 | CG15: 0.806 | CH15: 0.776 | CI15: 0.715 | CJ15: 0.807 | CK15: 0.797 | CL15: 0.793 | CM15: 0.793 | CN15: 0.716 | CO15: 0.649 | CP15: 0.816 | CQ15: 0.79 | CR15: 0.903 | CS15: 0.881 | CT15: 0.809 | CU15: 0.795 | CV15: 0.815 | CW15: 0.808 | CX15: 0.796 | CY15: 0.787 | CZ15: 0.718 | DA15: 0.716
B16: 1.7 | C16: Plan Category | E16: Terminated | F16: Terminated | G16: Renewing | H16: Renewing | I16: Renewing | J16: Renewing | K16: Renewing | L16: Renewing | M16: Renewing | N16: Renewing | O16: Renewing | P16: Renewing | Q16: Renewing | R16: Renewing | S16: Renewing | T16: Renewing | U16: Renewing | V16: Renewing | W16: Renewing | X16: Renewing | Y16: Renewing | Z16: Terminated | AA16: Terminated | AB16: Terminated | AC16: Terminated | AD16: Terminated | AE16: Terminated | AF16: Terminated | AG16: Terminated | AH16: Terminated | AI16: Terminated | AJ16: Terminated | AK16: Terminated | AL16: Terminated | AM16: Terminated | AN16: Terminated | AO16: Terminated | AP16: Terminated | AQ16: Terminated | AR16: Terminated | AS16: Terminated | AT16: Terminated | AU16: Terminated | AV16: Terminated | AW16: Terminated | AX16: Terminated | AY16: Terminated | AZ16: Terminated | BA16: Terminated | BB16: Terminated | BC16: Terminated | BD16: Renewing | BE16: Renewing | BF16: Renewing | BG16: Renewing | BH16: Renewing | BI16: Renewing | BJ16: Renewing | BK16: Renewing | BL16: Renewing | BM16: Renewing | BN16: Renewing | BO16: Renewing | BP16: Renewing | BQ16: Renewing | BR16: Renewing | BS16: Renewing | BT16: Renewing | BU16: Renewing | BV16: Renewing | BW16: Terminated | BX16: Terminated | BY16: Terminated | BZ16: Terminated | CA16: Terminated | CB16: Terminated | CC16: Terminated | CD16: Terminated | CE16: Terminated | CF16: Terminated | CG16: Terminated | CH16: Terminated | CI16: Terminated | CJ16: Terminated | CK16: Terminated | CL16: Terminated | CM16: Terminated | CN16: Terminated | CO16: Terminated | CP16: Terminated | CQ16: Terminated | CR16: Terminated | CS16: Terminated | CT16: Terminated | CU16: Terminated | CV16: Terminated | CW16: Terminated | CX16: Terminated | CY16: Terminated | CZ16: Terminated | DA16: Terminated
B17: 1.8 | C17: Plan Type | E17: POS | F17: POS | G17: POS | H17: POS | I17: POS | J17: POS | K17: POS | L17: POS | M17: POS | N17: POS | O17: POS | P17: POS | Q17: POS | R17: POS | S17: POS | T17: POS | U17: POS | V17: POS | W17: POS | X17: POS | Y17: POS | Z17: POS | AA17: POS | AB17: POS | AC17: POS | AD17: POS | AE17: POS | AF17: POS | AG17: POS | AH17: POS | AI17: POS | AJ17: POS | AK17: POS | AL17: POS | AM17: POS | AN17: POS | AO17: POS | AP17: POS | AQ17: POS | AR17: POS | AS17: POS | AT17: POS | AU17: POS | AV17: POS | AW17: POS | AX17: POS | AY17: POS | AZ17: POS | BA17: POS | BB17: POS | BC17: POS | BD17: HMO | BE17: HMO | BF17: HMO | BG17: HMO | BH17: HMO | BI17: HMO | BJ17: HMO | BK17: HMO | BL17: HMO | BM17: HMO | BN17: HMO | BO17: HMO | BP17: HMO | BQ17: HMO | BR17: HMO | BS17: HMO | BT17: HMO | BU17: HMO | BV17: HMO | BW17: HMO | BX17: HMO | BY17: HMO | BZ17: HMO | CA17: HMO | CB17: HMO | CC17: HMO | CD17: HMO | CE17: HMO | CF17: HMO | CG17: HMO | CH17: HMO | CI17: HMO | CJ17: HMO | CK17: HMO | CL17: HMO | CM17: HMO | CN17: HMO | CO17: HMO | CP17: HMO | CQ17: HMO | CR17: HMO | CS17: HMO | CT17: HMO | CU17: HMO | CV17: HMO | CW17: HMO | CX17: HMO | CY17: HMO | CZ17: POS | DA17: POS
B18: 1.9 | C18: Exchange Plan? | E18: No | F18: No | G18: No | H18: No | I18: No | J18: No | K18: No | L18: No | M18: No | N18: No | O18: No | P18: No | Q18: No | R18: No | S18: No | T18: No | U18: No | V18: No | W18: No | X18: No | Y18: No | Z18: No | AA18: No | AB18: No | AC18: No | AD18: No | AE18: No | AF18: No | AG18: No | AH18: No | AI18: No | AJ18: No | AK18: No | AL18: No | AM18: No | AN18: No | AO18: No | AP18: No | AQ18: No | AR18: No | AS18: No | AT18: No | AU18: No | AV18: No | AW18: No | AX18: No | AY18: No | AZ18: No | BA18: No | BB18: No | BC18: No | BD18: No | BE18: No | BF18: No | BG18: No | BH18: No | BI18: No | BJ18: No | BK18: No | BL18: No | BM18: No | BN18: No | BO18: No | BP18: No | BQ18: No | BR18: No | BS18: No | BT18: No | BU18: No | BV18: No | BW18: No | BX18: No | BY18: No | BZ18: No | CA18: No | CB18: No | CC18: No | CD18: No | CE18: No | CF18: No | CG18: No | CH18: No | CI18: No | CJ18: No | CK18: No | CL18: No | CM18: No | CN18: No | CO18: No | CP18: No | CQ18: No | CR18: No | CS18: No | CT18: No | CU18: No | CV18: No | CW18: No | CX18: No | CY18: No | CZ18: No | DA18: No
B19: 1.10 | C19: Effective Date of Proposed Rates | E19: 2025-01-01 | F19: 2025-01-01 | G19: 2025-01-01 | H19: 2025-01-01 | I19: 2025-01-01 | J19: 2025-01-01 | K19: 2025-01-01 | L19: 2025-01-01 | M19: 2025-01-01 | N19: 2025-01-01 | O19: 2025-01-01 | P19: 2025-01-01 | Q19: 2025-01-01 | R19: 2025-01-01 | S19: 2025-01-01 | T19: 2025-01-01 | U19: 2025-01-01 | V19: 2025-01-01 | W19: 2025-01-01 | X19: 2025-01-01 | Y19: 2025-01-01 | Z19: 2025-01-01 | AA19: 2025-01-01 | AB19: 2025-01-01 | AC19: 2025-01-01 | AD19: 2025-01-01 | AE19: 2025-01-01 | AF19: 2025-01-01 | AG19: 2025-01-01 | AH19: 2025-01-01 | AI19: 2025-01-01 | AJ19: 2025-01-01 | AK19: 2025-01-01 | AL19: 2025-01-01 | AM19: 2025-01-01 | AN19: 2025-01-01 | AO19: 2025-01-01 | AP19: 2025-01-01 | AQ19: 2025-01-01 | AR19: 2025-01-01 | AS19: 2025-01-01 | AT19: 2025-01-01 | AU19: 2025-01-01 | AV19: 2025-01-01 | AW19: 2025-01-01 | AX19: 2025-01-01 | AY19: 2025-01-01 | AZ19: 2025-01-01 | BA19: 2025-01-01 | BB19: 2025-01-01 | BC19: 2025-01-01 | BD19: 2025-01-01 | BE19: 2025-01-01 | BF19: 2025-01-01 | BG19: 2025-01-01 | BH19: 2025-01-01 | BI19: 2025-01-01 | BJ19: 2025-01-01 | BK19: 2025-01-01 | BL19: 2025-01-01 | BM19: 2025-01-01 | BN19: 2025-01-01 | BO19: 2025-01-01 | BP19: 2025-01-01 | BQ19: 2025-01-01 | BR19: 2025-01-01 | BS19: 2025-01-01 | BT19: 2025-01-01 | BU19: 2025-01-01 | BV19: 2025-01-01 | BW19: 2025-01-01 | BX19: 2025-01-01 | BY19: 2025-01-01 | BZ19: 2025-01-01 | CA19: 2025-01-01 | CB19: 2025-01-01 | CC19: 2025-01-01 | CD19: 2025-01-01 | CE19: 2025-01-01 | CF19: 2025-01-01 | CG19: 2025-01-01 | CH19: 2025-01-01 | CI19: 2025-01-01 | CJ19: 2025-01-01 | CK19: 2025-01-01 | CL19: 2025-01-01 | CM19: 2025-01-01 | CN19: 2025-01-01 | CO19: 2025-01-01 | CP19: 2025-01-01 | CQ19: 2025-01-01 | CR19: 2025-01-01 | CS19: 2025-01-01 | CT19: 2025-01-01 | CU19: 2025-01-01 | CV19: 2025-01-01 | CW19: 2025-01-01 | CX19: 2025-01-01 | CY19: 2025-01-01 | CZ19: 2025-01-01 | DA19: 2025-01-01
B20: 1.11 | C20: Cumulative Rate Change % (over 12 mos prior) | E20: 0 | F20: 0 | G20: 0.153 | H20: 0.1513 | I20: 0.154 | J20: 0.1543 | K20: 0.1575 | L20: 0.1556 | M20: 0.1541 | N20: 0.174 | O20: 0.1489 | P20: 0.156 | Q20: 0.1504 | R20: 0.1418 | S20: 0.1534 | T20: 0.1582 | U20: 0.1517 | V20: 0.1576 | W20: 0.1629 | X20: 0.1678 | Y20: 0.1522 | Z20: 0 | AA20: 0 | AB20: 0 | AC20: 0 | AD20: 0 | AE20: 0 | AF20: 0 | AG20: 0 | AH20: 0 | AI20: 0 | AJ20: 0 | AK20: 0 | AL20: 0 | AM20: 0 | AN20: 0 | AO20: 0 | AP20: 0 | AQ20: 0 | AR20: 0 | AS20: 0 | AT20: 0 | AU20: 0 | AV20: 0 | AW20: 0 | AX20: 0 | AY20: 0 | AZ20: 0 | BA20: 0 | BB20: 0 | BC20: 0 | BD20: 0.1661 | BE20: 0.1529 | BF20: 0.153 | BG20: 0.1562 | BH20: 0.1564 | BI20: 0.1507 | BJ20: 0.1536 | BK20: 0.1745 | BL20: 0.1485 | BM20: 0.156 | BN20: 0.1498 | BO20: 0.1435 | BP20: 0.1521 | BQ20: 0.1568 | BR20: 0.1524 | BS20: 0.1536 | BT20: 0.1584 | BU20: 0.1619 | BV20: 0.1515 | BW20: 0 | BX20: 0 | BY20: 0 | BZ20: 0 | CA20: 0 | CB20: 0 | CC20: 0 | CD20: 0 | CE20: 0 | CF20: 0 | CG20: 0 | CH20: 0 | CI20: 0 | CJ20: 0 | CK20: 0 | CL20: 0 | CM20: 0 | CN20: 0 | CO20: 0 | CP20: 0 | CQ20: 0 | CR20: 0 | CS20: 0 | CT20: 0 | CU20: 0 | CV20: 0 | CW20: 0 | CX20: 0 | CY20: 0 | CZ20: 0 | DA20: 0
B21: 1.12 | C21: Product Rate Increase % | E21: =IF(SUMPRODUCT((E16:F16="Renewing")*((E14:F14="Platinum")+(E14:F14="Gold")+(E14:F14="Silver")+(E14:F14="Bronze")+(E14:F14="Catastrophic")))=0, 0, ROUND(ROUND(SUMPRODUCT(1+E20:F20,E34:F34,E35:F35,--(E16:F16="Renewing")*((E14:F14="Platinum")+(E14:F14="Gold")+(E14:F14="Silver")+(E14:F14="Bronze")+(E14:F14="Catastrophic")))/SUMPRODUCT(E34:F34,E35:F35,--(E16:F16="Renewing")*((E14:F14="Platinum")+(E14:F14="Gold")+(E14:F14="Silver")+(E14:F14="Bronze")+(E14:F14="Catastrophic"))), 4)-1, 4)) -> 0 | G21: =IF(SUMPRODUCT((G16:BC16="Renewing")*((G14:BC14="Platinum")+(G14:BC14="Gold")+(G14:BC14="Silver")+(G14:BC14="Bronze")+(G14:BC14="Catastrophic")))=0, 0, ROUND(ROUND(SUMPRODUCT(1+G20:BC20,G34:BC34,G35:BC35,--(G16:BC16="Renewing")*((G14:BC14="Platinum")+(G14:BC14="Gold")+(G14:BC14="Silver")+(G14:BC14="Bronze")+(G14:BC14="Catastrophic")))/SUMPRODUCT(G34:BC34,G35:BC35,--(G16:BC16="Renewing")*((G14:BC14="Platinum")+(G14:BC14="Gold")+(G14:BC14="Silver")+(G14:BC14="Bronze")+(G14:BC14="Catastrophic"))), 4)-1, 4)) -> 0 | BD21: =IF(SUMPRODUCT((BD16:CY16="Renewing")*((BD14:CY14="Platinum")+(BD14:CY14="Gold")+(BD14:CY14="Silver")+(BD14:CY14="Bronze")+(BD14:CY14="Catastrophic")))=0, 0, ROUND(ROUND(SUMPRODUCT(1+BD20:CY20,BD34:CY34,BD35:CY35,--(BD16:CY16="Renewing")*((BD14:CY14="Platinum")+(BD14:CY14="Gold")+(BD14:CY14="Silver")+(BD14:CY14="Bronze")+(BD14:CY14="Catastrophic")))/SUMPRODUCT(BD34:CY34,BD35:CY35,--(BD16:CY16="Renewing")*((BD14:CY14="Platinum")+(BD14:CY14="Gold")+(BD14:CY14="Silver")+(BD14:CY14="Bronze")+(BD14:CY14="Catastrophic"))), 4)-1, 4)) -> 0 | CZ21: =IF(SUMPRODUCT((CZ16:DA16="Renewing")*((CZ14:DA14="Platinum")+(CZ14:DA14="Gold")+(CZ14:DA14="Silver")+(CZ14:DA14="Bronze")+(CZ14:DA14="Catastrophic")))=0, 0, ROUND(ROUND(SUMPRODUCT(1+CZ20:DA20,CZ34:DA34,CZ35:DA35,--(CZ16:DA16="Renewing")*((CZ14:DA14="Platinum")+(CZ14:DA14="Gold")+(CZ14:DA14="Silver")+(CZ14:DA14="Bronze")+(CZ14:DA14="Catastrophic")))/SUMPRODUCT(CZ34:DA34,CZ35:DA35,--(CZ16:DA16="Renewing")*((CZ14:DA14="Platinum")+(CZ14:DA14="Gold")+(CZ14:DA14="Silver")+(CZ14:DA14="Bronze")+(CZ14:DA14="Catastrophic"))), 4)-1, 4)) -> 0
B22: 1.13 | C22: Submission Level Rate Increase % | E22: =IF(SUMPRODUCT((E16:DA16="Renewing")*((E14:DA14="Platinum")+(E14:DA14="Gold")+(E14:DA14="Silver")+(E14:DA14="Bronze")+(E14:DA14="Catastrophic")))=0, 0, ROUND(ROUND(SUMPRODUCT(1+E20:DA20,E34:DA34,E35:DA35,--(E16:DA16="Renewing")*((E14:DA14="Platinum")+(E14:DA14="Gold")+(E14:DA14="Silver")+(E14:DA14="Bronze")+(E14:DA14="Catastrophic")))/SUMPRODUCT(E34:DA34,E35:DA35,--(E16:DA16="Renewing")*((E14:DA14="Platinum")+(E14:DA14="Gold")+(E14:DA14="Silver")+(E14:DA14="Bronze")+(E14:DA14="Catastrophic"))), 4)-1, 4)) -> 0
A24: Worksheet 1 Totals | C24: Section II: Experience Period and Current Plan Level Information
B25: 2.1 | C25: Plan ID (Standard Component ID) | D25: Total | E25: =E13 -> 0 | F25: =F13 -> 0 | G25: =G13 -> 0 | H25: =H13 -> 0 | I25: =I13 -> 0 | J25: =J13 -> 0 | K25: =K13 -> 0 | L25: =L13 -> 0 | M25: =M13 -> 0 | N25: =N13 -> 0 | O25: =O13 -> 0 | P25: =P13 -> 0 | Q25: =Q13 -> 0 | R25: =R13 -> 0 | S25: =S13 -> 0 | T25: =T13 -> 0 | U25: =U13 -> 0 | V25: =V13 -> 0 | W25: =W13 -> 0 | X25: =X13 -> 0 | Y25: =Y13 -> 0 | Z25: =Z13 -> 0 | AA25: =AA13 -> 0 | AB25: =AB13 -> 0 | AC25: =AC13 -> 0 | AD25: =AD13 -> 0 | AE25: =AE13 -> 0 | AF25: =AF13 -> 0 | AG25: =AG13 -> 0 | AH25: =AH13 -> 0 | AI25: =AI13 -> 0 | AJ25: =AJ13 -> 0 | AK25: =AK13 -> 0 | AL25: =AL13 -> 0 | AM25: =AM13 -> 0 | AN25: =AN13 -> 0 | AO25: =AO13 -> 0 | AP25: =AP13 -> 0 | AQ25: =AQ13 -> 0 | AR25: =AR13 -> 0 | AS25: =AS13 -> 0 | AT25: =AT13 -> 0 | AU25: =AU13 -> 0 | AV25: =AV13 -> 0 | AW25: =AW13 -> 0 | AX25: =AX13 -> 0 | AY25: =AY13 -> 0 | AZ25: =AZ13 -> 0 | BA25: =BA13 -> 0 | BB25: =BB13 -> 0 | BC25: =BC13 -> 0 | BD25: =BD13 -> 0 | BE25: =BE13 -> 0 | BF25: =BF13 -> 0 | BG25: =BG13 -> 0 | BH25: =BH13 -> 0 | BI25: =BI13 -> 0 | BJ25: =BJ13 -> 0 | BK25: =BK13 -> 0 | BL25: =BL13 -> 0 | BM25: =BM13 -> 0 | BN25: =BN13 -> 0 | BO25: =BO13 -> 0 | BP25: =BP13 -> 0 | BQ25: =BQ13 -> 0 | BR25: =BR13 -> 0 | BS25: =BS13 -> 0 | BT25: =BT13 -> 0 | BU25: =BU13 -> 0 | BV25: =BV13 -> 0 | BW25: =BW13 -> 0 | BX25: =BX13 -> 0 | BY25: =BY13 -> 0 | BZ25: =BZ13 -> 0 | CA25: =CA13 -> 0 | CB25: =CB13 -> 0 | CC25: =CC13 -> 0 | CD25: =CD13 -> 0 | CE25: =CE13 -> 0 | CF25: =CF13 -> 0 | CG25: =CG13 -> 0 | CH25: =CH13 -> 0 | CI25: =CI13 -> 0 | CJ25: =CJ13 -> 0 | CK25: =CK13 -> 0 | CL25: =CL13 -> 0 | CM25: =CM13 -> 0 | CN25: =CN13 -> 0 | CO25: =CO13 -> 0 | CP25: =CP13 -> 0 | CQ25: =CQ13 -> 0 | CR25: =CR13 -> 0 | CS25: =CS13 -> 0 | CT25: =CT13 -> 0 | CU25: =CU13 -> 0 | CV25: =CV13 -> 0 | CW25: =CW13 -> 0 | CX25: =CX13 -> 0 | CY25: =CY13 -> 0 | CZ25: =CZ13 -> 0 | DA25: =DA13 -> 0
A26: ='Wksh 1 - Market Experience'!E14 -> 0 | B26: 2.2 | C26: Allowed Claims | D26: =SUM(E26:XFD26) -> 19901102.58 | E26: =0 -> 0 | F26: =300.65 -> 0 | G26: =4763914.75 -> 0 | H26: =1178757.24 -> 0 | I26: =455209.96 -> 0 | J26: =402054.39 -> 0 | K26: =813936.92 -> 0 | L26: =992684.3 -> 0 | M26: =74667.45 -> 0 | N26: =136846.73 -> 0 | O26: =0 -> 0 | P26: =156402.83 -> 0 | Q26: =126263.96 -> 0 | R26: =940676.37 -> 0 | S26: =296414.97 -> 0 | T26: =6105.79 -> 0 | U26: =240684.04 -> 0 | V26: =64002.42 -> 0 | W26: =128054.3 -> 0 | X26: =109703.2 -> 0 | Y26: =0 -> 0 | Z26: =287388.92 -> 0 | AA26: =207308.55 -> 0 | AB26: =9092.83 -> 0 | AC26: =1568011.01 -> 0 | AD26: =182041.34 -> 0 | AE26: =21468.15 -> 0 | AF26: =24872.82 -> 0 | AG26: =1434.69 -> 0 | AH26: =9103.28 -> 0 | AI26: =93.11 -> 0 | AJ26: =71024.51 -> 0 | AK26: =448817.34 -> 0 | AL26: =180953.6 -> 0 | AM26: =313351.25 -> 0 | AN26: =327093.94 -> 0 | AO26: =53741.3 -> 0 | AP26: =78255.18 -> 0 | AQ26: =380651.5 -> 0 | AR26: =1589661.64 -> 0 | AS26: =393257.2 -> 0 | AT26: =219812.48 -> 0 | AU26: =31486.53 -> 0 | AV26: =39838.32 -> 0 | AW26: =6450.11 -> 0 | AX26: =29737.74 -> 0 | AY26: =166500.04 -> 0 | AZ26: =489.54 -> 0 | BA26: =24340.88 -> 0 | BB26: =25240.03 -> 0 | BC26: =33601.63 -> 0 | BD26: =107046.36 -> 0 | BE26: =66564.9 -> 0 | BF26: =271551.26 -> 0 | BG26: =0 -> 0 | BH26: =17.23 -> 0 | BI26: =3826.64 -> 0 | BJ26: =26194.93 -> 0 | BK26: =634.18 -> 0 | BL26: =0 -> 0 | BM26: =0 -> 0 | BN26: =30185.95 -> 0 | BO26: =0 -> 0 | BP26: =0 -> 0 | BQ26: =0 -> 0 | BR26: =368972.27 -> 0 | BS26: =47308.02 -> 0 | BT26: =0 -> 0 | BU26: =0 -> 0 | BV26: =0 -> 0 | BW26: =2117.57 -> 0 | BX26: =753290.07 -> 0 | BY26: =361.68 -> 0 | BZ26: =0 -> 0 | CA26: =21812.48 -> 0 | CB26: =154.11 -> 0 | CC26: =24512.35 -> 0 | CD26: =99469.99 -> 0 | CE26: =14707.88 -> 0 | CF26: =161779.82 -> 0 | CG26: =29824.49 -> 0 | CH26: =34.46 -> 0 | CI26: =38288.68 -> 0 | CJ26: =64889.85 -> 0 | CK26: =5961.06 -> 0 | CL26: =0 -> 0 | CM26: =1343.06 -> 0 | CN26: =0 -> 0 | CO26: =6134.5 -> 0 | CP26: =0 -> 0 | CQ26: =0 -> 0 | CR26: =0 -> 0 | CS26: =17087.04 -> 0 | CT26: =38076.17 -> 0 | CU26: =0 -> 0 | CV26: =0 -> 0 | CW26: =0 -> 0 | CX26: =56027.3 -> 0 | CY26: =0 -> 0 | CZ26: =923.06 -> 0 | DA26: =30205.49 -> 0
A27: ='Wksh 1 - Market Experience'!E15 -> 0 | B27: 2.3 | C27: Reinsurance | D27: =SUM(E27:XFD27) -> 0 | E27: =0 -> 0 | F27: =0 -> 0 | G27: =0 -> 0 | H27: =0 -> 0 | I27: =0 -> 0 | J27: =0 -> 0 | K27: =0 -> 0 | L27: =0 -> 0 | M27: =0 -> 0 | N27: =0 -> 0 | O27: =0 -> 0 | P27: =0 -> 0 | Q27: =0 -> 0 | R27: =0 -> 0 | S27: =0 -> 0 | T27: =0 -> 0 | U27: =0 -> 0 | V27: =0 -> 0 | W27: =0 -> 0 | X27: =0 -> 0 | Y27: =0 -> 0 | Z27: =0 -> 0 | AA27: =0 -> 0 | AB27: =0 -> 0 | AC27: =0 -> 0 | AD27: =0 -> 0 | AE27: =0 -> 0 | AF27: =0 -> 0 | AG27: =0 -> 0 | AH27: =0 -> 0 | AI27: =0 -> 0 | AJ27: =0 -> 0 | AK27: =0 -> 0 | AL27: =0 -> 0 | AM27: =0 -> 0 | AN27: =0 -> 0 | AO27: =0 -> 0 | AP27: =0 -> 0 | AQ27: =0 -> 0 | AR27: =0 -> 0 | AS27: =0 -> 0 | AT27: =0 -> 0 | AU27: =0 -> 0 | AV27: =0 -> 0 | AW27: =0 -> 0 | AX27: =0 -> 0 | AY27: =0 -> 0 | AZ27: =0 -> 0 | BA27: =0 -> 0 | BB27: =0 -> 0 | BC27: =0 -> 0 | BD27: =0 -> 0 | BE27: =0 -> 0 | BF27: =0 -> 0 | BG27: =0 -> 0 | BH27: =0 -> 0 | BI27: =0 -> 0 | BJ27: =0 -> 0 | BK27: =0 -> 0 | BL27: =0 -> 0 | BM27: =0 -> 0 | BN27: =0 -> 0 | BO27: =0 -> 0 | BP27: =0 -> 0 | BQ27: =0 -> 0 | BR27: =0 -> 0 | BS27: =0 -> 0 | BT27: =0 -> 0 | BU27: =0 -> 0 | BV27: =0 -> 0 | BW27: =0 -> 0 | BX27: =0 -> 0 | BY27: =0 -> 0 | BZ27: =0 -> 0 | CA27: =0 -> 0 | CB27: =0 -> 0 | CC27: =0 -> 0 | CD27: =0 -> 0 | CE27: =0 -> 0 | CF27: =0 -> 0 | CG27: =0 -> 0 | CH27: =0 -> 0 | CI27: =0 -> 0 | CJ27: =0 -> 0 | CK27: =0 -> 0 | CL27: =0 -> 0 | CM27: =0 -> 0 | CN27: =0 -> 0 | CO27: =0 -> 0 | CP27: =0 -> 0 | CQ27: =0 -> 0 | CR27: =0 -> 0 | CS27: =0 -> 0 | CT27: =0 -> 0 | CU27: =0 -> 0 | CV27: =0 -> 0 | CW27: =0 -> 0 | CX27: =0 -> 0 | CY27: =0 -> 0 | CZ27: =0 -> 0 | DA27: =0 -> 0
B28: 2.4 | C28: Member Cost Sharing | D28: =SUM(E28:XFD28) -> 3851693.53 | E28: =0 -> 0 | F28: =53.41 -> 0 | G28: =927703.32 -> 0 | H28: =54849.82 -> 0 | I28: =80148.06 -> 0 | J28: =111500.48 -> 0 | K28: =63183.45 -> 0 | L28: =194955.99 -> 0 | M28: =15608.46 -> 0 | N28: =70386.19 -> 0 | O28: =0 -> 0 | P28: =33525.65 -> 0 | Q28: =12830.64 -> 0 | R28: =63161.38 -> 0 | S28: =38095.43 -> 0 | T28: =5453.14 -> 0 | U28: =47472.77 -> 0 | V28: =27392.55 -> 0 | W28: =47195.72 -> 0 | X28: =21561.04 -> 0 | Y28: =0 -> 0 | Z28: =41609.22 -> 0 | AA28: =5307.02 -> 0 | AB28: =7165.35 -> 0 | AC28: =273369.3 -> 0 | AD28: =59374.17 -> 0 | AE28: =11020.18 -> 0 | AF28: =2253.4 -> 0 | AG28: =262.52 -> 0 | AH28: =5963.79 -> 0 | AI28: =24.19 -> 0 | AJ28: =40345.36 -> 0 | AK28: =163320.27 -> 0 | AL28: =53536.59 -> 0 | AM28: =51304.61 -> 0 | AN28: =32580.3 -> 0 | AO28: =21423.25 -> 0 | AP28: =36478.3 -> 0 | AQ28: =109655.68 -> 0 | AR28: =393360.02 -> 0 | AS28: =62359.42 -> 0 | AT28: =94048.93 -> 0 | AU28: =10518.87 -> 0 | AV28: =11421.64 -> 0 | AW28: =5011.14 -> 0 | AX28: =7070.74 -> 0 | AY28: =41173.49 -> 0 | AZ28: =274.07 -> 0 | BA28: =11025.6 -> 0 | BB28: =5339.11 -> 0 | BC28: =15671.54 -> 0 | BD28: =60566.99 -> 0 | BE28: =9626.35 -> 0 | BF28: =42685.09 -> 0 | BG28: =0 -> 0 | BH28: =0 -> 0 | BI28: =11.75 -> 0 | BJ28: =8139.03 -> 0 | BK28: =125.92 -> 0 | BL28: =0 -> 0 | BM28: =0 -> 0 | BN28: =6125.78 -> 0 | BO28: =0 -> 0 | BP28: =0 -> 0 | BQ28: =0 -> 0 | BR28: =24321.78 -> 0 | BS28: =11344.91 -> 0 | BT28: =0 -> 0 | BU28: =0 -> 0 | BV28: =0 -> 0 | BW28: =670.07 -> 0 | BX28: =129406.72 -> 0 | BY28: =206.61 -> 0 | BZ28: =0 -> 0 | CA28: =8711.58 -> 0 | CB28: =0 -> 0 | CC28: =8056.1 -> 0 | CD28: =42106.84 -> 0 | CE28: =5243.21 -> 0 | CF28: =30504.78 -> 0 | CG28: =9807.81 -> 0 | CH28: =0 -> 0 | CI28: =12312.7 -> 0 | CJ28: =4793.44 -> 0 | CK28: =3161.38 -> 0 | CL28: =0 -> 0 | CM28: =894.39 -> 0 | CN28: =0 -> 0 | CO28: =5575.7 -> 0 | CP28: =0 -> 0 | CQ28: =0 -> 0 | CR28: =0 -> 0 | CS28: =1804.81 -> 0 | CT28: =6013.04 -> 0 | CU28: =0 -> 0 | CV28: =0 -> 0 | CW28: =0 -> 0 | CX28: =17085.32 -> 0 | CY28: =0 -> 0 | CZ28: =147.4 -> 0 | DA28: =14898.46 -> 0
B29: 2.5 | C29: Cost Sharing Reduction | D29: =SUM(E29:XFD29) -> 0 | E29: =0 -> 0 | F29: =0 -> 0 | G29: =0 -> 0 | H29: =0 -> 0 | I29: =0 -> 0 | J29: =0 -> 0 | K29: =0 -> 0 | L29: =0 -> 0 | M29: =0 -> 0 | N29: =0 -> 0 | O29: =0 -> 0 | P29: =0 -> 0 | Q29: =0 -> 0 | R29: =0 -> 0 | S29: =0 -> 0 | T29: =0 -> 0 | U29: =0 -> 0 | V29: =0 -> 0 | W29: =0 -> 0 | X29: =0 -> 0 | Y29: =0 -> 0 | Z29: =0 -> 0 | AA29: =0 -> 0 | AB29: =0 -> 0 | AC29: =0 -> 0 | AD29: =0 -> 0 | AE29: =0 -> 0 | AF29: =0 -> 0 | AG29: =0 -> 0 | AH29: =0 -> 0 | AI29: =0 -> 0 | AJ29: =0 -> 0 | AK29: =0 -> 0 | AL29: =0 -> 0 | AM29: =0 -> 0 | AN29: =0 -> 0 | AO29: =0 -> 0 | AP29: =0 -> 0 | AQ29: =0 -> 0 | AR29: =0 -> 0 | AS29: =0 -> 0 | AT29: =0 -> 0 | AU29: =0 -> 0 | AV29: =0 -> 0 | AW29: =0 -> 0 | AX29: =0 -> 0 | AY29: =0 -> 0 | AZ29: =0 -> 0 | BA29: =0 -> 0 | BB29: =0 -> 0 | BC29: =0 -> 0 | BD29: =0 -> 0 | BE29: =0 -> 0 | BF29: =0 -> 0 | BG29: =0 -> 0 | BH29: =0 -> 0 | BI29: =0 -> 0 | BJ29: =0 -> 0 | BK29: =0 -> 0 | BL29: =0 -> 0 | BM29: =0 -> 0 | BN29: =0 -> 0 | BO29: =0 -> 0 | BP29: =0 -> 0 | BQ29: =0 -> 0 | BR29: =0 -> 0 | BS29: =0 -> 0 | BT29: =0 -> 0 | BU29: =0 -> 0 | BV29: =0 -> 0 | BW29: =0 -> 0 | BX29: =0 -> 0 | BY29: =0 -> 0 | BZ29: =0 -> 0 | CA29: =0 -> 0 | CB29: =0 -> 0 | CC29: =0 -> 0 | CD29: =0 -> 0 | CE29: =0 -> 0 | CF29: =0 -> 0 | CG29: =0 -> 0 | CH29: =0 -> 0 | CI29: =0 -> 0 | CJ29: =0 -> 0 | CK29: =0 -> 0 | CL29: =0 -> 0 | CM29: =0 -> 0 | CN29: =0 -> 0 | CO29: =0 -> 0 | CP29: =0 -> 0 | CQ29: =0 -> 0 | CR29: =0 -> 0 | CS29: =0 -> 0 | CT29: =0 -> 0 | CU29: =0 -> 0 | CV29: =0 -> 0 | CW29: =0 -> 0 | CX29: =0 -> 0 | CY29: =0 -> 0 | CZ29: =0 -> 0 | DA29: =0 -> 0
A30: ='Wksh 1 - Market Experience'!E16 -> 0 | B30: 2.6 | C30: Incurred Claims | D30: =D26-D27-D28-D29 -> 16049409.05 | E30: =E26-E27-E28-E29 -> 0 | F30: =F26-F27-F28-F29 -> 0 | G30: =G26-G27-G28-G29 -> 0 | H30: =H26-H27-H28-H29 -> 0 | I30: =I26-I27-I28-I29 -> 0 | J30: =J26-J27-J28-J29 -> 0 | K30: =K26-K27-K28-K29 -> 0 | L30: =L26-L27-L28-L29 -> 0 | M30: =M26-M27-M28-M29 -> 0 | N30: =N26-N27-N28-N29 -> 0 | O30: =O26-O27-O28-O29 -> 0 | P30: =P26-P27-P28-P29 -> 0 | Q30: =Q26-Q27-Q28-Q29 -> 0 | R30: =R26-R27-R28-R29 -> 0 | S30: =S26-S27-S28-S29 -> 0 | T30: =T26-T27-T28-T29 -> 0 | U30: =U26-U27-U28-U29 -> 0 | V30: =V26-V27-V28-V29 -> 0 | W30: =W26-W27-W28-W29 -> 0 | X30: =X26-X27-X28-X29 -> 0 | Y30: =Y26-Y27-Y28-Y29 -> 0 | Z30: =Z26-Z27-Z28-Z29 -> 0 | AA30: =AA26-AA27-AA28-AA29 -> 0 | AB30: =AB26-AB27-AB28-AB29 -> 0 | AC30: =AC26-AC27-AC28-AC29 -> 0 | AD30: =AD26-AD27-AD28-AD29 -> 0 | AE30: =AE26-AE27-AE28-AE29 -> 0 | AF30: =AF26-AF27-AF28-AF29 -> 0 | AG30: =AG26-AG27-AG28-AG29 -> 0 | AH30: =AH26-AH27-AH28-AH29 -> 0 | AI30: =AI26-AI27-AI28-AI29 -> 0 | AJ30: =AJ26-AJ27-AJ28-AJ29 -> 0 | AK30: =AK26-AK27-AK28-AK29 -> 0 | AL30: =AL26-AL27-AL28-AL29 -> 0 | AM30: =AM26-AM27-AM28-AM29 -> 0 | AN30: =AN26-AN27-AN28-AN29 -> 0 | AO30: =AO26-AO27-AO28-AO29 -> 0 | AP30: =AP26-AP27-AP28-AP29 -> 0 | AQ30: =AQ26-AQ27-AQ28-AQ29 -> 0 | AR30: =AR26-AR27-AR28-AR29 -> 0 | AS30: =AS26-AS27-AS28-AS29 -> 0 | AT30: =AT26-AT27-AT28-AT29 -> 0 | AU30: =AU26-AU27-AU28-AU29 -> 0 | AV30: =AV26-AV27-AV28-AV29 -> 0 | AW30: =AW26-AW27-AW28-AW29 -> 0 | AX30: =AX26-AX27-AX28-AX29 -> 0 | AY30: =AY26-AY27-AY28-AY29 -> 0 | AZ30: =AZ26-AZ27-AZ28-AZ29 -> 0 | BA30: =BA26-BA27-BA28-BA29 -> 0 | BB30: =BB26-BB27-BB28-BB29 -> 0 | BC30: =BC26-BC27-BC28-BC29 -> 0 | BD30: =BD26-BD27-BD28-BD29 -> 0 | BE30: =BE26-BE27-BE28-BE29 -> 0 | BF30: =BF26-BF27-BF28-BF29 -> 0 | BG30: =BG26-BG27-BG28-BG29 -> 0 | BH30: =BH26-BH27-BH28-BH29 -> 0 | BI30: =BI26-BI27-BI28-BI29 -> 0 | BJ30: =BJ26-BJ27-BJ28-BJ29 -> 0 | BK30: =BK26-BK27-BK28-BK29 -> 0 | BL30: =BL26-BL27-BL28-BL29 -> 0 | BM30: =BM26-BM27-BM28-BM29 -> 0 | BN30: =BN26-BN27-BN28-BN29 -> 0 | BO30: =BO26-BO27-BO28-BO29 -> 0 | BP30: =BP26-BP27-BP28-BP29 -> 0 | BQ30: =BQ26-BQ27-BQ28-BQ29 -> 0 | BR30: =BR26-BR27-BR28-BR29 -> 0 | BS30: =BS26-BS27-BS28-BS29 -> 0 | BT30: =BT26-BT27-BT28-BT29 -> 0 | BU30: =BU26-BU27-BU28-BU29 -> 0 | BV30: =BV26-BV27-BV28-BV29 -> 0 | BW30: =BW26-BW27-BW28-BW29 -> 0 | BX30: =BX26-BX27-BX28-BX29 -> 0 | BY30: =BY26-BY27-BY28-BY29 -> 0 | BZ30: =BZ26-BZ27-BZ28-BZ29 -> 0 | CA30: =CA26-CA27-CA28-CA29 -> 0 | CB30: =CB26-CB27-CB28-CB29 -> 0 | CC30: =CC26-CC27-CC28-CC29 -> 0 | CD30: =CD26-CD27-CD28-CD29 -> 0 | CE30: =CE26-CE27-CE28-CE29 -> 0 | CF30: =CF26-CF27-CF28-CF29 -> 0 | CG30: =CG26-CG27-CG28-CG29 -> 0 | CH30: =CH26-CH27-CH28-CH29 -> 0 | CI30: =CI26-CI27-CI28-CI29 -> 0 | CJ30: =CJ26-CJ27-CJ28-CJ29 -> 0 | CK30: =CK26-CK27-CK28-CK29 -> 0 | CL30: =CL26-CL27-CL28-CL29 -> 0 | CM30: =CM26-CM27-CM28-CM29 -> 0 | CN30: =CN26-CN27-CN28-CN29 -> 0 | CO30: =CO26-CO27-CO28-CO29 -> 0 | CP30: =CP26-CP27-CP28-CP29 -> 0 | CQ30: =CQ26-CQ27-CQ28-CQ29 -> 0 | CR30: =CR26-CR27-CR28-CR29 -> 0 | CS30: =CS26-CS27-CS28-CS29 -> 0 | CT30: =CT26-CT27-CT28-CT29 -> 0 | CU30: =CU26-CU27-CU28-CU29 -> 0 | CV30: =CV26-CV27-CV28-CV29 -> 0 | CW30: =CW26-CW27-CW28-CW29 -> 0 | CX30: =CX26-CX27-CX28-CX29 -> 0 | CY30: =CY26-CY27-CY28-CY29 -> 0 | CZ30: =CZ26-CZ27-CZ28-CZ29 -> 0 | DA30: =DA26-DA27-DA28-DA29 -> 0
A31: ='Wksh 1 - Market Experience'!E17 -> 0 | B31: 2.7 | C31: Risk Adjustment Transfer Amount | D31: =SUM(E31:XFD31) -> -2078966.6 | E31: =0 -> 0 | F31: =0 -> 0 | G31: =-527589.12 -> 0 | H31: =-30367.18 -> 0 | I31: =-53902.3 -> 0 | J31: =-71284.61 -> 0 | K31: =-24182.16 -> 0 | L31: =-115247.76 -> 0 | M31: =-7566.9 -> 0 | N31: =-29757.43 -> 0 | O31: =0 -> 0 | P31: =-31054.22 -> 0 | Q31: =-22766.23 -> 0 | R31: =-82878.29 -> 0 | S31: =-22539.51 -> 0 | T31: =-1277.68 -> 0 | U31: =-39702.44 -> 0 | V31: =-20810.22 -> 0 | W31: =-27023.72 -> 0 | X31: =-23921.84 -> 0 | Y31: =0 -> 0 | Z31: =-17121.78 -> 0 | AA31: =-1292.16 -> 0 | AB31: =-1166.91 -> 0 | AC31: =-127961.36 -> 0 | AD31: =-22133.28 -> 0 | AE31: =-8643.64 -> 0 | AF31: =-922.48 -> 0 | AG31: =-656.32 -> 0 | AH31: =-2039.17 -> 0 | AI31: =-176.91 -> 0 | AJ31: =-16615.35 -> 0 | AK31: =-56811.94 -> 0 | AL31: =-24614.2 -> 0 | AM31: =-58630.63 -> 0 | AN31: =-39086.68 -> 0 | AO31: =-7698.93 -> 0 | AP31: =-8640.26 -> 0 | AQ31: =-37318.8 -> 0 | AR31: =-132096.37 -> 0 | AS31: =-31550.64 -> 0 | AT31: =-39926.98 -> 0 | AU31: =-9492.84 -> 0 | AV31: =-2119.37 -> 0 | AW31: =-1939.38 -> 0 | AX31: =-2948.2 -> 0 | AY31: =-15632.06 -> 0 | AZ31: =-614.23 -> 0 | BA31: =-2535.01 -> 0 | BB31: =-7726.18 -> 0 | BC31: =-6278.14 -> 0 | BD31: =-18232.34 -> 0 | BE31: =-4279.68 -> 0 | BF31: =-33662.03 -> 0 | BG31: =0 -> 0 | BH31: =-54.09 -> 0 | BI31: =-957.46 -> 0 | BJ31: =-6858.05 -> 0 | BK31: =-969.36 -> 0 | BL31: =0 -> 0 | BM31: =0 -> 0 | BN31: =-3923.28 -> 0 | BO31: =0 -> 0 | BP31: =0 -> 0 | BQ31: =0 -> 0 | BR31: =-17777.13 -> 0 | BS31: =-12605.24 -> 0 | BT31: =0 -> 0 | BU31: =0 -> 0 | BV31: =0 -> 0 | BW31: =-1190.98 -> 0 | BX31: =-63778 -> 0 | BY31: =-437.1 -> 0 | BZ31: =0 -> 0 | CA31: =-3146.03 -> 0 | CB31: =-80.32 -> 0 | CC31: =-4725.04 -> 0 | CD31: =-19600.44 -> 0 | CE31: =-831.62 -> 0 | CF31: =-27734.2 -> 0 | CG31: =-6362.68 -> 0 | CH31: =-113.07 -> 0 | CI31: =-4563.03 -> 0 | CJ31: =-3188.05 -> 0 | CK31: =-4727.88 -> 0 | CL31: =0 -> 0 | CM31: =-265.37 -> 0 | CN31: =0 -> 0 | CO31: =-1281.29 -> 0 | CP31: =0 -> 0 | CQ31: =0 -> 0 | CR31: =0 -> 0 | CS31: =-1134.3 -> 0 | CT31: =-3740.47 -> 0 | CU31: =0 -> 0 | CV31: =0 -> 0 | CW31: =0 -> 0 | CX31: =-7659.61 -> 0 | CY31: =0 -> 0 | CZ31: =-2903.63 -> 0 | DA31: =-5923.02 -> 0
A32: ='Wksh 1 - Market Experience'!E18 -> 0 | B32: 2.8 | C32: Premium | D32: =SUM(E32:XFD32) -> 21213946.41 | E32: =0 -> 0 | F32: =0 -> 0 | G32: =5383562.93 -> 0 | H32: =309869.16 -> 0 | I32: =550023.52 -> 0 | J32: =727394.06 -> 0 | K32: =246756.71 -> 0 | L32: =1175997.62 -> 0 | M32: =77213.32 -> 0 | N32: =303647.26 -> 0 | O32: =0 -> 0 | P32: =316879.85 -> 0 | Q32: =232308.48 -> 0 | R32: =845696.86 -> 0 | S32: =229994.98 -> 0 | T32: =13037.56 -> 0 | U32: =405126.94 -> 0 | V32: =212349.22 -> 0 | W32: =275752.23 -> 0 | X32: =244100.4 -> 0 | Y32: =0 -> 0 | Z32: =174712.07 -> 0 | AA32: =13185.33 -> 0 | AB32: =11907.28 -> 0 | AC32: =1305728.25 -> 0 | AD32: =225849.84 -> 0 | AE32: =88200.42 -> 0 | AF32: =9413.1 -> 0 | AG32: =6697.17 -> 0 | AH32: =20807.85 -> 0 | AI32: =1805.2 -> 0 | AJ32: =169544.36 -> 0 | AK32: =579713.67 -> 0 | AL32: =251165.28 -> 0 | AM32: =598271.74 -> 0 | AN32: =398843.66 -> 0 | AO32: =78560.54 -> 0 | AP32: =88165.88 -> 0 | AQ32: =380804.15 -> 0 | AR32: =1347922.22 -> 0 | AS32: =321945.38 -> 0 | AT32: =407418.22 -> 0 | AU32: =96865.77 -> 0 | AV32: =21626.18 -> 0 | AW32: =19789.56 -> 0 | AX32: =30083.68 -> 0 | AY32: =159510.87 -> 0 | AZ32: =6267.64 -> 0 | BA32: =25867.46 -> 0 | BB32: =78838.61 -> 0 | BC32: =64062.7 -> 0 | BD32: =186044.28 -> 0 | BE32: =43670.21 -> 0 | BF32: =343490.16 -> 0 | BG32: =0 -> 0 | BH32: =551.97 -> 0 | BI32: =9769.98 -> 0 | BJ32: =69980.13 -> 0 | BK32: =9891.39 -> 0 | BL32: =0 -> 0 | BM32: =0 -> 0 | BN32: =40033.44 -> 0 | BO32: =0 -> 0 | BP32: =0 -> 0 | BQ32: =0 -> 0 | BR32: =181399.25 -> 0 | BS32: =128624.89 -> 0 | BT32: =0 -> 0 | BU32: =0 -> 0 | BV32: =0 -> 0 | BW32: =12152.85 -> 0 | BX32: =650796.02 -> 0 | BY32: =4460.25 -> 0 | BZ32: =0 -> 0 | CA32: =32102.39 -> 0 | CB32: =819.61 -> 0 | CC32: =48214.72 -> 0 | CD32: =200004.48 -> 0 | CE32: =8485.93 -> 0 | CF32: =283002.02 -> 0 | CG32: =64925.36 -> 0 | CH32: =1153.78 -> 0 | CI32: =46561.53 -> 0 | CJ32: =32531.13 -> 0 | CK32: =48243.71 -> 0 | CL32: =0 -> 0 | CM32: =2707.83 -> 0 | CN32: =0 -> 0 | CO32: =13074.34 -> 0 | CP32: =0 -> 0 | CQ32: =0 -> 0 | CR32: =0 -> 0 | CS32: =11574.44 -> 0 | CT32: =38168.08 -> 0 | CU32: =0 -> 0 | CV32: =0 -> 0 | CW32: =0 -> 0 | CX32: =78159.28 -> 0 | CY32: =0 -> 0 | CZ32: =29628.83 -> 0 | DA32: =60438.95 -> 0
A33: ='Wksh 1 - Market Experience'!E19 -> 0 | B33: 2.9 | C33: Experience Period Member Months | D33: =SUM(E33:XFD33) -> 27602 | E33: =0 -> 0 | F33: =0 -> 0 | G33: =6873 -> 0 | H33: =421 -> 0 | I33: =764 -> 0 | J33: =922 -> 0 | K33: =312 -> 0 | L33: =1405 -> 0 | M33: =135 -> 0 | N33: =490 -> 0 | O33: =0 -> 0 | P33: =380 -> 0 | Q33: =254 -> 0 | R33: =943 -> 0 | S33: =300 -> 0 | T33: =14 -> 0 | U33: =494 -> 0 | V33: =307 -> 0 | W33: =382 -> 0 | X33: =313 -> 0 | Y33: =0 -> 0 | Z33: =229 -> 0 | AA33: =18 -> 0 | AB33: =21 -> 0 | AC33: =1723 -> 0 | AD33: =275 -> 0 | AE33: =164 -> 0 | AF33: =15 -> 0 | AG33: =15 -> 0 | AH33: =37 -> 0 | AI33: =4 -> 0 | AJ33: =281 -> 0 | AK33: =838 -> 0 | AL33: =385 -> 0 | AM33: =594 -> 0 | AN33: =360 -> 0 | AO33: =140 -> 0 | AP33: =134 -> 0 | AQ33: =571 -> 0 | AR33: =1833 -> 0 | AS33: =458 -> 0 | AT33: =587 -> 0 | AU33: =107 -> 0 | AV33: =49 -> 0 | AW33: =30 -> 0 | AX33: =50 -> 0 | AY33: =207 -> 0 | AZ33: =9 -> 0 | BA33: =40 -> 0 | BB33: =121 -> 0 | BC33: =77 -> 0 | BD33: =289 -> 0 | BE33: =48 -> 0 | BF33: =472 -> 0 | BG33: =0 -> 0 | BH33: =1 -> 0 | BI33: =12 -> 0 | BJ33: =106 -> 0 | BK33: =21 -> 0 | BL33: =0 -> 0 | BM33: =0 -> 0 | BN33: =39 -> 0 | BO33: =0 -> 0 | BP33: =0 -> 0 | BQ33: =0 -> 0 | BR33: =183 -> 0 | BS33: =170 -> 0 | BT33: =0 -> 0 | BU33: =0 -> 0 | BV33: =0 -> 0 | BW33: =21 -> 0 | BX33: =745 -> 0 | BY33: =9 -> 0 | BZ33: =0 -> 0 | CA33: =63 -> 0 | CB33: =2 -> 0 | CC33: =96 -> 0 | CD33: =266 -> 0 | CE33: =15 -> 0 | CF33: =313 -> 0 | CG33: =94 -> 0 | CH33: =2 -> 0 | CI33: =78 -> 0 | CJ33: =54 -> 0 | CK33: =73 -> 0 | CL33: =0 -> 0 | CM33: =3 -> 0 | CN33: =0 -> 0 | CO33: =25 -> 0 | CP33: =0 -> 0 | CQ33: =0 -> 0 | CR33: =0 -> 0 | CS33: =12 -> 0 | CT33: =46 -> 0 | CU33: =0 -> 0 | CV33: =0 -> 0 | CW33: =0 -> 0 | CX33: =142 -> 0 | CY33: =0 -> 0 | CZ33: =22 -> 0 | DA33: =99 -> 0
B34: 2.10 | C34: Current Enrollment | D34: =SUM(E34:XFD34) -> 2085 | E34: =0 -> 0 | F34: =0 -> 0 | G34: =716 -> 0 | H34: =49 -> 0 | I34: =83 -> 0 | J34: =141 -> 0 | K34: =41 -> 0 | L34: =182 -> 0 | M34: =11 -> 0 | N34: =57 -> 0 | O34: =0 -> 0 | P34: =75 -> 0 | Q34: =35 -> 0 | R34: =114 -> 0 | S34: =48 -> 0 | T34: =7 -> 0 | U34: =82 -> 0 | V34: =36 -> 0 | W34: =39 -> 0 | X34: =45 -> 0 | Y34: =0 -> 0 | Z34: =0 -> 0 | AA34: =0 -> 0 | AB34: =0 -> 0 | AC34: =8 -> 0 | AD34: =0 -> 0 | AE34: =0 -> 0 | AF34: =0 -> 0 | AG34: =0 -> 0 | AH34: =0 -> 0 | AI34: =0 -> 0 | AJ34: =0 -> 0 | AK34: =0 -> 0 | AL34: =0 -> 0 | AM34: =0 -> 0 | AN34: =0 -> 0 | AO34: =0 -> 0 | AP34: =0 -> 0 | AQ34: =0 -> 0 | AR34: =15 -> 0 | AS34: =0 -> 0 | AT34: =0 -> 0 | AU34: =0 -> 0 | AV34: =0 -> 0 | AW34: =0 -> 0 | AX34: =0 -> 0 | AY34: =2 -> 0 | AZ34: =0 -> 0 | BA34: =0 -> 0 | BB34: =0 -> 0 | BC34: =0 -> 0 | BD34: =22 -> 0 | BE34: =2 -> 0 | BF34: =98 -> 0 | BG34: =0 -> 0 | BH34: =0 -> 0 | BI34: =4 -> 0 | BJ34: =13 -> 0 | BK34: =5 -> 0 | BL34: =0 -> 0 | BM34: =0 -> 0 | BN34: =5 -> 0 | BO34: =0 -> 0 | BP34: =0 -> 0 | BQ34: =0 -> 0 | BR34: =41 -> 0 | BS34: =40 -> 0 | BT34: =0 -> 0 | BU34: =0 -> 0 | BV34: =0 -> 0 | BW34: =0 -> 0 | BX34: =0 -> 0 | BY34: =0 -> 0 | BZ34: =0 -> 0 | CA34: =0 -> 0 | CB34: =0 -> 0 | CC34: =12 -> 0 | CD34: =19 -> 0 | CE34: =0 -> 0 | CF34: =0 -> 0 | CG34: =0 -> 0 | CH34: =0 -> 0 | CI34: =0 -> 0 | CJ34: =5 -> 0 | CK34: =6 -> 0 | CL34: =0 -> 0 | CM34: =3 -> 0 | CN34: =0 -> 0 | CO34: =3 -> 0 | CP34: =0 -> 0 | CQ34: =0 -> 0 | CR34: =0 -> 0 | CS34: =2 -> 0 | CT34: =0 -> 0 | CU34: =0 -> 0 | CV34: =0 -> 0 | CW34: =0 -> 0 | CX34: =19 -> 0 | CY34: =0 -> 0 | CZ34: =0 -> 0 | DA34: =0 -> 0
B35: 2.11 | C35: Current Premium PMPM | D35: =SUMPRODUCT(E35:XFD35,E34:XFD34)/D34 -> 792.2689 | E35: =0 -> 0 | F35: =0 -> 0 | G35: =791.44 -> 0 | H35: =781.87 -> 0 | I35: =706.95 -> 0 | J35: =794.06 -> 0 | K35: =845.18 -> 0 | L35: =831.2 -> 0 | M35: =521.71 -> 0 | N35: =629.7 -> 0 | O35: =0 -> 0 | P35: =825.11 -> 0 | Q35: =978 -> 0 | R35: =937.07 -> 0 | S35: =743.16 -> 0 | T35: =931.25 -> 0 | U35: =757.9 -> 0 | V35: =656.3 -> 0 | W35: =697.33 -> 0 | X35: =720.71 -> 0 | Y35: =0 -> 0 | Z35: =0 -> 0 | AA35: =0 -> 0 | AB35: =0 -> 0 | AC35: =1158.45 -> 0 | AD35: =0 -> 0 | AE35: =0 -> 0 | AF35: =0 -> 0 | AG35: =0 -> 0 | AH35: =0 -> 0 | AI35: =0 -> 0 | AJ35: =0 -> 0 | AK35: =0 -> 0 | AL35: =0 -> 0 | AM35: =0 -> 0 | AN35: =0 -> 0 | AO35: =0 -> 0 | AP35: =0 -> 0 | AQ35: =0 -> 0 | AR35: =844.83 -> 0 | AS35: =0 -> 0 | AT35: =0 -> 0 | AU35: =0 -> 0 | AV35: =0 -> 0 | AW35: =0 -> 0 | AX35: =0 -> 0 | AY35: =956.39 -> 0 | AZ35: =0 -> 0 | BA35: =0 -> 0 | BB35: =0 -> 0 | BC35: =0 -> 0 | BD35: =638.81 -> 0 | BE35: =737.55 -> 0 | BF35: =885.4 -> 0 | BG35: =0 -> 0 | BH35: =0 -> 0 | BI35: =785.64 -> 0 | BJ35: =638.68 -> 0 | BK35: =468.51 -> 0 | BL35: =0 -> 0 | BM35: =0 -> 0 | BN35: =1130.58 -> 0 | BO35: =0 -> 0 | BP35: =0 -> 0 | BQ35: =0 -> 0 | BR35: =955.21 -> 0 | BS35: =734.79 -> 0 | BT35: =0 -> 0 | BU35: =0 -> 0 | BV35: =0 -> 0 | BW35: =0 -> 0 | BX35: =0 -> 0 | BY35: =0 -> 0 | BZ35: =0 -> 0 | CA35: =0 -> 0 | CB35: =0 -> 0 | CC35: =506.45 -> 0 | CD35: =745.72 -> 0 | CE35: =0 -> 0 | CF35: =0 -> 0 | CG35: =0 -> 0 | CH35: =0 -> 0 | CI35: =0 -> 0 | CJ35: =589.74 -> 0 | CK35: =667.87 -> 0 | CL35: =0 -> 0 | CM35: =902.61 -> 0 | CN35: =0 -> 0 | CO35: =581.02 -> 0 | CP35: =0 -> 0 | CQ35: =0 -> 0 | CR35: =0 -> 0 | CS35: =926.26 -> 0 | CT35: =0 -> 0 | CU35: =0 -> 0 | CV35: =0 -> 0 | CW35: =0 -> 0 | CX35: =553.25 -> 0 | CY35: =0 -> 0 | CZ35: =0 -> 0 | DA35: =0 -> 0
B36: 2.12 | C36: Loss Ratio | D36: =D30/(D31+D32) -> 0.8387471118 | E36: =E30/(E31+E32) -> 0 | F36: =F30/(F31+F32) -> 0 | G36: =G30/(G31+G32) -> 0 | H36: =H30/(H31+H32) -> 0 | I36: =I30/(I31+I32) -> 0 | J36: =J30/(J31+J32) -> 0 | K36: =K30/(K31+K32) -> 0 | L36: =L30/(L31+L32) -> 0 | M36: =M30/(M31+M32) -> 0 | N36: =N30/(N31+N32) -> 0 | O36: =O30/(O31+O32) -> 0 | P36: =P30/(P31+P32) -> 0 | Q36: =Q30/(Q31+Q32) -> 0 | R36: =R30/(R31+R32) -> 0 | S36: =S30/(S31+S32) -> 0 | T36: =T30/(T31+T32) -> 0 | U36: =U30/(U31+U32) -> 0 | V36: =V30/(V31+V32) -> 0 | W36: =W30/(W31+W32) -> 0 | X36: =X30/(X31+X32) -> 0 | Y36: =Y30/(Y31+Y32) -> 0 | Z36: =Z30/(Z31+Z32) -> 0 | AA36: =AA30/(AA31+AA32) -> 0 | AB36: =AB30/(AB31+AB32) -> 0 | AC36: =AC30/(AC31+AC32) -> 0 | AD36: =AD30/(AD31+AD32) -> 0 | AE36: =AE30/(AE31+AE32) -> 0 | AF36: =AF30/(AF31+AF32) -> 0 | AG36: =AG30/(AG31+AG32) -> 0 | AH36: =AH30/(AH31+AH32) -> 0 | AI36: =AI30/(AI31+AI32) -> 0 | AJ36: =AJ30/(AJ31+AJ32) -> 0 | AK36: =AK30/(AK31+AK32) -> 0 | AL36: =AL30/(AL31+AL32) -> 0 | AM36: =AM30/(AM31+AM32) -> 0 | AN36: =AN30/(AN31+AN32) -> 0 | AO36: =AO30/(AO31+AO32) -> 0 | AP36: =AP30/(AP31+AP32) -> 0 | AQ36: =AQ30/(AQ31+AQ32) -> 0 | AR36: =AR30/(AR31+AR32) -> 0 | AS36: =AS30/(AS31+AS32) -> 0 | AT36: =AT30/(AT31+AT32) -> 0 | AU36: =AU30/(AU31+AU32) -> 0 | AV36: =AV30/(AV31+AV32) -> 0 | AW36: =AW30/(AW31+AW32) -> 0 | AX36: =AX30/(AX31+AX32) -> 0 | AY36: =AY30/(AY31+AY32) -> 0 | AZ36: =AZ30/(AZ31+AZ32) -> 0 | BA36: =BA30/(BA31+BA32) -> 0 | BB36: =BB30/(BB31+BB32) -> 0 | BC36: =BC30/(BC31+BC32) -> 0 | BD36: =BD30/(BD31+BD32) -> 0 | BE36: =BE30/(BE31+BE32) -> 0 | BF36: =BF30/(BF31+BF32) -> 0 | BG36: =BG30/(BG31+BG32) -> 0 | BH36: =BH30/(BH31+BH32) -> 0 | BI36: =BI30/(BI31+BI32) -> 0 | BJ36: =BJ30/(BJ31+BJ32) -> 0 | BK36: =BK30/(BK31+BK32) -> 0 | BL36: =BL30/(BL31+BL32) -> 0 | BM36: =BM30/(BM31+BM32) -> 0 | BN36: =BN30/(BN31+BN32) -> 0 | BO36: =BO30/(BO31+BO32) -> 0 | BP36: =BP30/(BP31+BP32) -> 0 | BQ36: =BQ30/(BQ31+BQ32) -> 0 | BR36: =BR30/(BR31+BR32) -> 0 | BS36: =BS30/(BS31+BS32) -> 0 | BT36: =BT30/(BT31+BT32) -> 0 | BU36: =BU30/(BU31+BU32) -> 0 | BV36: =BV30/(BV31+BV32) -> 0 | BW36: =BW30/(BW31+BW32) -> 0 | BX36: =BX30/(BX31+BX32) -> 0 | BY36: =BY30/(BY31+BY32) -> 0 | BZ36: =BZ30/(BZ31+BZ32) -> 0 | CA36: =CA30/(CA31+CA32) -> 0 | CB36: =CB30/(CB31+CB32) -> 0 | CC36: =CC30/(CC31+CC32) -> 0 | CD36: =CD30/(CD31+CD32) -> 0 | CE36: =CE30/(CE31+CE32) -> 0 | CF36: =CF30/(CF31+CF32) -> 0 | CG36: =CG30/(CG31+CG32) -> 0 | CH36: =CH30/(CH31+CH32) -> 0 | CI36: =CI30/(CI31+CI32) -> 0 | CJ36: =CJ30/(CJ31+CJ32) -> 0 | CK36: =CK30/(CK31+CK32) -> 0 | CL36: =CL30/(CL31+CL32) -> 0 | CM36: =CM30/(CM31+CM32) -> 0 | CN36: =CN30/(CN31+CN32) -> 0 | CO36: =CO30/(CO31+CO32) -> 0 | CP36: =CP30/(CP31+CP32) -> 0 | CQ36: =CQ30/(CQ31+CQ32) -> 0 | CR36: =CR30/(CR31+CR32) -> 0 | CS36: =CS30/(CS31+CS32) -> 0 | CT36: =CT30/(CT31+CT32) -> 0 | CU36: =CU30/(CU31+CU32) -> 0 | CV36: =CV30/(CV31+CV32) -> 0 | CW36: =CW30/(CW31+CW32) -> 0 | CX36: =CX30/(CX31+CX32) -> 0 | CY36: =CY30/(CY31+CY32) -> 0 | CZ36: =CZ30/(CZ31+CZ32) -> 0 | DA36: =DA30/(DA31+DA32) -> 0
C37: Per Member Per Month
B38: 2.13 | C38: Allowed Claims | D38: =D26/D33 -> 721.0022 | E38: =E26/E33 -> 0 | F38: =F26/F33 -> 0 | G38: =G26/G33 -> 0 | H38: =H26/H33 -> 0 | I38: =I26/I33 -> 0 | J38: =J26/J33 -> 0 | K38: =K26/K33 -> 0 | L38: =L26/L33 -> 0 | M38: =M26/M33 -> 0 | N38: =N26/N33 -> 0 | O38: =O26/O33 -> 0 | P38: =P26/P33 -> 0 | Q38: =Q26/Q33 -> 0 | R38: =R26/R33 -> 0 | S38: =S26/S33 -> 0 | T38: =T26/T33 -> 0 | U38: =U26/U33 -> 0 | V38: =V26/V33 -> 0 | W38: =W26/W33 -> 0 | X38: =X26/X33 -> 0 | Y38: =Y26/Y33 -> 0 | Z38: =Z26/Z33 -> 0 | AA38: =AA26/AA33 -> 0 | AB38: =AB26/AB33 -> 0 | AC38: =AC26/AC33 -> 0 | AD38: =AD26/AD33 -> 0 | AE38: =AE26/AE33 -> 0 | AF38: =AF26/AF33 -> 0 | AG38: =AG26/AG33 -> 0 | AH38: =AH26/AH33 -> 0 | AI38: =AI26/AI33 -> 0 | AJ38: =AJ26/AJ33 -> 0 | AK38: =AK26/AK33 -> 0 | AL38: =AL26/AL33 -> 0 | AM38: =AM26/AM33 -> 0 | AN38: =AN26/AN33 -> 0 | AO38: =AO26/AO33 -> 0 | AP38: =AP26/AP33 -> 0 | AQ38: =AQ26/AQ33 -> 0 | AR38: =AR26/AR33 -> 0 | AS38: =AS26/AS33 -> 0 | AT38: =AT26/AT33 -> 0 | AU38: =AU26/AU33 -> 0 | AV38: =AV26/AV33 -> 0 | AW38: =AW26/AW33 -> 0 | AX38: =AX26/AX33 -> 0 | AY38: =AY26/AY33 -> 0 | AZ38: =AZ26/AZ33 -> 0 | BA38: =BA26/BA33 -> 0 | BB38: =BB26/BB33 -> 0 | BC38: =BC26/BC33 -> 0 | BD38: =BD26/BD33 -> 0 | BE38: =BE26/BE33 -> 0 | BF38: =BF26/BF33 -> 0 | BG38: =BG26/BG33 -> 0 | BH38: =BH26/BH33 -> 0 | BI38: =BI26/BI33 -> 0 | BJ38: =BJ26/BJ33 -> 0 | BK38: =BK26/BK33 -> 0 | BL38: =BL26/BL33 -> 0 | BM38: =BM26/BM33 -> 0 | BN38: =BN26/BN33 -> 0 | BO38: =BO26/BO33 -> 0 | BP38: =BP26/BP33 -> 0 | BQ38: =BQ26/BQ33 -> 0 | BR38: =BR26/BR33 -> 0 | BS38: =BS26/BS33 -> 0 | BT38: =BT26/BT33 -> 0 | BU38: =BU26/BU33 -> 0 | BV38: =BV26/BV33 -> 0 | BW38: =BW26/BW33 -> 0 | BX38: =BX26/BX33 -> 0 | BY38: =BY26/BY33 -> 0 | BZ38: =BZ26/BZ33 -> 0 | CA38: =CA26/CA33 -> 0 | CB38: =CB26/CB33 -> 0 | CC38: =CC26/CC33 -> 0 | CD38: =CD26/CD33 -> 0 | CE38: =CE26/CE33 -> 0 | CF38: =CF26/CF33 -> 0 | CG38: =CG26/CG33 -> 0 | CH38: =CH26/CH33 -> 0 | CI38: =CI26/CI33 -> 0 | CJ38: =CJ26/CJ33 -> 0 | CK38: =CK26/CK33 -> 0 | CL38: =CL26/CL33 -> 0 | CM38: =CM26/CM33 -> 0 | CN38: =CN26/CN33 -> 0 | CO38: =CO26/CO33 -> 0 | CP38: =CP26/CP33 -> 0 | CQ38: =CQ26/CQ33 -> 0 | CR38: =CR26/CR33 -> 0 | CS38: =CS26/CS33 -> 0 | CT38: =CT26/CT33 -> 0 | CU38: =CU26/CU33 -> 0 | CV38: =CV26/CV33 -> 0 | CW38: =CW26/CW33 -> 0 | CX38: =CX26/CX33 -> 0 | CY38: =CY26/CY33 -> 0 | CZ38: =CZ26/CZ33 -> 0 | DA38: =DA26/DA33 -> 0
B39: 2.14 | C39: Reinsurance | D39: =D27/D33 -> 0 | E39: =E27/E33 -> 0 | F39: =F27/F33 -> 0 | G39: =G27/G33 -> 0 | H39: =H27/H33 -> 0 | I39: =I27/I33 -> 0 | J39: =J27/J33 -> 0 | K39: =K27/K33 -> 0 | L39: =L27/L33 -> 0 | M39: =M27/M33 -> 0 | N39: =N27/N33 -> 0 | O39: =O27/O33 -> 0 | P39: =P27/P33 -> 0 | Q39: =Q27/Q33 -> 0 | R39: =R27/R33 -> 0 | S39: =S27/S33 -> 0 | T39: =T27/T33 -> 0 | U39: =U27/U33 -> 0 | V39: =V27/V33 -> 0 | W39: =W27/W33 -> 0 | X39: =X27/X33 -> 0 | Y39: =Y27/Y33 -> 0 | Z39: =Z27/Z33 -> 0 | AA39: =AA27/AA33 -> 0 | AB39: =AB27/AB33 -> 0 | AC39: =AC27/AC33 -> 0 | AD39: =AD27/AD33 -> 0 | AE39: =AE27/AE33 -> 0 | AF39: =AF27/AF33 -> 0 | AG39: =AG27/AG33 -> 0 | AH39: =AH27/AH33 -> 0 | AI39: =AI27/AI33 -> 0 | AJ39: =AJ27/AJ33 -> 0 | AK39: =AK27/AK33 -> 0 | AL39: =AL27/AL33 -> 0 | AM39: =AM27/AM33 -> 0 | AN39: =AN27/AN33 -> 0 | AO39: =AO27/AO33 -> 0 | AP39: =AP27/AP33 -> 0 | AQ39: =AQ27/AQ33 -> 0 | AR39: =AR27/AR33 -> 0 | AS39: =AS27/AS33 -> 0 | AT39: =AT27/AT33 -> 0 | AU39: =AU27/AU33 -> 0 | AV39: =AV27/AV33 -> 0 | AW39: =AW27/AW33 -> 0 | AX39: =AX27/AX33 -> 0 | AY39: =AY27/AY33 -> 0 | AZ39: =AZ27/AZ33 -> 0 | BA39: =BA27/BA33 -> 0 | BB39: =BB27/BB33 -> 0 | BC39: =BC27/BC33 -> 0 | BD39: =BD27/BD33 -> 0 | BE39: =BE27/BE33 -> 0 | BF39: =BF27/BF33 -> 0 | BG39: =BG27/BG33 -> 0 | BH39: =BH27/BH33 -> 0 | BI39: =BI27/BI33 -> 0 | BJ39: =BJ27/BJ33 -> 0 | BK39: =BK27/BK33 -> 0 | BL39: =BL27/BL33 -> 0 | BM39: =BM27/BM33 -> 0 | BN39: =BN27/BN33 -> 0 | BO39: =BO27/BO33 -> 0 | BP39: =BP27/BP33 -> 0 | BQ39: =BQ27/BQ33 -> 0 | BR39: =BR27/BR33 -> 0 | BS39: =BS27/BS33 -> 0 | BT39: =BT27/BT33 -> 0 | BU39: =BU27/BU33 -> 0 | BV39: =BV27/BV33 -> 0 | BW39: =BW27/BW33 -> 0 | BX39: =BX27/BX33 -> 0 | BY39: =BY27/BY33 -> 0 | BZ39: =BZ27/BZ33 -> 0 | CA39: =CA27/CA33 -> 0 | CB39: =CB27/CB33 -> 0 | CC39: =CC27/CC33 -> 0 | CD39: =CD27/CD33 -> 0 | CE39: =CE27/CE33 -> 0 | CF39: =CF27/CF33 -> 0 | CG39: =CG27/CG33 -> 0 | CH39: =CH27/CH33 -> 0 | CI39: =CI27/CI33 -> 0 | CJ39: =CJ27/CJ33 -> 0 | CK39: =CK27/CK33 -> 0 | CL39: =CL27/CL33 -> 0 | CM39: =CM27/CM33 -> 0 | CN39: =CN27/CN33 -> 0 | CO39: =CO27/CO33 -> 0 | CP39: =CP27/CP33 -> 0 | CQ39: =CQ27/CQ33 -> 0 | CR39: =CR27/CR33 -> 0 | CS39: =CS27/CS33 -> 0 | CT39: =CT27/CT33 -> 0 | CU39: =CU27/CU33 -> 0 | CV39: =CV27/CV33 -> 0 | CW39: =CW27/CW33 -> 0 | CX39: =CX27/CX33 -> 0 | CY39: =CY27/CY33 -> 0 | CZ39: =CZ27/CZ33 -> 0 | DA39: =DA27/DA33 -> 0
B40: 2.15 | C40: Member Cost Sharing | D40: =D28/D33 -> 139.544 | E40: =E28/E33 -> 0 | F40: =F28/F33 -> 0 | G40: =G28/G33 -> 0 | H40: =H28/H33 -> 0 | I40: =I28/I33 -> 0 | J40: =J28/J33 -> 0 | K40: =K28/K33 -> 0 | L40: =L28/L33 -> 0 | M40: =M28/M33 -> 0 | N40: =N28/N33 -> 0 | O40: =O28/O33 -> 0 | P40: =P28/P33 -> 0 | Q40: =Q28/Q33 -> 0 | R40: =R28/R33 -> 0 | S40: =S28/S33 -> 0 | T40: =T28/T33 -> 0 | U40: =U28/U33 -> 0 | V40: =V28/V33 -> 0 | W40: =W28/W33 -> 0 | X40: =X28/X33 -> 0 | Y40: =Y28/Y33 -> 0 | Z40: =Z28/Z33 -> 0 | AA40: =AA28/AA33 -> 0 | AB40: =AB28/AB33 -> 0 | AC40: =AC28/AC33 -> 0 | AD40: =AD28/AD33 -> 0 | AE40: =AE28/AE33 -> 0 | AF40: =AF28/AF33 -> 0 | AG40: =AG28/AG33 -> 0 | AH40: =AH28/AH33 -> 0 | AI40: =AI28/AI33 -> 0 | AJ40: =AJ28/AJ33 -> 0 | AK40: =AK28/AK33 -> 0 | AL40: =AL28/AL33 -> 0 | AM40: =AM28/AM33 -> 0 | AN40: =AN28/AN33 -> 0 | AO40: =AO28/AO33 -> 0 | AP40: =AP28/AP33 -> 0 | AQ40: =AQ28/AQ33 -> 0 | AR40: =AR28/AR33 -> 0 | AS40: =AS28/AS33 -> 0 | AT40: =AT28/AT33 -> 0 | AU40: =AU28/AU33 -> 0 | AV40: =AV28/AV33 -> 0 | AW40: =AW28/AW33 -> 0 | AX40: =AX28/AX33 -> 0 | AY40: =AY28/AY33 -> 0 | AZ40: =AZ28/AZ33 -> 0 | BA40: =BA28/BA33 -> 0 | BB40: =BB28/BB33 -> 0 | BC40: =BC28/BC33 -> 0 | BD40: =BD28/BD33 -> 0 | BE40: =BE28/BE33 -> 0 | BF40: =BF28/BF33 -> 0 | BG40: =BG28/BG33 -> 0 | BH40: =BH28/BH33 -> 0 | BI40: =BI28/BI33 -> 0 | BJ40: =BJ28/BJ33 -> 0 | BK40: =BK28/BK33 -> 0 | BL40: =BL28/BL33 -> 0 | BM40: =BM28/BM33 -> 0 | BN40: =BN28/BN33 -> 0 | BO40: =BO28/BO33 -> 0 | BP40: =BP28/BP33 -> 0 | BQ40: =BQ28/BQ33 -> 0 | BR40: =BR28/BR33 -> 0 | BS40: =BS28/BS33 -> 0 | BT40: =BT28/BT33 -> 0 | BU40: =BU28/BU33 -> 0 | BV40: =BV28/BV33 -> 0 | BW40: =BW28/BW33 -> 0 | BX40: =BX28/BX33 -> 0 | BY40: =BY28/BY33 -> 0 | BZ40: =BZ28/BZ33 -> 0 | CA40: =CA28/CA33 -> 0 | CB40: =CB28/CB33 -> 0 | CC40: =CC28/CC33 -> 0 | CD40: =CD28/CD33 -> 0 | CE40: =CE28/CE33 -> 0 | CF40: =CF28/CF33 -> 0 | CG40: =CG28/CG33 -> 0 | CH40: =CH28/CH33 -> 0 | CI40: =CI28/CI33 -> 0 | CJ40: =CJ28/CJ33 -> 0 | CK40: =CK28/CK33 -> 0 | CL40: =CL28/CL33 -> 0 | CM40: =CM28/CM33 -> 0 | CN40: =CN28/CN33 -> 0 | CO40: =CO28/CO33 -> 0 | CP40: =CP28/CP33 -> 0 | CQ40: =CQ28/CQ33 -> 0 | CR40: =CR28/CR33 -> 0 | CS40: =CS28/CS33 -> 0 | CT40: =CT28/CT33 -> 0 | CU40: =CU28/CU33 -> 0 | CV40: =CV28/CV33 -> 0 | CW40: =CW28/CW33 -> 0 | CX40: =CX28/CX33 -> 0 | CY40: =CY28/CY33 -> 0 | CZ40: =CZ28/CZ33 -> 0 | DA40: =DA28/DA33 -> 0
B41: 2.16 | C41: Cost Sharing Reduction | D41: =D29/D33 -> 0 | E41: =E29/E33 -> 0 | F41: =F29/F33 -> 0 | G41: =G29/G33 -> 0 | H41: =H29/H33 -> 0 | I41: =I29/I33 -> 0 | J41: =J29/J33 -> 0 | K41: =K29/K33 -> 0 | L41: =L29/L33 -> 0 | M41: =M29/M33 -> 0 | N41: =N29/N33 -> 0 | O41: =O29/O33 -> 0 | P41: =P29/P33 -> 0 | Q41: =Q29/Q33 -> 0 | R41: =R29/R33 -> 0 | S41: =S29/S33 -> 0 | T41: =T29/T33 -> 0 | U41: =U29/U33 -> 0 | V41: =V29/V33 -> 0 | W41: =W29/W33 -> 0 | X41: =X29/X33 -> 0 | Y41: =Y29/Y33 -> 0 | Z41: =Z29/Z33 -> 0 | AA41: =AA29/AA33 -> 0 | AB41: =AB29/AB33 -> 0 | AC41: =AC29/AC33 -> 0 | AD41: =AD29/AD33 -> 0 | AE41: =AE29/AE33 -> 0 | AF41: =AF29/AF33 -> 0 | AG41: =AG29/AG33 -> 0 | AH41: =AH29/AH33 -> 0 | AI41: =AI29/AI33 -> 0 | AJ41: =AJ29/AJ33 -> 0 | AK41: =AK29/AK33 -> 0 | AL41: =AL29/AL33 -> 0 | AM41: =AM29/AM33 -> 0 | AN41: =AN29/AN33 -> 0 | AO41: =AO29/AO33 -> 0 | AP41: =AP29/AP33 -> 0 | AQ41: =AQ29/AQ33 -> 0 | AR41: =AR29/AR33 -> 0 | AS41: =AS29/AS33 -> 0 | AT41: =AT29/AT33 -> 0 | AU41: =AU29/AU33 -> 0 | AV41: =AV29/AV33 -> 0 | AW41: =AW29/AW33 -> 0 | AX41: =AX29/AX33 -> 0 | AY41: =AY29/AY33 -> 0 | AZ41: =AZ29/AZ33 -> 0 | BA41: =BA29/BA33 -> 0 | BB41: =BB29/BB33 -> 0 | BC41: =BC29/BC33 -> 0 | BD41: =BD29/BD33 -> 0 | BE41: =BE29/BE33 -> 0 | BF41: =BF29/BF33 -> 0 | BG41: =BG29/BG33 -> 0 | BH41: =BH29/BH33 -> 0 | BI41: =BI29/BI33 -> 0 | BJ41: =BJ29/BJ33 -> 0 | BK41: =BK29/BK33 -> 0 | BL41: =BL29/BL33 -> 0 | BM41: =BM29/BM33 -> 0 | BN41: =BN29/BN33 -> 0 | BO41: =BO29/BO33 -> 0 | BP41: =BP29/BP33 -> 0 | BQ41: =BQ29/BQ33 -> 0 | BR41: =BR29/BR33 -> 0 | BS41: =BS29/BS33 -> 0 | BT41: =BT29/BT33 -> 0 | BU41: =BU29/BU33 -> 0 | BV41: =BV29/BV33 -> 0 | BW41: =BW29/BW33 -> 0 | BX41: =BX29/BX33 -> 0 | BY41: =BY29/BY33 -> 0 | BZ41: =BZ29/BZ33 -> 0 | CA41: =CA29/CA33 -> 0 | CB41: =CB29/CB33 -> 0 | CC41: =CC29/CC33 -> 0 | CD41: =CD29/CD33 -> 0 | CE41: =CE29/CE33 -> 0 | CF41: =CF29/CF33 -> 0 | CG41: =CG29/CG33 -> 0 | CH41: =CH29/CH33 -> 0 | CI41: =CI29/CI33 -> 0 | CJ41: =CJ29/CJ33 -> 0 | CK41: =CK29/CK33 -> 0 | CL41: =CL29/CL33 -> 0 | CM41: =CM29/CM33 -> 0 | CN41: =CN29/CN33 -> 0 | CO41: =CO29/CO33 -> 0 | CP41: =CP29/CP33 -> 0 | CQ41: =CQ29/CQ33 -> 0 | CR41: =CR29/CR33 -> 0 | CS41: =CS29/CS33 -> 0 | CT41: =CT29/CT33 -> 0 | CU41: =CU29/CU33 -> 0 | CV41: =CV29/CV33 -> 0 | CW41: =CW29/CW33 -> 0 | CX41: =CX29/CX33 -> 0 | CY41: =CY29/CY33 -> 0 | CZ41: =CZ29/CZ33 -> 0 | DA41: =DA29/DA33 -> 0
B42: 2.17 | C42: Incurred Claims | D42: =D30/D33 -> 581.4582 | E42: =E30/E33 -> 0 | F42: =F30/F33 -> 0 | G42: =G30/G33 -> 0 | H42: =H30/H33 -> 0 | I42: =I30/I33 -> 0 | J42: =J30/J33 -> 0 | K42: =K30/K33 -> 0 | L42: =L30/L33 -> 0 | M42: =M30/M33 -> 0 | N42: =N30/N33 -> 0 | O42: =O30/O33 -> 0 | P42: =P30/P33 -> 0 | Q42: =Q30/Q33 -> 0 | R42: =R30/R33 -> 0 | S42: =S30/S33 -> 0 | T42: =T30/T33 -> 0 | U42: =U30/U33 -> 0 | V42: =V30/V33 -> 0 | W42: =W30/W33 -> 0 | X42: =X30/X33 -> 0 | Y42: =Y30/Y33 -> 0 | Z42: =Z30/Z33 -> 0 | AA42: =AA30/AA33 -> 0 | AB42: =AB30/AB33 -> 0 | AC42: =AC30/AC33 -> 0 | AD42: =AD30/AD33 -> 0 | AE42: =AE30/AE33 -> 0 | AF42: =AF30/AF33 -> 0 | AG42: =AG30/AG33 -> 0 | AH42: =AH30/AH33 -> 0 | AI42: =AI30/AI33 -> 0 | AJ42: =AJ30/AJ33 -> 0 | AK42: =AK30/AK33 -> 0 | AL42: =AL30/AL33 -> 0 | AM42: =AM30/AM33 -> 0 | AN42: =AN30/AN33 -> 0 | AO42: =AO30/AO33 -> 0 | AP42: =AP30/AP33 -> 0 | AQ42: =AQ30/AQ33 -> 0 | AR42: =AR30/AR33 -> 0 | AS42: =AS30/AS33 -> 0 | AT42: =AT30/AT33 -> 0 | AU42: =AU30/AU33 -> 0 | AV42: =AV30/AV33 -> 0 | AW42: =AW30/AW33 -> 0 | AX42: =AX30/AX33 -> 0 | AY42: =AY30/AY33 -> 0 | AZ42: =AZ30/AZ33 -> 0 | BA42: =BA30/BA33 -> 0 | BB42: =BB30/BB33 -> 0 | BC42: =BC30/BC33 -> 0 | BD42: =BD30/BD33 -> 0 | BE42: =BE30/BE33 -> 0 | BF42: =BF30/BF33 -> 0 | BG42: =BG30/BG33 -> 0 | BH42: =BH30/BH33 -> 0 | BI42: =BI30/BI33 -> 0 | BJ42: =BJ30/BJ33 -> 0 | BK42: =BK30/BK33 -> 0 | BL42: =BL30/BL33 -> 0 | BM42: =BM30/BM33 -> 0 | BN42: =BN30/BN33 -> 0 | BO42: =BO30/BO33 -> 0 | BP42: =BP30/BP33 -> 0 | BQ42: =BQ30/BQ33 -> 0 | BR42: =BR30/BR33 -> 0 | BS42: =BS30/BS33 -> 0 | BT42: =BT30/BT33 -> 0 | BU42: =BU30/BU33 -> 0 | BV42: =BV30/BV33 -> 0 | BW42: =BW30/BW33 -> 0 | BX42: =BX30/BX33 -> 0 | BY42: =BY30/BY33 -> 0 | BZ42: =BZ30/BZ33 -> 0 | CA42: =CA30/CA33 -> 0 | CB42: =CB30/CB33 -> 0 | CC42: =CC30/CC33 -> 0 | CD42: =CD30/CD33 -> 0 | CE42: =CE30/CE33 -> 0 | CF42: =CF30/CF33 -> 0 | CG42: =CG30/CG33 -> 0 | CH42: =CH30/CH33 -> 0 | CI42: =CI30/CI33 -> 0 | CJ42: =CJ30/CJ33 -> 0 | CK42: =CK30/CK33 -> 0 | CL42: =CL30/CL33 -> 0 | CM42: =CM30/CM33 -> 0 | CN42: =CN30/CN33 -> 0 | CO42: =CO30/CO33 -> 0 | CP42: =CP30/CP33 -> 0 | CQ42: =CQ30/CQ33 -> 0 | CR42: =CR30/CR33 -> 0 | CS42: =CS30/CS33 -> 0 | CT42: =CT30/CT33 -> 0 | CU42: =CU30/CU33 -> 0 | CV42: =CV30/CV33 -> 0 | CW42: =CW30/CW33 -> 0 | CX42: =CX30/CX33 -> 0 | CY42: =CY30/CY33 -> 0 | CZ42: =CZ30/CZ33 -> 0 | DA42: =DA30/DA33 -> 0
B43: 2.18 | C43: Risk Adjustment Transfer Amount | D43: =D31/D33 -> -75.3194 | E43: =E31/E33 -> 0 | F43: =F31/F33 -> 0 | G43: =G31/G33 -> 0 | H43: =H31/H33 -> 0 | I43: =I31/I33 -> 0 | J43: =J31/J33 -> 0 | K43: =K31/K33 -> 0 | L43: =L31/L33 -> 0 | M43: =M31/M33 -> 0 | N43: =N31/N33 -> 0 | O43: =O31/O33 -> 0 | P43: =P31/P33 -> 0 | Q43: =Q31/Q33 -> 0 | R43: =R31/R33 -> 0 | S43: =S31/S33 -> 0 | T43: =T31/T33 -> 0 | U43: =U31/U33 -> 0 | V43: =V31/V33 -> 0 | W43: =W31/W33 -> 0 | X43: =X31/X33 -> 0 | Y43: =Y31/Y33 -> 0 | Z43: =Z31/Z33 -> 0 | AA43: =AA31/AA33 -> 0 | AB43: =AB31/AB33 -> 0 | AC43: =AC31/AC33 -> 0 | AD43: =AD31/AD33 -> 0 | AE43: =AE31/AE33 -> 0 | AF43: =AF31/AF33 -> 0 | AG43: =AG31/AG33 -> 0 | AH43: =AH31/AH33 -> 0 | AI43: =AI31/AI33 -> 0 | AJ43: =AJ31/AJ33 -> 0 | AK43: =AK31/AK33 -> 0 | AL43: =AL31/AL33 -> 0 | AM43: =AM31/AM33 -> 0 | AN43: =AN31/AN33 -> 0 | AO43: =AO31/AO33 -> 0 | AP43: =AP31/AP33 -> 0 | AQ43: =AQ31/AQ33 -> 0 | AR43: =AR31/AR33 -> 0 | AS43: =AS31/AS33 -> 0 | AT43: =AT31/AT33 -> 0 | AU43: =AU31/AU33 -> 0 | AV43: =AV31/AV33 -> 0 | AW43: =AW31/AW33 -> 0 | AX43: =AX31/AX33 -> 0 | AY43: =AY31/AY33 -> 0 | AZ43: =AZ31/AZ33 -> 0 | BA43: =BA31/BA33 -> 0 | BB43: =BB31/BB33 -> 0 | BC43: =BC31/BC33 -> 0 | BD43: =BD31/BD33 -> 0 | BE43: =BE31/BE33 -> 0 | BF43: =BF31/BF33 -> 0 | BG43: =BG31/BG33 -> 0 | BH43: =BH31/BH33 -> 0 | BI43: =BI31/BI33 -> 0 | BJ43: =BJ31/BJ33 -> 0 | BK43: =BK31/BK33 -> 0 | BL43: =BL31/BL33 -> 0 | BM43: =BM31/BM33 -> 0 | BN43: =BN31/BN33 -> 0 | BO43: =BO31/BO33 -> 0 | BP43: =BP31/BP33 -> 0 | BQ43: =BQ31/BQ33 -> 0 | BR43: =BR31/BR33 -> 0 | BS43: =BS31/BS33 -> 0 | BT43: =BT31/BT33 -> 0 | BU43: =BU31/BU33 -> 0 | BV43: =BV31/BV33 -> 0 | BW43: =BW31/BW33 -> 0 | BX43: =BX31/BX33 -> 0 | BY43: =BY31/BY33 -> 0 | BZ43: =BZ31/BZ33 -> 0 | CA43: =CA31/CA33 -> 0 | CB43: =CB31/CB33 -> 0 | CC43: =CC31/CC33 -> 0 | CD43: =CD31/CD33 -> 0 | CE43: =CE31/CE33 -> 0 | CF43: =CF31/CF33 -> 0 | CG43: =CG31/CG33 -> 0 | CH43: =CH31/CH33 -> 0 | CI43: =CI31/CI33 -> 0 | CJ43: =CJ31/CJ33 -> 0 | CK43: =CK31/CK33 -> 0 | CL43: =CL31/CL33 -> 0 | CM43: =CM31/CM33 -> 0 | CN43: =CN31/CN33 -> 0 | CO43: =CO31/CO33 -> 0 | CP43: =CP31/CP33 -> 0 | CQ43: =CQ31/CQ33 -> 0 | CR43: =CR31/CR33 -> 0 | CS43: =CS31/CS33 -> 0 | CT43: =CT31/CT33 -> 0 | CU43: =CU31/CU33 -> 0 | CV43: =CV31/CV33 -> 0 | CW43: =CW31/CW33 -> 0 | CX43: =CX31/CX33 -> 0 | CY43: =CY31/CY33 -> 0 | CZ43: =CZ31/CZ33 -> 0 | DA43: =DA31/DA33 -> 0
B44: 2.19 | C44: Premium | D44: =D32/D33 -> 768.5656 | E44: =E32/E33 -> 0 | F44: =F32/F33 -> 0 | G44: =G32/G33 -> 0 | H44: =H32/H33 -> 0 | I44: =I32/I33 -> 0 | J44: =J32/J33 -> 0 | K44: =K32/K33 -> 0 | L44: =L32/L33 -> 0 | M44: =M32/M33 -> 0 | N44: =N32/N33 -> 0 | O44: =O32/O33 -> 0 | P44: =P32/P33 -> 0 | Q44: =Q32/Q33 -> 0 | R44: =R32/R33 -> 0 | S44: =S32/S33 -> 0 | T44: =T32/T33 -> 0 | U44: =U32/U33 -> 0 | V44: =V32/V33 -> 0 | W44: =W32/W33 -> 0 | X44: =X32/X33 -> 0 | Y44: =Y32/Y33 -> 0 | Z44: =Z32/Z33 -> 0 | AA44: =AA32/AA33 -> 0 | AB44: =AB32/AB33 -> 0 | AC44: =AC32/AC33 -> 0 | AD44: =AD32/AD33 -> 0 | AE44: =AE32/AE33 -> 0 | AF44: =AF32/AF33 -> 0 | AG44: =AG32/AG33 -> 0 | AH44: =AH32/AH33 -> 0 | AI44: =AI32/AI33 -> 0 | AJ44: =AJ32/AJ33 -> 0 | AK44: =AK32/AK33 -> 0 | AL44: =AL32/AL33 -> 0 | AM44: =AM32/AM33 -> 0 | AN44: =AN32/AN33 -> 0 | AO44: =AO32/AO33 -> 0 | AP44: =AP32/AP33 -> 0 | AQ44: =AQ32/AQ33 -> 0 | AR44: =AR32/AR33 -> 0 | AS44: =AS32/AS33 -> 0 | AT44: =AT32/AT33 -> 0 | AU44: =AU32/AU33 -> 0 | AV44: =AV32/AV33 -> 0 | AW44: =AW32/AW33 -> 0 | AX44: =AX32/AX33 -> 0 | AY44: =AY32/AY33 -> 0 | AZ44: =AZ32/AZ33 -> 0 | BA44: =BA32/BA33 -> 0 | BB44: =BB32/BB33 -> 0 | BC44: =BC32/BC33 -> 0 | BD44: =BD32/BD33 -> 0 | BE44: =BE32/BE33 -> 0 | BF44: =BF32/BF33 -> 0 | BG44: =BG32/BG33 -> 0 | BH44: =BH32/BH33 -> 0 | BI44: =BI32/BI33 -> 0 | BJ44: =BJ32/BJ33 -> 0 | BK44: =BK32/BK33 -> 0 | BL44: =BL32/BL33 -> 0 | BM44: =BM32/BM33 -> 0 | BN44: =BN32/BN33 -> 0 | BO44: =BO32/BO33 -> 0 | BP44: =BP32/BP33 -> 0 | BQ44: =BQ32/BQ33 -> 0 | BR44: =BR32/BR33 -> 0 | BS44: =BS32/BS33 -> 0 | BT44: =BT32/BT33 -> 0 | BU44: =BU32/BU33 -> 0 | BV44: =BV32/BV33 -> 0 | BW44: =BW32/BW33 -> 0 | BX44: =BX32/BX33 -> 0 | BY44: =BY32/BY33 -> 0 | BZ44: =BZ32/BZ33 -> 0 | CA44: =CA32/CA33 -> 0 | CB44: =CB32/CB33 -> 0 | CC44: =CC32/CC33 -> 0 | CD44: =CD32/CD33 -> 0 | CE44: =CE32/CE33 -> 0 | CF44: =CF32/CF33 -> 0 | CG44: =CG32/CG33 -> 0 | CH44: =CH32/CH33 -> 0 | CI44: =CI32/CI33 -> 0 | CJ44: =CJ32/CJ33 -> 0 | CK44: =CK32/CK33 -> 0 | CL44: =CL32/CL33 -> 0 | CM44: =CM32/CM33 -> 0 | CN44: =CN32/CN33 -> 0 | CO44: =CO32/CO33 -> 0 | CP44: =CP32/CP33 -> 0 | CQ44: =CQ32/CQ33 -> 0 | CR44: =CR32/CR33 -> 0 | CS44: =CS32/CS33 -> 0 | CT44: =CT32/CT33 -> 0 | CU44: =CU32/CU33 -> 0 | CV44: =CV32/CV33 -> 0 | CW44: =CW32/CW33 -> 0 | CX44: =CX32/CX33 -> 0 | CY44: =CY32/CY33 -> 0 | CZ44: =CZ32/CZ33 -> 0 | DA44: =DA32/DA33 -> 0
C46: Section III: Plan Adjustment Factors
B47: 3.1 | C47: Plan ID (Standard Component ID) | E47: =E13 -> 0 | F47: =F13 -> 0 | G47: =G13 -> 0 | H47: =H13 -> 0 | I47: =I13 -> 0 | J47: =J13 -> 0 | K47: =K13 -> 0 | L47: =L13 -> 0 | M47: =M13 -> 0 | N47: =N13 -> 0 | O47: =O13 -> 0 | P47: =P13 -> 0 | Q47: =Q13 -> 0 | R47: =R13 -> 0 | S47: =S13 -> 0 | T47: =T13 -> 0 | U47: =U13 -> 0 | V47: =V13 -> 0 | W47: =W13 -> 0 | X47: =X13 -> 0 | Y47: =Y13 -> 0 | Z47: =Z13 -> 0 | AA47: =AA13 -> 0 | AB47: =AB13 -> 0 | AC47: =AC13 -> 0 | AD47: =AD13 -> 0 | AE47: =AE13 -> 0 | AF47: =AF13 -> 0 | AG47: =AG13 -> 0 | AH47: =AH13 -> 0 | AI47: =AI13 -> 0 | AJ47: =AJ13 -> 0 | AK47: =AK13 -> 0 | AL47: =AL13 -> 0 | AM47: =AM13 -> 0 | AN47: =AN13 -> 0 | AO47: =AO13 -> 0 | AP47: =AP13 -> 0 | AQ47: =AQ13 -> 0 | AR47: =AR13 -> 0 | AS47: =AS13 -> 0 | AT47: =AT13 -> 0 | AU47: =AU13 -> 0 | AV47: =AV13 -> 0 | AW47: =AW13 -> 0 | AX47: =AX13 -> 0 | AY47: =AY13 -> 0 | AZ47: =AZ13 -> 0 | BA47: =BA13 -> 0 | BB47: =BB13 -> 0 | BC47: =BC13 -> 0 | BD47: =BD13 -> 0 | BE47: =BE13 -> 0 | BF47: =BF13 -> 0 | BG47: =BG13 -> 0 | BH47: =BH13 -> 0 | BI47: =BI13 -> 0 | BJ47: =BJ13 -> 0 | BK47: =BK13 -> 0 | BL47: =BL13 -> 0 | BM47: =BM13 -> 0 | BN47: =BN13 -> 0 | BO47: =BO13 -> 0 | BP47: =BP13 -> 0 | BQ47: =BQ13 -> 0 | BR47: =BR13 -> 0 | BS47: =BS13 -> 0 | BT47: =BT13 -> 0 | BU47: =BU13 -> 0 | BV47: =BV13 -> 0 | BW47: =BW13 -> 0 | BX47: =BX13 -> 0 | BY47: =BY13 -> 0 | BZ47: =BZ13 -> 0 | CA47: =CA13 -> 0 | CB47: =CB13 -> 0 | CC47: =CC13 -> 0 | CD47: =CD13 -> 0 | CE47: =CE13 -> 0 | CF47: =CF13 -> 0 | CG47: =CG13 -> 0 | CH47: =CH13 -> 0 | CI47: =CI13 -> 0 | CJ47: =CJ13 -> 0 | CK47: =CK13 -> 0 | CL47: =CL13 -> 0 | CM47: =CM13 -> 0 | CN47: =CN13 -> 0 | CO47: =CO13 -> 0 | CP47: =CP13 -> 0 | CQ47: =CQ13 -> 0 | CR47: =CR13 -> 0 | CS47: =CS13 -> 0 | CT47: =CT13 -> 0 | CU47: =CU13 -> 0 | CV47: =CV13 -> 0 | CW47: =CW13 -> 0 | CX47: =CX13 -> 0 | CY47: =CY13 -> 0 | CZ47: =CZ13 -> 0 | DA47: =DA13 -> 0
B48: 3.2 | C48: Market Adjusted Index Rate | E48: ='Wksh 1 - Market Experience'!F46 -> 0
B49: 3.3 | C49: AV and Cost Sharing Design of Plan | E49: 0 | F49: 0 | G49: 0.8614 | H49: 0.8194 | I49: 0.8421 | J49: 0.8417 | K49: 0.8338 | L49: 0.8329 | M49: 0.8092 | N49: 0.7172 | O49: 0.8915 | P49: 0.8341 | Q49: 1.042 | R49: 0.9839 | S49: 0.8535 | T49: 0.8258 | U49: 0.858 | V49: 0.8228 | W49: 0.8121 | X49: 0.7567 | Y49: 0.873 | Z49: 0 | AA49: 0 | AB49: 0 | AC49: 0 | AD49: 0 | AE49: 0 | AF49: 0 | AG49: 0 | AH49: 0 | AI49: 0 | AJ49: 0 | AK49: 0 | AL49: 0 | AM49: 0 | AN49: 0 | AO49: 0 | AP49: 0 | AQ49: 0 | AR49: 0 | AS49: 0 | AT49: 0 | AU49: 0 | AV49: 0 | AW49: 0 | AX49: 0 | AY49: 0 | AZ49: 0 | BA49: 0 | BB49: 0 | BC49: 0 | BD49: 0.7471 | BE49: 0.8511 | BF49: 0.8314 | BG49: 0.8235 | BH49: 0.8226 | BI49: 0.8081 | BJ49: 0.7981 | BK49: 0.7066 | BL49: 0.882 | BM49: 0.8242 | BN49: 1.0316 | BO49: 0.9737 | BP49: 0.8433 | BQ49: 0.8156 | BR49: 0.8484 | BS49: 0.8325 | BT49: 0.8132 | BU49: 0.8025 | BV49: 0.8628 | BW49: 0 | BX49: 0 | BY49: 0 | BZ49: 0 | CA49: 0 | CB49: 0 | CC49: 0 | CD49: 0 | CE49: 0 | CF49: 0 | CG49: 0 | CH49: 0 | CI49: 0 | CJ49: 0 | CK49: 0 | CL49: 0 | CM49: 0 | CN49: 0 | CO49: 0 | CP49: 0 | CQ49: 0 | CR49: 0 | CS49: 0 | CT49: 0 | CU49: 0 | CV49: 0 | CW49: 0 | CX49: 0 | CY49: 0 | CZ49: 0 | DA49: 0
B50: 3.4 | C50: Provider Network Adjustment | E50: 1 | F50: 1 | G50: 1 | H50: 1 | I50: 1 | J50: 1 | K50: 1 | L50: 1 | M50: 1 | N50: 1 | O50: 1 | P50: 1 | Q50: 1 | R50: 1 | S50: 1 | T50: 1 | U50: 1 | V50: 1 | W50: 1 | X50: 1 | Y50: 1 | Z50: 1 | AA50: 1 | AB50: 1 | AC50: 1 | AD50: 1 | AE50: 1 | AF50: 1 | AG50: 1 | AH50: 1 | AI50: 1 | AJ50: 1 | AK50: 1 | AL50: 1 | AM50: 1 | AN50: 1 | AO50: 1 | AP50: 1 | AQ50: 1 | AR50: 1 | AS50: 1 | AT50: 1 | AU50: 1 | AV50: 1 | AW50: 1 | AX50: 1 | AY50: 1 | AZ50: 1 | BA50: 1 | BB50: 1 | BC50: 1 | BD50: 1 | BE50: 1 | BF50: 1 | BG50: 1 | BH50: 1 | BI50: 1 | BJ50: 1 | BK50: 1 | BL50: 1 | BM50: 1 | BN50: 1 | BO50: 1 | BP50: 1 | BQ50: 1 | BR50: 1 | BS50: 1 | BT50: 1 | BU50: 1 | BV50: 1 | BW50: 1 | BX50: 1 | BY50: 1 | BZ50: 1 | CA50: 1 | CB50: 1 | CC50: 1 | CD50: 1 | CE50: 1 | CF50: 1 | CG50: 1 | CH50: 1 | CI50: 1 | CJ50: 1 | CK50: 1 | CL50: 1 | CM50: 1 | CN50: 1 | CO50: 1 | CP50: 1 | CQ50: 1 | CR50: 1 | CS50: 1 | CT50: 1 | CU50: 1 | CV50: 1 | CW50: 1 | CX50: 1 | CY50: 1 | CZ50: 1 | DA50: 1
B51: 3.5 | C51: Benefits in Addition to EHB | E51: 1 | F51: 1 | G51: 1 | H51: 1 | I51: 1 | J51: 1 | K51: 1 | L51: 1 | M51: 1 | N51: 1 | O51: 1 | P51: 1 | Q51: 1 | R51: 1 | S51: 1 | T51: 1 | U51: 1 | V51: 1 | W51: 1 | X51: 1 | Y51: 1 | Z51: 1 | AA51: 1 | AB51: 1 | AC51: 1 | AD51: 1 | AE51: 1 | AF51: 1 | AG51: 1 | AH51: 1 | AI51: 1 | AJ51: 1 | AK51: 1 | AL51: 1 | AM51: 1 | AN51: 1 | AO51: 1 | AP51: 1 | AQ51: 1 | AR51: 1 | AS51: 1 | AT51: 1 | AU51: 1 | AV51: 1 | AW51: 1 | AX51: 1 | AY51: 1 | AZ51: 1 | BA51: 1 | BB51: 1 | BC51: 1 | BD51: 1 | BE51: 1 | BF51: 1 | BG51: 1 | BH51: 1 | BI51: 1 | BJ51: 1 | BK51: 1 | BL51: 1 | BM51: 1 | BN51: 1 | BO51: 1 | BP51: 1 | BQ51: 1 | BR51: 1 | BS51: 1 | BT51: 1 | BU51: 1 | BV51: 1 | BW51: 1 | BX51: 1 | BY51: 1 | BZ51: 1 | CA51: 1 | CB51: 1 | CC51: 1 | CD51: 1 | CE51: 1 | CF51: 1 | CG51: 1 | CH51: 1 | CI51: 1 | CJ51: 1 | CK51: 1 | CL51: 1 | CM51: 1 | CN51: 1 | CO51: 1 | CP51: 1 | CQ51: 1 | CR51: 1 | CS51: 1 | CT51: 1 | CU51: 1 | CV51: 1 | CW51: 1 | CX51: 1 | CY51: 1 | CZ51: 1 | DA51: 1
C52: Administrative Costs
B53: 3.6 | C53: Administrative Expense | E53: 0 | F53: 0 | G53: 0.0751 | H53: 0.0782 | I53: 0.0764 | J53: 0.0765 | K53: 0.0771 | L53: 0.0771 | M53: 0.079 | N53: 0.087 | O53: 0.0729 | P53: 0.077 | Q53: 0.0639 | R53: 0.0671 | S53: 0.0755 | T53: 0.0777 | U53: 0.0753 | V53: 0.078 | W53: 0.0787 | X53: 0.0834 | Y53: 0.0741 | Z53: 0 | AA53: 0 | AB53: 0 | AC53: 0 | AD53: 0 | AE53: 0 | AF53: 0 | AG53: 0 | AH53: 0 | AI53: 0 | AJ53: 0 | AK53: 0 | AL53: 0 | AM53: 0 | AN53: 0 | AO53: 0 | AP53: 0 | AQ53: 0 | AR53: 0 | AS53: 0 | AT53: 0 | AU53: 0 | AV53: 0 | AW53: 0 | AX53: 0 | AY53: 0 | AZ53: 0 | BA53: 0 | BB53: 0 | BC53: 0 | BD53: 0.0842 | BE53: 0.0757 | BF53: 0.0772 | BG53: 0.0778 | BH53: 0.0779 | BI53: 0.0791 | BJ53: 0.0799 | BK53: 0.0881 | BL53: 0.0736 | BM53: 0.0777 | BN53: 0.0646 | BO53: 0.0677 | BP53: 0.0764 | BQ53: 0.0784 | BR53: 0.0759 | BS53: 0.0771 | BT53: 0.0786 | BU53: 0.0795 | BV53: 0.0749 | BW53: 0 | BX53: 0 | BY53: 0 | BZ53: 0 | CA53: 0 | CB53: 0 | CC53: 0 | CD53: 0 | CE53: 0 | CF53: 0 | CG53: 0 | CH53: 0 | CI53: 0 | CJ53: 0 | CK53: 0 | CL53: 0 | CM53: 0 | CN53: 0 | CO53: 0 | CP53: 0 | CQ53: 0 | CR53: 0 | CS53: 0 | CT53: 0 | CU53: 0 | CV53: 0 | CW53: 0 | CX53: 0 | CY53: 0 | CZ53: 0 | DA53: 0
B54: 3.7 | C54: Taxes and Fees | E54: 0 | F54: 0 | G54: 0.0338 | H54: 0.0352 | I54: 0.0345 | J54: 0.0345 | K54: 0.0347 | L54: 0.0348 | M54: 0.0356 | N54: 0.0392 | O54: 0.0329 | P54: 0.0347 | Q54: 0.0289 | R54: 0.0303 | S54: 0.0341 | T54: 0.035 | U54: 0.0339 | V54: 0.0351 | W54: 0.0355 | X54: 0.0376 | Y54: 0.0335 | Z54: 0 | AA54: 0 | AB54: 0 | AC54: 0 | AD54: 0 | AE54: 0 | AF54: 0 | AG54: 0 | AH54: 0 | AI54: 0 | AJ54: 0 | AK54: 0 | AL54: 0 | AM54: 0 | AN54: 0 | AO54: 0 | AP54: 0 | AQ54: 0 | AR54: 0 | AS54: 0 | AT54: 0 | AU54: 0 | AV54: 0 | AW54: 0 | AX54: 0 | AY54: 0 | AZ54: 0 | BA54: 0 | BB54: 0 | BC54: 0 | BD54: 0.038 | BE54: 0.0342 | BF54: 0.0348 | BG54: 0.0351 | BH54: 0.0351 | BI54: 0.0356 | BJ54: 0.036 | BK54: 0.0397 | BL54: 0.0332 | BM54: 0.0351 | BN54: 0.0291 | BO54: 0.0306 | BP54: 0.0344 | BQ54: 0.0354 | BR54: 0.0343 | BS54: 0.0348 | BT54: 0.0355 | BU54: 0.0359 | BV54: 0.0338 | BW54: 0 | BX54: 0 | BY54: 0 | BZ54: 0 | CA54: 0 | CB54: 0 | CC54: 0 | CD54: 0 | CE54: 0 | CF54: 0 | CG54: 0 | CH54: 0 | CI54: 0 | CJ54: 0 | CK54: 0 | CL54: 0 | CM54: 0 | CN54: 0 | CO54: 0 | CP54: 0 | CQ54: 0 | CR54: 0 | CS54: 0 | CT54: 0 | CU54: 0 | CV54: 0 | CW54: 0 | CX54: 0 | CY54: 0 | CZ54: 0 | DA54: 0
B55: 3.8 | C55: Profit & Risk Load | E55: 0 | F55: 0 | G55: 0.0685 | H55: 0.0714 | I55: 0.0698 | J55: 0.0698 | K55: 0.0704 | L55: 0.0704 | M55: 0.0721 | N55: 0.0795 | O55: 0.0666 | P55: 0.0704 | Q55: 0.0585 | R55: 0.0614 | S55: 0.0691 | T55: 0.0709 | U55: 0.0688 | V55: 0.0711 | W55: 0.0719 | X55: 0.0761 | Y55: 0.0678 | Z55: 0 | AA55: 0 | AB55: 0 | AC55: 0 | AD55: 0 | AE55: 0 | AF55: 0 | AG55: 0 | AH55: 0 | AI55: 0 | AJ55: 0 | AK55: 0 | AL55: 0 | AM55: 0 | AN55: 0 | AO55: 0 | AP55: 0 | AQ55: 0 | AR55: 0 | AS55: 0 | AT55: 0 | AU55: 0 | AV55: 0 | AW55: 0 | AX55: 0 | AY55: 0 | AZ55: 0 | BA55: 0 | BB55: 0 | BC55: 0 | BD55: 0.0769 | BE55: 0.0692 | BF55: 0.0706 | BG55: 0.0711 | BH55: 0.0712 | BI55: 0.0722 | BJ55: 0.0729 | BK55: 0.0804 | BL55: 0.0672 | BM55: 0.0711 | BN55: 0.0589 | BO55: 0.0619 | BP55: 0.0697 | BQ55: 0.0717 | BR55: 0.0694 | BS55: 0.0705 | BT55: 0.0718 | BU55: 0.0726 | BV55: 0.0684 | BW55: 0 | BX55: 0 | BY55: 0 | BZ55: 0 | CA55: 0 | CB55: 0 | CC55: 0 | CD55: 0 | CE55: 0 | CF55: 0 | CG55: 0 | CH55: 0 | CI55: 0 | CJ55: 0 | CK55: 0 | CL55: 0 | CM55: 0 | CN55: 0 | CO55: 0 | CP55: 0 | CQ55: 0 | CR55: 0 | CS55: 0 | CT55: 0 | CU55: 0 | CV55: 0 | CW55: 0 | CX55: 0 | CY55: 0 | CZ55: 0 | DA55: 0
B56: 3.9 | C56: Catastrophic Adjustment | E56: 1 | F56: 1 | G56: 1 | H56: 1 | I56: 1 | J56: 1 | K56: 1 | L56: 1 | M56: 1 | N56: 1 | O56: 1 | P56: 1 | Q56: 1 | R56: 1 | S56: 1 | T56: 1 | U56: 1 | V56: 1 | W56: 1 | X56: 1 | Y56: 1 | Z56: 1 | AA56: 1 | AB56: 1 | AC56: 1 | AD56: 1 | AE56: 1 | AF56: 1 | AG56: 1 | AH56: 1 | AI56: 1 | AJ56: 1 | AK56: 1 | AL56: 1 | AM56: 1 | AN56: 1 | AO56: 1 | AP56: 1 | AQ56: 1 | AR56: 1 | AS56: 1 | AT56: 1 | AU56: 1 | AV56: 1 | AW56: 1 | AX56: 1 | AY56: 1 | AZ56: 1 | BA56: 1 | BB56: 1 | BC56: 1 | BD56: 1 | BE56: 1 | BF56: 1 | BG56: 1 | BH56: 1 | BI56: 1 | BJ56: 1 | BK56: 1 | BL56: 1 | BM56: 1 | BN56: 1 | BO56: 1 | BP56: 1 | BQ56: 1 | BR56: 1 | BS56: 1 | BT56: 1 | BU56: 1 | BV56: 1 | BW56: 1 | BX56: 1 | BY56: 1 | BZ56: 1 | CA56: 1 | CB56: 1 | CC56: 1 | CD56: 1 | CE56: 1 | CF56: 1 | CG56: 1 | CH56: 1 | CI56: 1 | CJ56: 1 | CK56: 1 | CL56: 1 | CM56: 1 | CN56: 1 | CO56: 1 | CP56: 1 | CQ56: 1 | CR56: 1 | CS56: 1 | CT56: 1 | CU56: 1 | CV56: 1 | CW56: 1 | CX56: 1 | CY56: 1 | CZ56: 1 | DA56: 1
B57: 3.10 | C57: Plan Adjusted Index Rate | E57: =($E$48*PRODUCT(E49:E51)*E56)/(1-SUM(E53:E55)) -> 0 | F57: =($E$48*PRODUCT(F49:F51)*F56)/(1-SUM(F53:F55)) -> 0 | G57: =($E$48*PRODUCT(G49:G51)*G56)/(1-SUM(G53:G55)) -> 0 | H57: =($E$48*PRODUCT(H49:H51)*H56)/(1-SUM(H53:H55)) -> 0 | I57: =($E$48*PRODUCT(I49:I51)*I56)/(1-SUM(I53:I55)) -> 0 | J57: =($E$48*PRODUCT(J49:J51)*J56)/(1-SUM(J53:J55)) -> 0 | K57: =($E$48*PRODUCT(K49:K51)*K56)/(1-SUM(K53:K55)) -> 0 | L57: =($E$48*PRODUCT(L49:L51)*L56)/(1-SUM(L53:L55)) -> 0 | M57: =($E$48*PRODUCT(M49:M51)*M56)/(1-SUM(M53:M55)) -> 0 | N57: =($E$48*PRODUCT(N49:N51)*N56)/(1-SUM(N53:N55)) -> 0 | O57: =($E$48*PRODUCT(O49:O51)*O56)/(1-SUM(O53:O55)) -> 0 | P57: =($E$48*PRODUCT(P49:P51)*P56)/(1-SUM(P53:P55)) -> 0 | Q57: =($E$48*PRODUCT(Q49:Q51)*Q56)/(1-SUM(Q53:Q55)) -> 0 | R57: =($E$48*PRODUCT(R49:R51)*R56)/(1-SUM(R53:R55)) -> 0 | S57: =($E$48*PRODUCT(S49:S51)*S56)/(1-SUM(S53:S55)) -> 0 | T57: =($E$48*PRODUCT(T49:T51)*T56)/(1-SUM(T53:T55)) -> 0 | U57: =($E$48*PRODUCT(U49:U51)*U56)/(1-SUM(U53:U55)) -> 0 | V57: =($E$48*PRODUCT(V49:V51)*V56)/(1-SUM(V53:V55)) -> 0 | W57: =($E$48*PRODUCT(W49:W51)*W56)/(1-SUM(W53:W55)) -> 0 | X57: =($E$48*PRODUCT(X49:X51)*X56)/(1-SUM(X53:X55)) -> 0 | Y57: =($E$48*PRODUCT(Y49:Y51)*Y56)/(1-SUM(Y53:Y55)) -> 0 | Z57: =($E$48*PRODUCT(Z49:Z51)*Z56)/(1-SUM(Z53:Z55)) -> 0 | AA57: =($E$48*PRODUCT(AA49:AA51)*AA56)/(1-SUM(AA53:AA55)) -> 0 | AB57: =($E$48*PRODUCT(AB49:AB51)*AB56)/(1-SUM(AB53:AB55)) -> 0 | AC57: =($E$48*PRODUCT(AC49:AC51)*AC56)/(1-SUM(AC53:AC55)) -> 0 | AD57: =($E$48*PRODUCT(AD49:AD51)*AD56)/(1-SUM(AD53:AD55)) -> 0 | AE57: =($E$48*PRODUCT(AE49:AE51)*AE56)/(1-SUM(AE53:AE55)) -> 0 | AF57: =($E$48*PRODUCT(AF49:AF51)*AF56)/(1-SUM(AF53:AF55)) -> 0 | AG57: =($E$48*PRODUCT(AG49:AG51)*AG56)/(1-SUM(AG53:AG55)) -> 0 | AH57: =($E$48*PRODUCT(AH49:AH51)*AH56)/(1-SUM(AH53:AH55)) -> 0 | AI57: =($E$48*PRODUCT(AI49:AI51)*AI56)/(1-SUM(AI53:AI55)) -> 0 | AJ57: =($E$48*PRODUCT(AJ49:AJ51)*AJ56)/(1-SUM(AJ53:AJ55)) -> 0 | AK57: =($E$48*PRODUCT(AK49:AK51)*AK56)/(1-SUM(AK53:AK55)) -> 0 | AL57: =($E$48*PRODUCT(AL49:AL51)*AL56)/(1-SUM(AL53:AL55)) -> 0 | AM57: =($E$48*PRODUCT(AM49:AM51)*AM56)/(1-SUM(AM53:AM55)) -> 0 | AN57: =($E$48*PRODUCT(AN49:AN51)*AN56)/(1-SUM(AN53:AN55)) -> 0 | AO57: =($E$48*PRODUCT(AO49:AO51)*AO56)/(1-SUM(AO53:AO55)) -> 0 | AP57: =($E$48*PRODUCT(AP49:AP51)*AP56)/(1-SUM(AP53:AP55)) -> 0 | AQ57: =($E$48*PRODUCT(AQ49:AQ51)*AQ56)/(1-SUM(AQ53:AQ55)) -> 0 | AR57: =($E$48*PRODUCT(AR49:AR51)*AR56)/(1-SUM(AR53:AR55)) -> 0 | AS57: =($E$48*PRODUCT(AS49:AS51)*AS56)/(1-SUM(AS53:AS55)) -> 0 | AT57: =($E$48*PRODUCT(AT49:AT51)*AT56)/(1-SUM(AT53:AT55)) -> 0 | AU57: =($E$48*PRODUCT(AU49:AU51)*AU56)/(1-SUM(AU53:AU55)) -> 0 | AV57: =($E$48*PRODUCT(AV49:AV51)*AV56)/(1-SUM(AV53:AV55)) -> 0 | AW57: =($E$48*PRODUCT(AW49:AW51)*AW56)/(1-SUM(AW53:AW55)) -> 0 | AX57: =($E$48*PRODUCT(AX49:AX51)*AX56)/(1-SUM(AX53:AX55)) -> 0 | AY57: =($E$48*PRODUCT(AY49:AY51)*AY56)/(1-SUM(AY53:AY55)) -> 0 | AZ57: =($E$48*PRODUCT(AZ49:AZ51)*AZ56)/(1-SUM(AZ53:AZ55)) -> 0 | BA57: =($E$48*PRODUCT(BA49:BA51)*BA56)/(1-SUM(BA53:BA55)) -> 0 | BB57: =($E$48*PRODUCT(BB49:BB51)*BB56)/(1-SUM(BB53:BB55)) -> 0 | BC57: =($E$48*PRODUCT(BC49:BC51)*BC56)/(1-SUM(BC53:BC55)) -> 0 | BD57: =($E$48*PRODUCT(BD49:BD51)*BD56)/(1-SUM(BD53:BD55)) -> 0 | BE57: =($E$48*PRODUCT(BE49:BE51)*BE56)/(1-SUM(BE53:BE55)) -> 0 | BF57: =($E$48*PRODUCT(BF49:BF51)*BF56)/(1-SUM(BF53:BF55)) -> 0 | BG57: =($E$48*PRODUCT(BG49:BG51)*BG56)/(1-SUM(BG53:BG55)) -> 0 | BH57: =($E$48*PRODUCT(BH49:BH51)*BH56)/(1-SUM(BH53:BH55)) -> 0 | BI57: =($E$48*PRODUCT(BI49:BI51)*BI56)/(1-SUM(BI53:BI55)) -> 0 | BJ57: =($E$48*PRODUCT(BJ49:BJ51)*BJ56)/(1-SUM(BJ53:BJ55)) -> 0 | BK57: =($E$48*PRODUCT(BK49:BK51)*BK56)/(1-SUM(BK53:BK55)) -> 0 | BL57: =($E$48*PRODUCT(BL49:BL51)*BL56)/(1-SUM(BL53:BL55)) -> 0 | BM57: =($E$48*PRODUCT(BM49:BM51)*BM56)/(1-SUM(BM53:BM55)) -> 0 | BN57: =($E$48*PRODUCT(BN49:BN51)*BN56)/(1-SUM(BN53:BN55)) -> 0 | BO57: =($E$48*PRODUCT(BO49:BO51)*BO56)/(1-SUM(BO53:BO55)) -> 0 | BP57: =($E$48*PRODUCT(BP49:BP51)*BP56)/(1-SUM(BP53:BP55)) -> 0 | BQ57: =($E$48*PRODUCT(BQ49:BQ51)*BQ56)/(1-SUM(BQ53:BQ55)) -> 0 | BR57: =($E$48*PRODUCT(BR49:BR51)*BR56)/(1-SUM(BR53:BR55)) -> 0 | BS57: =($E$48*PRODUCT(BS49:BS51)*BS56)/(1-SUM(BS53:BS55)) -> 0 | BT57: =($E$48*PRODUCT(BT49:BT51)*BT56)/(1-SUM(BT53:BT55)) -> 0 | BU57: =($E$48*PRODUCT(BU49:BU51)*BU56)/(1-SUM(BU53:BU55)) -> 0 | BV57: =($E$48*PRODUCT(BV49:BV51)*BV56)/(1-SUM(BV53:BV55)) -> 0 | BW57: =($E$48*PRODUCT(BW49:BW51)*BW56)/(1-SUM(BW53:BW55)) -> 0 | BX57: =($E$48*PRODUCT(BX49:BX51)*BX56)/(1-SUM(BX53:BX55)) -> 0 | BY57: =($E$48*PRODUCT(BY49:BY51)*BY56)/(1-SUM(BY53:BY55)) -> 0 | BZ57: =($E$48*PRODUCT(BZ49:BZ51)*BZ56)/(1-SUM(BZ53:BZ55)) -> 0 | CA57: =($E$48*PRODUCT(CA49:CA51)*CA56)/(1-SUM(CA53:CA55)) -> 0 | CB57: =($E$48*PRODUCT(CB49:CB51)*CB56)/(1-SUM(CB53:CB55)) -> 0 | CC57: =($E$48*PRODUCT(CC49:CC51)*CC56)/(1-SUM(CC53:CC55)) -> 0 | CD57: =($E$48*PRODUCT(CD49:CD51)*CD56)/(1-SUM(CD53:CD55)) -> 0 | CE57: =($E$48*PRODUCT(CE49:CE51)*CE56)/(1-SUM(CE53:CE55)) -> 0 | CF57: =($E$48*PRODUCT(CF49:CF51)*CF56)/(1-SUM(CF53:CF55)) -> 0 | CG57: =($E$48*PRODUCT(CG49:CG51)*CG56)/(1-SUM(CG53:CG55)) -> 0 | CH57: =($E$48*PRODUCT(CH49:CH51)*CH56)/(1-SUM(CH53:CH55)) -> 0 | CI57: =($E$48*PRODUCT(CI49:CI51)*CI56)/(1-SUM(CI53:CI55)) -> 0 | CJ57: =($E$48*PRODUCT(CJ49:CJ51)*CJ56)/(1-SUM(CJ53:CJ55)) -> 0 | CK57: =($E$48*PRODUCT(CK49:CK51)*CK56)/(1-SUM(CK53:CK55)) -> 0 | CL57: =($E$48*PRODUCT(CL49:CL51)*CL56)/(1-SUM(CL53:CL55)) -> 0 | CM57: =($E$48*PRODUCT(CM49:CM51)*CM56)/(1-SUM(CM53:CM55)) -> 0 | CN57: =($E$48*PRODUCT(CN49:CN51)*CN56)/(1-SUM(CN53:CN55)) -> 0 | CO57: =($E$48*PRODUCT(CO49:CO51)*CO56)/(1-SUM(CO53:CO55)) -> 0 | CP57: =($E$48*PRODUCT(CP49:CP51)*CP56)/(1-SUM(CP53:CP55)) -> 0 | CQ57: =($E$48*PRODUCT(CQ49:CQ51)*CQ56)/(1-SUM(CQ53:CQ55)) -> 0 | CR57: =($E$48*PRODUCT(CR49:CR51)*CR56)/(1-SUM(CR53:CR55)) -> 0 | CS57: =($E$48*PRODUCT(CS49:CS51)*CS56)/(1-SUM(CS53:CS55)) -> 0 | CT57: =($E$48*PRODUCT(CT49:CT51)*CT56)/(1-SUM(CT53:CT55)) -> 0 | CU57: =($E$48*PRODUCT(CU49:CU51)*CU56)/(1-SUM(CU53:CU55)) -> 0 | CV57: =($E$48*PRODUCT(CV49:CV51)*CV56)/(1-SUM(CV53:CV55)) -> 0 | CW57: =($E$48*PRODUCT(CW49:CW51)*CW56)/(1-SUM(CW53:CW55)) -> 0 | CX57: =($E$48*PRODUCT(CX49:CX51)*CX56)/(1-SUM(CX53:CX55)) -> 0 | CY57: =($E$48*PRODUCT(CY49:CY51)*CY56)/(1-SUM(CY53:CY55)) -> 0 | CZ57: =($E$48*PRODUCT(CZ49:CZ51)*CZ56)/(1-SUM(CZ53:CZ55)) -> 0 | DA57: =($E$48*PRODUCT(DA49:DA51)*DA56)/(1-SUM(DA53:DA55)) -> 0
B59: 3.11 | C59: Age Calibration Factor | D59: 0.6791 | E59: =IF(D59<>"", D59, "") -> 0
B60: 3.12 | C60: Geographic Calibration Factor | D60: 1.4038 | E60: =IF(D60<>"", D60, "") -> 0
B61: 3.13 | C61: Tobacco Calibration Factor | D61: 1 | E61: =IF(D61<>"", D61, "") -> 0
B62: 3.14 | C62: Calibrated Plan Adjusted Index Rate | E62: =E57*(PRODUCT($E$59:$E$61)) -> 0 | F62: =F57*(PRODUCT($E$59:$E$61)) -> 0 | G62: =G57*(PRODUCT($E$59:$E$61)) -> 0 | H62: =H57*(PRODUCT($E$59:$E$61)) -> 0 | I62: =I57*(PRODUCT($E$59:$E$61)) -> 0 | J62: =J57*(PRODUCT($E$59:$E$61)) -> 0 | K62: =K57*(PRODUCT($E$59:$E$61)) -> 0 | L62: =L57*(PRODUCT($E$59:$E$61)) -> 0 | M62: =M57*(PRODUCT($E$59:$E$61)) -> 0 | N62: =N57*(PRODUCT($E$59:$E$61)) -> 0 | O62: =O57*(PRODUCT($E$59:$E$61)) -> 0 | P62: =P57*(PRODUCT($E$59:$E$61)) -> 0 | Q62: =Q57*(PRODUCT($E$59:$E$61)) -> 0 | R62: =R57*(PRODUCT($E$59:$E$61)) -> 0 | S62: =S57*(PRODUCT($E$59:$E$61)) -> 0 | T62: =T57*(PRODUCT($E$59:$E$61)) -> 0 | U62: =U57*(PRODUCT($E$59:$E$61)) -> 0 | V62: =V57*(PRODUCT($E$59:$E$61)) -> 0 | W62: =W57*(PRODUCT($E$59:$E$61)) -> 0 | X62: =X57*(PRODUCT($E$59:$E$61)) -> 0 | Y62: =Y57*(PRODUCT($E$59:$E$61)) -> 0 | Z62: =Z57*(PRODUCT($E$59:$E$61)) -> 0 | AA62: =AA57*(PRODUCT($E$59:$E$61)) -> 0 | AB62: =AB57*(PRODUCT($E$59:$E$61)) -> 0 | AC62: =AC57*(PRODUCT($E$59:$E$61)) -> 0 | AD62: =AD57*(PRODUCT($E$59:$E$61)) -> 0 | AE62: =AE57*(PRODUCT($E$59:$E$61)) -> 0 | AF62: =AF57*(PRODUCT($E$59:$E$61)) -> 0 | AG62: =AG57*(PRODUCT($E$59:$E$61)) -> 0 | AH62: =AH57*(PRODUCT($E$59:$E$61)) -> 0 | AI62: =AI57*(PRODUCT($E$59:$E$61)) -> 0 | AJ62: =AJ57*(PRODUCT($E$59:$E$61)) -> 0 | AK62: =AK57*(PRODUCT($E$59:$E$61)) -> 0 | AL62: =AL57*(PRODUCT($E$59:$E$61)) -> 0 | AM62: =AM57*(PRODUCT($E$59:$E$61)) -> 0 | AN62: =AN57*(PRODUCT($E$59:$E$61)) -> 0 | AO62: =AO57*(PRODUCT($E$59:$E$61)) -> 0 | AP62: =AP57*(PRODUCT($E$59:$E$61)) -> 0 | AQ62: =AQ57*(PRODUCT($E$59:$E$61)) -> 0 | AR62: =AR57*(PRODUCT($E$59:$E$61)) -> 0 | AS62: =AS57*(PRODUCT($E$59:$E$61)) -> 0 | AT62: =AT57*(PRODUCT($E$59:$E$61)) -> 0 | AU62: =AU57*(PRODUCT($E$59:$E$61)) -> 0 | AV62: =AV57*(PRODUCT($E$59:$E$61)) -> 0 | AW62: =AW57*(PRODUCT($E$59:$E$61)) -> 0 | AX62: =AX57*(PRODUCT($E$59:$E$61)) -> 0 | AY62: =AY57*(PRODUCT($E$59:$E$61)) -> 0 | AZ62: =AZ57*(PRODUCT($E$59:$E$61)) -> 0 | BA62: =BA57*(PRODUCT($E$59:$E$61)) -> 0 | BB62: =BB57*(PRODUCT($E$59:$E$61)) -> 0 | BC62: =BC57*(PRODUCT($E$59:$E$61)) -> 0 | BD62: =BD57*(PRODUCT($E$59:$E$61)) -> 0 | BE62: =BE57*(PRODUCT($E$59:$E$61)) -> 0 | BF62: =BF57*(PRODUCT($E$59:$E$61)) -> 0 | BG62: =BG57*(PRODUCT($E$59:$E$61)) -> 0 | BH62: =BH57*(PRODUCT($E$59:$E$61)) -> 0 | BI62: =BI57*(PRODUCT($E$59:$E$61)) -> 0 | BJ62: =BJ57*(PRODUCT($E$59:$E$61)) -> 0 | BK62: =BK57*(PRODUCT($E$59:$E$61)) -> 0 | BL62: =BL57*(PRODUCT($E$59:$E$61)) -> 0 | BM62: =BM57*(PRODUCT($E$59:$E$61)) -> 0 | BN62: =BN57*(PRODUCT($E$59:$E$61)) -> 0 | BO62: =BO57*(PRODUCT($E$59:$E$61)) -> 0 | BP62: =BP57*(PRODUCT($E$59:$E$61)) -> 0 | BQ62: =BQ57*(PRODUCT($E$59:$E$61)) -> 0 | BR62: =BR57*(PRODUCT($E$59:$E$61)) -> 0 | BS62: =BS57*(PRODUCT($E$59:$E$61)) -> 0 | BT62: =BT57*(PRODUCT($E$59:$E$61)) -> 0 | BU62: =BU57*(PRODUCT($E$59:$E$61)) -> 0 | BV62: =BV57*(PRODUCT($E$59:$E$61)) -> 0 | BW62: =BW57*(PRODUCT($E$59:$E$61)) -> 0 | BX62: =BX57*(PRODUCT($E$59:$E$61)) -> 0 | BY62: =BY57*(PRODUCT($E$59:$E$61)) -> 0 | BZ62: =BZ57*(PRODUCT($E$59:$E$61)) -> 0 | CA62: =CA57*(PRODUCT($E$59:$E$61)) -> 0 | CB62: =CB57*(PRODUCT($E$59:$E$61)) -> 0 | CC62: =CC57*(PRODUCT($E$59:$E$61)) -> 0 | CD62: =CD57*(PRODUCT($E$59:$E$61)) -> 0 | CE62: =CE57*(PRODUCT($E$59:$E$61)) -> 0 | CF62: =CF57*(PRODUCT($E$59:$E$61)) -> 0 | CG62: =CG57*(PRODUCT($E$59:$E$61)) -> 0 | CH62: =CH57*(PRODUCT($E$59:$E$61)) -> 0 | CI62: =CI57*(PRODUCT($E$59:$E$61)) -> 0 | CJ62: =CJ57*(PRODUCT($E$59:$E$61)) -> 0 | CK62: =CK57*(PRODUCT($E$59:$E$61)) -> 0 | CL62: =CL57*(PRODUCT($E$59:$E$61)) -> 0 | CM62: =CM57*(PRODUCT($E$59:$E$61)) -> 0 | CN62: =CN57*(PRODUCT($E$59:$E$61)) -> 0 | CO62: =CO57*(PRODUCT($E$59:$E$61)) -> 0 | CP62: =CP57*(PRODUCT($E$59:$E$61)) -> 0 | CQ62: =CQ57*(PRODUCT($E$59:$E$61)) -> 0 | CR62: =CR57*(PRODUCT($E$59:$E$61)) -> 0 | CS62: =CS57*(PRODUCT($E$59:$E$61)) -> 0 | CT62: =CT57*(PRODUCT($E$59:$E$61)) -> 0 | CU62: =CU57*(PRODUCT($E$59:$E$61)) -> 0 | CV62: =CV57*(PRODUCT($E$59:$E$61)) -> 0 | CW62: =CW57*(PRODUCT($E$59:$E$61)) -> 0 | CX62: =CX57*(PRODUCT($E$59:$E$61)) -> 0 | CY62: =CY57*(PRODUCT($E$59:$E$61)) -> 0 | CZ62: =CZ57*(PRODUCT($E$59:$E$61)) -> 0 | DA62: =DA57*(PRODUCT($E$59:$E$61)) -> 0
C64: Section IV: Projected Plan Level Information
B65: 4.1 | C65: Plan ID (Standard Component ID) | D65: Total | E65: =E13 -> 0 | F65: =F13 -> 0 | G65: =G13 -> 0 | H65: =H13 -> 0 | I65: =I13 -> 0 | J65: =J13 -> 0 | K65: =K13 -> 0 | L65: =L13 -> 0 | M65: =M13 -> 0 | N65: =N13 -> 0 | O65: =O13 -> 0 | P65: =P13 -> 0 | Q65: =Q13 -> 0 | R65: =R13 -> 0 | S65: =S13 -> 0 | T65: =T13 -> 0 | U65: =U13 -> 0 | V65: =V13 -> 0 | W65: =W13 -> 0 | X65: =X13 -> 0 | Y65: =Y13 -> 0 | Z65: =Z13 -> 0 | AA65: =AA13 -> 0 | AB65: =AB13 -> 0 | AC65: =AC13 -> 0 | AD65: =AD13 -> 0 | AE65: =AE13 -> 0 | AF65: =AF13 -> 0 | AG65: =AG13 -> 0 | AH65: =AH13 -> 0 | AI65: =AI13 -> 0 | AJ65: =AJ13 -> 0 | AK65: =AK13 -> 0 | AL65: =AL13 -> 0 | AM65: =AM13 -> 0 | AN65: =AN13 -> 0 | AO65: =AO13 -> 0 | AP65: =AP13 -> 0 | AQ65: =AQ13 -> 0 | AR65: =AR13 -> 0 | AS65: =AS13 -> 0 | AT65: =AT13 -> 0 | AU65: =AU13 -> 0 | AV65: =AV13 -> 0 | AW65: =AW13 -> 0 | AX65: =AX13 -> 0 | AY65: =AY13 -> 0 | AZ65: =AZ13 -> 0 | BA65: =BA13 -> 0 | BB65: =BB13 -> 0 | BC65: =BC13 -> 0 | BD65: =BD13 -> 0 | BE65: =BE13 -> 0 | BF65: =BF13 -> 0 | BG65: =BG13 -> 0 | BH65: =BH13 -> 0 | BI65: =BI13 -> 0 | BJ65: =BJ13 -> 0 | BK65: =BK13 -> 0 | BL65: =BL13 -> 0 | BM65: =BM13 -> 0 | BN65: =BN13 -> 0 | BO65: =BO13 -> 0 | BP65: =BP13 -> 0 | BQ65: =BQ13 -> 0 | BR65: =BR13 -> 0 | BS65: =BS13 -> 0 | BT65: =BT13 -> 0 | BU65: =BU13 -> 0 | BV65: =BV13 -> 0 | BW65: =BW13 -> 0 | BX65: =BX13 -> 0 | BY65: =BY13 -> 0 | BZ65: =BZ13 -> 0 | CA65: =CA13 -> 0 | CB65: =CB13 -> 0 | CC65: =CC13 -> 0 | CD65: =CD13 -> 0 | CE65: =CE13 -> 0 | CF65: =CF13 -> 0 | CG65: =CG13 -> 0 | CH65: =CH13 -> 0 | CI65: =CI13 -> 0 | CJ65: =CJ13 -> 0 | CK65: =CK13 -> 0 | CL65: =CL13 -> 0 | CM65: =CM13 -> 0 | CN65: =CN13 -> 0 | CO65: =CO13 -> 0 | CP65: =CP13 -> 0 | CQ65: =CQ13 -> 0 | CR65: =CR13 -> 0 | CS65: =CS13 -> 0 | CT65: =CT13 -> 0 | CU65: =CU13 -> 0 | CV65: =CV13 -> 0 | CW65: =CW13 -> 0 | CX65: =CX13 -> 0 | CY65: =CY13 -> 0 | CZ65: =CZ13 -> 0 | DA65: =DA13 -> 0
B66: 4.2 | C66: Allowed Claims | D66: =SUM(E66:XFD66) -> 13326760.62 | E66: =0 -> 0 | F66: =0 -> 0 | G66: =3031156.81 -> 0 | H66: =143557.31 -> 0 | I66: =285842.38 -> 0 | J66: =591851.56 -> 0 | K66: =285842.38 -> 0 | L66: =754939.55 -> 0 | M66: =143557.31 -> 0 | N66: =177082.67 -> 0 | O66: =285842.38 -> 0 | P66: =285842.38 -> 0 | Q66: =179180.16 -> 0 | R66: =468839.28 -> 0 | S66: =285842.38 -> 0 | T66: =285842.38 -> 0 | U66: =437531.75 -> 0 | V66: =285842.38 -> 0 | W66: =285842.38 -> 0 | X66: =143557.31 -> 0 | Y66: =285842.38 -> 0 | Z66: =0 -> 0 | AA66: =0 -> 0 | AB66: =0 -> 0 | AC66: =0 -> 0 | AD66: =0 -> 0 | AE66: =0 -> 0 | AF66: =0 -> 0 | AG66: =0 -> 0 | AH66: =0 -> 0 | AI66: =0 -> 0 | AJ66: =0 -> 0 | AK66: =0 -> 0 | AL66: =0 -> 0 | AM66: =0 -> 0 | AN66: =0 -> 0 | AO66: =0 -> 0 | AP66: =0 -> 0 | AQ66: =0 -> 0 | AR66: =0 -> 0 | AS66: =0 -> 0 | AT66: =0 -> 0 | AU66: =0 -> 0 | AV66: =0 -> 0 | AW66: =0 -> 0 | AX66: =0 -> 0 | AY66: =0 -> 0 | AZ66: =0 -> 0 | BA66: =0 -> 0 | BB66: =0 -> 0 | BC66: =0 -> 0 | BD66: =143557.31 -> 0 | BE66: =285842.38 -> 0 | BF66: =285842.38 -> 0 | BG66: =285842.38 -> 0 | BH66: =285842.38 -> 0 | BI66: =143557.31 -> 0 | BJ66: =143557.31 -> 0 | BK66: =177942.3 -> 0 | BL66: =285842.38 -> 0 | BM66: =285842.38 -> 0 | BN66: =179180.16 -> 0 | BO66: =179180.16 -> 0 | BP66: =285842.38 -> 0 | BQ66: =285842.38 -> 0 | BR66: =285842.38 -> 0 | BS66: =285842.38 -> 0 | BT66: =285842.38 -> 0 | BU66: =285842.38 -> 0 | BV66: =285842.38 -> 0 | BW66: =0 -> 0 | BX66: =0 -> 0 | BY66: =0 -> 0 | BZ66: =0 -> 0 | CA66: =0 -> 0 | CB66: =0 -> 0 | CC66: =0 -> 0 | CD66: =0 -> 0 | CE66: =0 -> 0 | CF66: =0 -> 0 | CG66: =0 -> 0 | CH66: =0 -> 0 | CI66: =0 -> 0 | CJ66: =0 -> 0 | CK66: =0 -> 0 | CL66: =0 -> 0 | CM66: =0 -> 0 | CN66: =0 -> 0 | CO66: =0 -> 0 | CP66: =0 -> 0 | CQ66: =0 -> 0 | CR66: =0 -> 0 | CS66: =0 -> 0 | CT66: =0 -> 0 | CU66: =0 -> 0 | CV66: =0 -> 0 | CW66: =0 -> 0 | CX66: =0 -> 0 | CY66: =0 -> 0 | CZ66: =0 -> 0 | DA66: =0 -> 0
B67: 4.3 | C67: Reinsurance | D67: =SUM(E67:XFD67) -> 0 | E67: =0 -> 0 | F67: =0 -> 0 | G67: =0 -> 0 | H67: =0 -> 0 | I67: =0 -> 0 | J67: =0 -> 0 | K67: =0 -> 0 | L67: =0 -> 0 | M67: =0 -> 0 | N67: =0 -> 0 | O67: =0 -> 0 | P67: =0 -> 0 | Q67: =0 -> 0 | R67: =0 -> 0 | S67: =0 -> 0 | T67: =0 -> 0 | U67: =0 -> 0 | V67: =0 -> 0 | W67: =0 -> 0 | X67: =0 -> 0 | Y67: =0 -> 0 | Z67: =0 -> 0 | AA67: =0 -> 0 | AB67: =0 -> 0 | AC67: =0 -> 0 | AD67: =0 -> 0 | AE67: =0 -> 0 | AF67: =0 -> 0 | AG67: =0 -> 0 | AH67: =0 -> 0 | AI67: =0 -> 0 | AJ67: =0 -> 0 | AK67: =0 -> 0 | AL67: =0 -> 0 | AM67: =0 -> 0 | AN67: =0 -> 0 | AO67: =0 -> 0 | AP67: =0 -> 0 | AQ67: =0 -> 0 | AR67: =0 -> 0 | AS67: =0 -> 0 | AT67: =0 -> 0 | AU67: =0 -> 0 | AV67: =0 -> 0 | AW67: =0 -> 0 | AX67: =0 -> 0 | AY67: =0 -> 0 | AZ67: =0 -> 0 | BA67: =0 -> 0 | BB67: =0 -> 0 | BC67: =0 -> 0 | BD67: =0 -> 0 | BE67: =0 -> 0 | BF67: =0 -> 0 | BG67: =0 -> 0 | BH67: =0 -> 0 | BI67: =0 -> 0 | BJ67: =0 -> 0 | BK67: =0 -> 0 | BL67: =0 -> 0 | BM67: =0 -> 0 | BN67: =0 -> 0 | BO67: =0 -> 0 | BP67: =0 -> 0 | BQ67: =0 -> 0 | BR67: =0 -> 0 | BS67: =0 -> 0 | BT67: =0 -> 0 | BU67: =0 -> 0 | BV67: =0 -> 0 | BW67: =0 -> 0 | BX67: =0 -> 0 | BY67: =0 -> 0 | BZ67: =0 -> 0 | CA67: =0 -> 0 | CB67: =0 -> 0 | CC67: =0 -> 0 | CD67: =0 -> 0 | CE67: =0 -> 0 | CF67: =0 -> 0 | CG67: =0 -> 0 | CH67: =0 -> 0 | CI67: =0 -> 0 | CJ67: =0 -> 0 | CK67: =0 -> 0 | CL67: =0 -> 0 | CM67: =0 -> 0 | CN67: =0 -> 0 | CO67: =0 -> 0 | CP67: =0 -> 0 | CQ67: =0 -> 0 | CR67: =0 -> 0 | CS67: =0 -> 0 | CT67: =0 -> 0 | CU67: =0 -> 0 | CV67: =0 -> 0 | CW67: =0 -> 0 | CX67: =0 -> 0 | CY67: =0 -> 0 | CZ67: =0 -> 0 | DA67: =0 -> 0
B68: 4.4 | C68: Member Cost Sharing | D68: =SUM(E68:XFD68) -> 2012340.78 | E68: =0 -> 0 | F68: =0 -> 0 | G68: =414043.88 -> 0 | H68: =23295.64 -> 0 | I68: =44564.23 -> 0 | J68: =92510.65 -> 0 | K68: =46940.6 -> 0 | L68: =124683.64 -> 0 | M68: =24787.87 -> 0 | N68: =47239.93 -> 0 | O68: =30421 -> 0 | P68: =46863.94 -> 0 | Q68: =2436.57 -> 0 | R68: =32143.78 -> 0 | S68: =41306.3 -> 0 | T68: =49240.31 -> 0 | U68: =61231.8 -> 0 | V68: =50083.54 -> 0 | W68: =53149.82 -> 0 | X68: =32484.62 -> 0 | Y68: =35710.34 -> 0 | Z68: =0 -> 0 | AA68: =0 -> 0 | AB68: =0 -> 0 | AC68: =0 -> 0 | AD68: =0 -> 0 | AE68: =0 -> 0 | AF68: =0 -> 0 | AG68: =0 -> 0 | AH68: =0 -> 0 | AI68: =0 -> 0 | AJ68: =0 -> 0 | AK68: =0 -> 0 | AL68: =0 -> 0 | AM68: =0 -> 0 | AN68: =0 -> 0 | AO68: =0 -> 0 | AP68: =0 -> 0 | AQ68: =0 -> 0 | AR68: =0 -> 0 | AS68: =0 -> 0 | AT68: =0 -> 0 | AU68: =0 -> 0 | AV68: =0 -> 0 | AW68: =0 -> 0 | AX68: =0 -> 0 | AY68: =0 -> 0 | AZ68: =0 -> 0 | BA68: =0 -> 0 | BB68: =0 -> 0 | BC68: =0 -> 0 | BD68: =33898.3 -> 0 | BE68: =41996.22 -> 0 | BF68: =47630.51 -> 0 | BG68: =49891.9 -> 0 | BH68: =50160.2 -> 0 | BI68: =24944.94 -> 0 | BJ68: =26417.54 -> 0 | BK68: =49391.91 -> 0 | BL68: =33142.33 -> 0 | BM68: =49700.25 -> 0 | BN68: =4183.81 -> 0 | BO68: =14009.2 -> 0 | BP68: =44219.27 -> 0 | BQ68: =52153.28 -> 0 | BR68: =42762.79 -> 0 | BS68: =47323.89 -> 0 | BT68: =52843.19 -> 0 | BU68: =55909.48 -> 0 | BV68: =38623.31 -> 0 | BW68: =0 -> 0 | BX68: =0 -> 0 | BY68: =0 -> 0 | BZ68: =0 -> 0 | CA68: =0 -> 0 | CB68: =0 -> 0 | CC68: =0 -> 0 | CD68: =0 -> 0 | CE68: =0 -> 0 | CF68: =0 -> 0 | CG68: =0 -> 0 | CH68: =0 -> 0 | CI68: =0 -> 0 | CJ68: =0 -> 0 | CK68: =0 -> 0 | CL68: =0 -> 0 | CM68: =0 -> 0 | CN68: =0 -> 0 | CO68: =0 -> 0 | CP68: =0 -> 0 | CQ68: =0 -> 0 | CR68: =0 -> 0 | CS68: =0 -> 0 | CT68: =0 -> 0 | CU68: =0 -> 0 | CV68: =0 -> 0 | CW68: =0 -> 0 | CX68: =0 -> 0 | CY68: =0 -> 0 | CZ68: =0 -> 0 | DA68: =0 -> 0
B69: 4.5 | C69: Cost Sharing Reduction | D69: =SUM(E69:XFD69) -> 0 | E69: =0 -> 0 | F69: =0 -> 0 | G69: =0 -> 0 | H69: =0 -> 0 | I69: =0 -> 0 | J69: =0 -> 0 | K69: =0 -> 0 | L69: =0 -> 0 | M69: =0 -> 0 | N69: =0 -> 0 | O69: =0 -> 0 | P69: =0 -> 0 | Q69: =0 -> 0 | R69: =0 -> 0 | S69: =0 -> 0 | T69: =0 -> 0 | U69: =0 -> 0 | V69: =0 -> 0 | W69: =0 -> 0 | X69: =0 -> 0 | Y69: =0 -> 0 | Z69: =0 -> 0 | AA69: =0 -> 0 | AB69: =0 -> 0 | AC69: =0 -> 0 | AD69: =0 -> 0 | AE69: =0 -> 0 | AF69: =0 -> 0 | AG69: =0 -> 0 | AH69: =0 -> 0 | AI69: =0 -> 0 | AJ69: =0 -> 0 | AK69: =0 -> 0 | AL69: =0 -> 0 | AM69: =0 -> 0 | AN69: =0 -> 0 | AO69: =0 -> 0 | AP69: =0 -> 0 | AQ69: =0 -> 0 | AR69: =0 -> 0 | AS69: =0 -> 0 | AT69: =0 -> 0 | AU69: =0 -> 0 | AV69: =0 -> 0 | AW69: =0 -> 0 | AX69: =0 -> 0 | AY69: =0 -> 0 | AZ69: =0 -> 0 | BA69: =0 -> 0 | BB69: =0 -> 0 | BC69: =0 -> 0 | BD69: =0 -> 0 | BE69: =0 -> 0 | BF69: =0 -> 0 | BG69: =0 -> 0 | BH69: =0 -> 0 | BI69: =0 -> 0 | BJ69: =0 -> 0 | BK69: =0 -> 0 | BL69: =0 -> 0 | BM69: =0 -> 0 | BN69: =0 -> 0 | BO69: =0 -> 0 | BP69: =0 -> 0 | BQ69: =0 -> 0 | BR69: =0 -> 0 | BS69: =0 -> 0 | BT69: =0 -> 0 | BU69: =0 -> 0 | BV69: =0 -> 0 | BW69: =0 -> 0 | BX69: =0 -> 0 | BY69: =0 -> 0 | BZ69: =0 -> 0 | CA69: =0 -> 0 | CB69: =0 -> 0 | CC69: =0 -> 0 | CD69: =0 -> 0 | CE69: =0 -> 0 | CF69: =0 -> 0 | CG69: =0 -> 0 | CH69: =0 -> 0 | CI69: =0 -> 0 | CJ69: =0 -> 0 | CK69: =0 -> 0 | CL69: =0 -> 0 | CM69: =0 -> 0 | CN69: =0 -> 0 | CO69: =0 -> 0 | CP69: =0 -> 0 | CQ69: =0 -> 0 | CR69: =0 -> 0 | CS69: =0 -> 0 | CT69: =0 -> 0 | CU69: =0 -> 0 | CV69: =0 -> 0 | CW69: =0 -> 0 | CX69: =0 -> 0 | CY69: =0 -> 0 | CZ69: =0 -> 0 | DA69: =0 -> 0
B70: 4.6 | C70: Incurred Claims | D70: =D66-D67-D68-D69 -> 11314419.84 | E70: =E66-E67-E68-E69 -> 0 | F70: =F66-F67-F68-F69 -> 0 | G70: =G66-G67-G68-G69 -> 0 | H70: =H66-H67-H68-H69 -> 0 | I70: =I66-I67-I68-I69 -> 0 | J70: =J66-J67-J68-J69 -> 0 | K70: =K66-K67-K68-K69 -> 0 | L70: =L66-L67-L68-L69 -> 0 | M70: =M66-M67-M68-M69 -> 0 | N70: =N66-N67-N68-N69 -> 0 | O70: =O66-O67-O68-O69 -> 0 | P70: =P66-P67-P68-P69 -> 0 | Q70: =Q66-Q67-Q68-Q69 -> 0 | R70: =R66-R67-R68-R69 -> 0 | S70: =S66-S67-S68-S69 -> 0 | T70: =T66-T67-T68-T69 -> 0 | U70: =U66-U67-U68-U69 -> 0 | V70: =V66-V67-V68-V69 -> 0 | W70: =W66-W67-W68-W69 -> 0 | X70: =X66-X67-X68-X69 -> 0 | Y70: =Y66-Y67-Y68-Y69 -> 0 | Z70: =Z66-Z67-Z68-Z69 -> 0 | AA70: =AA66-AA67-AA68-AA69 -> 0 | AB70: =AB66-AB67-AB68-AB69 -> 0 | AC70: =AC66-AC67-AC68-AC69 -> 0 | AD70: =AD66-AD67-AD68-AD69 -> 0 | AE70: =AE66-AE67-AE68-AE69 -> 0 | AF70: =AF66-AF67-AF68-AF69 -> 0 | AG70: =AG66-AG67-AG68-AG69 -> 0 | AH70: =AH66-AH67-AH68-AH69 -> 0 | AI70: =AI66-AI67-AI68-AI69 -> 0 | AJ70: =AJ66-AJ67-AJ68-AJ69 -> 0 | AK70: =AK66-AK67-AK68-AK69 -> 0 | AL70: =AL66-AL67-AL68-AL69 -> 0 | AM70: =AM66-AM67-AM68-AM69 -> 0 | AN70: =AN66-AN67-AN68-AN69 -> 0 | AO70: =AO66-AO67-AO68-AO69 -> 0 | AP70: =AP66-AP67-AP68-AP69 -> 0 | AQ70: =AQ66-AQ67-AQ68-AQ69 -> 0 | AR70: =AR66-AR67-AR68-AR69 -> 0 | AS70: =AS66-AS67-AS68-AS69 -> 0 | AT70: =AT66-AT67-AT68-AT69 -> 0 | AU70: =AU66-AU67-AU68-AU69 -> 0 | AV70: =AV66-AV67-AV68-AV69 -> 0 | AW70: =AW66-AW67-AW68-AW69 -> 0 | AX70: =AX66-AX67-AX68-AX69 -> 0 | AY70: =AY66-AY67-AY68-AY69 -> 0 | AZ70: =AZ66-AZ67-AZ68-AZ69 -> 0 | BA70: =BA66-BA67-BA68-BA69 -> 0 | BB70: =BB66-BB67-BB68-BB69 -> 0 | BC70: =BC66-BC67-BC68-BC69 -> 0 | BD70: =BD66-BD67-BD68-BD69 -> 0 | BE70: =BE66-BE67-BE68-BE69 -> 0 | BF70: =BF66-BF67-BF68-BF69 -> 0 | BG70: =BG66-BG67-BG68-BG69 -> 0 | BH70: =BH66-BH67-BH68-BH69 -> 0 | BI70: =BI66-BI67-BI68-BI69 -> 0 | BJ70: =BJ66-BJ67-BJ68-BJ69 -> 0 | BK70: =BK66-BK67-BK68-BK69 -> 0 | BL70: =BL66-BL67-BL68-BL69 -> 0 | BM70: =BM66-BM67-BM68-BM69 -> 0 | BN70: =BN66-BN67-BN68-BN69 -> 0 | BO70: =BO66-BO67-BO68-BO69 -> 0 | BP70: =BP66-BP67-BP68-BP69 -> 0 | BQ70: =BQ66-BQ67-BQ68-BQ69 -> 0 | BR70: =BR66-BR67-BR68-BR69 -> 0 | BS70: =BS66-BS67-BS68-BS69 -> 0 | BT70: =BT66-BT67-BT68-BT69 -> 0 | BU70: =BU66-BU67-BU68-BU69 -> 0 | BV70: =BV66-BV67-BV68-BV69 -> 0 | BW70: =BW66-BW67-BW68-BW69 -> 0 | BX70: =BX66-BX67-BX68-BX69 -> 0 | BY70: =BY66-BY67-BY68-BY69 -> 0 | BZ70: =BZ66-BZ67-BZ68-BZ69 -> 0 | CA70: =CA66-CA67-CA68-CA69 -> 0 | CB70: =CB66-CB67-CB68-CB69 -> 0 | CC70: =CC66-CC67-CC68-CC69 -> 0 | CD70: =CD66-CD67-CD68-CD69 -> 0 | CE70: =CE66-CE67-CE68-CE69 -> 0 | CF70: =CF66-CF67-CF68-CF69 -> 0 | CG70: =CG66-CG67-CG68-CG69 -> 0 | CH70: =CH66-CH67-CH68-CH69 -> 0 | CI70: =CI66-CI67-CI68-CI69 -> 0 | CJ70: =CJ66-CJ67-CJ68-CJ69 -> 0 | CK70: =CK66-CK67-CK68-CK69 -> 0 | CL70: =CL66-CL67-CL68-CL69 -> 0 | CM70: =CM66-CM67-CM68-CM69 -> 0 | CN70: =CN66-CN67-CN68-CN69 -> 0 | CO70: =CO66-CO67-CO68-CO69 -> 0 | CP70: =CP66-CP67-CP68-CP69 -> 0 | CQ70: =CQ66-CQ67-CQ68-CQ69 -> 0 | CR70: =CR66-CR67-CR68-CR69 -> 0 | CS70: =CS66-CS67-CS68-CS69 -> 0 | CT70: =CT66-CT67-CT68-CT69 -> 0 | CU70: =CU66-CU67-CU68-CU69 -> 0 | CV70: =CV66-CV67-CV68-CV69 -> 0 | CW70: =CW66-CW67-CW68-CW69 -> 0 | CX70: =CX66-CX67-CX68-CX69 -> 0 | CY70: =CY66-CY67-CY68-CY69 -> 0 | CZ70: =CZ66-CZ67-CZ68-CZ69 -> 0 | DA70: =DA66-DA67-DA68-DA69 -> 0
B71: 4.7 | C71: Risk Adjustment Transfer Amount | D71: =SUM(E71:XFD71) -> -1534647.23 | E71: =0 -> 0 | F71: =0 -> 0 | G71: =-349882.97 -> 0 | H71: =-16902.07 -> 0 | I71: =-32994.46 -> 0 | J71: =-68316.75 -> 0 | K71: =-32994.46 -> 0 | L71: =-87141.81 -> 0 | M71: =-16902.07 -> 0 | N71: =-20849.26 -> 0 | O71: =-32994.46 -> 0 | P71: =-32994.46 -> 0 | Q71: =-19533.53 -> 0 | R71: =-51111.05 -> 0 | S71: =-32994.46 -> 0 | T71: =-32994.46 -> 0 | U71: =-50503.79 -> 0 | V71: =-32994.46 -> 0 | W71: =-32994.46 -> 0 | X71: =-16902.07 -> 0 | Y71: =-32994.46 -> 0 | Z71: =0 -> 0 | AA71: =0 -> 0 | AB71: =0 -> 0 | AC71: =0 -> 0 | AD71: =0 -> 0 | AE71: =0 -> 0 | AF71: =0 -> 0 | AG71: =0 -> 0 | AH71: =0 -> 0 | AI71: =0 -> 0 | AJ71: =0 -> 0 | AK71: =0 -> 0 | AL71: =0 -> 0 | AM71: =0 -> 0 | AN71: =0 -> 0 | AO71: =0 -> 0 | AP71: =0 -> 0 | AQ71: =0 -> 0 | AR71: =0 -> 0 | AS71: =0 -> 0 | AT71: =0 -> 0 | AU71: =0 -> 0 | AV71: =0 -> 0 | AW71: =0 -> 0 | AX71: =0 -> 0 | AY71: =0 -> 0 | AZ71: =0 -> 0 | BA71: =0 -> 0 | BB71: =0 -> 0 | BC71: =0 -> 0 | BD71: =-16902.07 -> 0 | BE71: =-32994.46 -> 0 | BF71: =-32994.46 -> 0 | BG71: =-32994.46 -> 0 | BH71: =-32994.46 -> 0 | BI71: =-16902.07 -> 0 | BJ71: =-16902.07 -> 0 | BK71: =-20950.47 -> 0 | BL71: =-32994.46 -> 0 | BM71: =-32994.46 -> 0 | BN71: =-19533.53 -> 0 | BO71: =-19533.53 -> 0 | BP71: =-32994.46 -> 0 | BQ71: =-32994.46 -> 0 | BR71: =-32994.46 -> 0 | BS71: =-32994.46 -> 0 | BT71: =-32994.46 -> 0 | BU71: =-32994.46 -> 0 | BV71: =-32994.46 -> 0 | BW71: =0 -> 0 | BX71: =0 -> 0 | BY71: =0 -> 0 | BZ71: =0 -> 0 | CA71: =0 -> 0 | CB71: =0 -> 0 | CC71: =0 -> 0 | CD71: =0 -> 0 | CE71: =0 -> 0 | CF71: =0 -> 0 | CG71: =0 -> 0 | CH71: =0 -> 0 | CI71: =0 -> 0 | CJ71: =0 -> 0 | CK71: =0 -> 0 | CL71: =0 -> 0 | CM71: =0 -> 0 | CN71: =0 -> 0 | CO71: =0 -> 0 | CP71: =0 -> 0 | CQ71: =0 -> 0 | CR71: =0 -> 0 | CS71: =0 -> 0 | CT71: =0 -> 0 | CU71: =0 -> 0 | CV71: =0 -> 0 | CW71: =0 -> 0 | CX71: =0 -> 0 | CY71: =0 -> 0 | CZ71: =0 -> 0 | DA71: =0 -> 0
B72: 4.8 | C72: Premium | D72: =SUM(E72:XFD72) -> 15660409.22 | E72: =0 -> 0 | F72: =0 -> 0 | G72: =3613216.2 -> 0 | H72: =167543.15 -> 0 | I72: =334438.85 -> 0 | J72: =692228.64 -> 0 | K72: =331749.89 -> 0 | L72: =875347.35 -> 0 | M72: =165844.08 -> 0 | N72: =185652.73 -> 0 | O72: =350507.14 -> 0 | P72: =331828.68 -> 0 | Q72: =236509.85 -> 0 | R72: =589551.14 -> 0 | S72: =338140.9 -> 0 | T72: =329130.32 -> 0 | U72: =519869.6 -> 0 | V72: =328175.83 -> 0 | W72: =324664.25 -> 0 | X72: =157093.12 -> 0 | Y72: =344482.31 -> 0 | Z72: =0 -> 0 | AA72: =0 -> 0 | AB72: =0 -> 0 | AC72: =0 -> 0 | AD72: =0 -> 0 | AE72: =0 -> 0 | AF72: =0 -> 0 | AG72: =0 -> 0 | AH72: =0 -> 0 | AI72: =0 -> 0 | AJ72: =0 -> 0 | AK72: =0 -> 0 | AL72: =0 -> 0 | AM72: =0 -> 0 | AN72: =0 -> 0 | AO72: =0 -> 0 | AP72: =0 -> 0 | AQ72: =0 -> 0 | AR72: =0 -> 0 | AS72: =0 -> 0 | AT72: =0 -> 0 | AU72: =0 -> 0 | AV72: =0 -> 0 | AW72: =0 -> 0 | AX72: =0 -> 0 | AY72: =0 -> 0 | AZ72: =0 -> 0 | BA72: =0 -> 0 | BB72: =0 -> 0 | BC72: =0 -> 0 | BD72: =155487.44 -> 0 | BE72: =337354.37 -> 0 | BF72: =330956.86 -> 0 | BG72: =328374.52 -> 0 | BH72: =328096.06 -> 0 | BI72: =165659.38 -> 0 | BJ72: =163992.6 -> 0 | BK72: =184377.06 -> 0 | BL72: =347443.78 -> 0 | BM72: =328613.38 -> 0 | BN72: =234508.5 -> 0 | BO72: =223349.52 -> 0 | BP72: =334833.69 -> 0 | BQ72: =325823.3 -> 0 | BR72: =336489.11 -> 0 | BS72: =331313.68 -> 0 | BT72: =325024.14 -> 0 | BU72: =321577.03 -> 0 | BV72: =341160.77 -> 0 | BW72: =0 -> 0 | BX72: =0 -> 0 | BY72: =0 -> 0 | BZ72: =0 -> 0 | CA72: =0 -> 0 | CB72: =0 -> 0 | CC72: =0 -> 0 | CD72: =0 -> 0 | CE72: =0 -> 0 | CF72: =0 -> 0 | CG72: =0 -> 0 | CH72: =0 -> 0 | CI72: =0 -> 0 | CJ72: =0 -> 0 | CK72: =0 -> 0 | CL72: =0 -> 0 | CM72: =0 -> 0 | CN72: =0 -> 0 | CO72: =0 -> 0 | CP72: =0 -> 0 | CQ72: =0 -> 0 | CR72: =0 -> 0 | CS72: =0 -> 0 | CT72: =0 -> 0 | CU72: =0 -> 0 | CV72: =0 -> 0 | CW72: =0 -> 0 | CX72: =0 -> 0 | CY72: =0 -> 0 | CZ72: =0 -> 0 | DA72: =0 -> 0
B73: 4.9 | C73: Projected Member Months | D73: =SUM(E73:XFD73) -> 15163 | E73: =0 -> 0 | F73: =0 -> 0 | G73: =3457 -> 0 | H73: =167 -> 0 | I73: =326 -> 0 | J73: =675 -> 0 | K73: =326 -> 0 | L73: =861 -> 0 | M73: =167 -> 0 | N73: =206 -> 0 | O73: =326 -> 0 | P73: =326 -> 0 | Q73: =193 -> 0 | R73: =505 -> 0 | S73: =326 -> 0 | T73: =326 -> 0 | U73: =499 -> 0 | V73: =326 -> 0 | W73: =326 -> 0 | X73: =167 -> 0 | Y73: =326 -> 0 | Z73: =0 -> 0 | AA73: =0 -> 0 | AB73: =0 -> 0 | AC73: =0 -> 0 | AD73: =0 -> 0 | AE73: =0 -> 0 | AF73: =0 -> 0 | AG73: =0 -> 0 | AH73: =0 -> 0 | AI73: =0 -> 0 | AJ73: =0 -> 0 | AK73: =0 -> 0 | AL73: =0 -> 0 | AM73: =0 -> 0 | AN73: =0 -> 0 | AO73: =0 -> 0 | AP73: =0 -> 0 | AQ73: =0 -> 0 | AR73: =0 -> 0 | AS73: =0 -> 0 | AT73: =0 -> 0 | AU73: =0 -> 0 | AV73: =0 -> 0 | AW73: =0 -> 0 | AX73: =0 -> 0 | AY73: =0 -> 0 | AZ73: =0 -> 0 | BA73: =0 -> 0 | BB73: =0 -> 0 | BC73: =0 -> 0 | BD73: =167 -> 0 | BE73: =326 -> 0 | BF73: =326 -> 0 | BG73: =326 -> 0 | BH73: =326 -> 0 | BI73: =167 -> 0 | BJ73: =167 -> 0 | BK73: =207 -> 0 | BL73: =326 -> 0 | BM73: =326 -> 0 | BN73: =193 -> 0 | BO73: =193 -> 0 | BP73: =326 -> 0 | BQ73: =326 -> 0 | BR73: =326 -> 0 | BS73: =326 -> 0 | BT73: =326 -> 0 | BU73: =326 -> 0 | BV73: =326 -> 0 | BW73: =0 -> 0 | BX73: =0 -> 0 | BY73: =0 -> 0 | BZ73: =0 -> 0 | CA73: =0 -> 0 | CB73: =0 -> 0 | CC73: =0 -> 0 | CD73: =0 -> 0 | CE73: =0 -> 0 | CF73: =0 -> 0 | CG73: =0 -> 0 | CH73: =0 -> 0 | CI73: =0 -> 0 | CJ73: =0 -> 0 | CK73: =0 -> 0 | CL73: =0 -> 0 | CM73: =0 -> 0 | CN73: =0 -> 0 | CO73: =0 -> 0 | CP73: =0 -> 0 | CQ73: =0 -> 0 | CR73: =0 -> 0 | CS73: =0 -> 0 | CT73: =0 -> 0 | CU73: =0 -> 0 | CV73: =0 -> 0 | CW73: =0 -> 0 | CX73: =0 -> 0 | CY73: =0 -> 0 | CZ73: =0 -> 0 | DA73: =0 -> 0
B74: 4.10 | C74: Loss Ratio | D74: =D70/(D71+D72) -> 0.8009776639 | E74: =E70/(E71+E72) -> 0 | F74: =F70/(F71+F72) -> 0 | G74: =G70/(G71+G72) -> 0 | H74: =H70/(H71+H72) -> 0 | I74: =I70/(I71+I72) -> 0 | J74: =J70/(J71+J72) -> 0 | K74: =K70/(K71+K72) -> 0 | L74: =L70/(L71+L72) -> 0 | M74: =M70/(M71+M72) -> 0 | N74: =N70/(N71+N72) -> 0 | O74: =O70/(O71+O72) -> 0 | P74: =P70/(P71+P72) -> 0 | Q74: =Q70/(Q71+Q72) -> 0 | R74: =R70/(R71+R72) -> 0 | S74: =S70/(S71+S72) -> 0 | T74: =T70/(T71+T72) -> 0 | U74: =U70/(U71+U72) -> 0 | V74: =V70/(V71+V72) -> 0 | W74: =W70/(W71+W72) -> 0 | X74: =X70/(X71+X72) -> 0 | Y74: =Y70/(Y71+Y72) -> 0 | Z74: =Z70/(Z71+Z72) -> 0 | AA74: =AA70/(AA71+AA72) -> 0 | AB74: =AB70/(AB71+AB72) -> 0 | AC74: =AC70/(AC71+AC72) -> 0 | AD74: =AD70/(AD71+AD72) -> 0 | AE74: =AE70/(AE71+AE72) -> 0 | AF74: =AF70/(AF71+AF72) -> 0 | AG74: =AG70/(AG71+AG72) -> 0 | AH74: =AH70/(AH71+AH72) -> 0 | AI74: =AI70/(AI71+AI72) -> 0 | AJ74: =AJ70/(AJ71+AJ72) -> 0 | AK74: =AK70/(AK71+AK72) -> 0 | AL74: =AL70/(AL71+AL72) -> 0 | AM74: =AM70/(AM71+AM72) -> 0 | AN74: =AN70/(AN71+AN72) -> 0 | AO74: =AO70/(AO71+AO72) -> 0 | AP74: =AP70/(AP71+AP72) -> 0 | AQ74: =AQ70/(AQ71+AQ72) -> 0 | AR74: =AR70/(AR71+AR72) -> 0 | AS74: =AS70/(AS71+AS72) -> 0 | AT74: =AT70/(AT71+AT72) -> 0 | AU74: =AU70/(AU71+AU72) -> 0 | AV74: =AV70/(AV71+AV72) -> 0 | AW74: =AW70/(AW71+AW72) -> 0 | AX74: =AX70/(AX71+AX72) -> 0 | AY74: =AY70/(AY71+AY72) -> 0 | AZ74: =AZ70/(AZ71+AZ72) -> 0 | BA74: =BA70/(BA71+BA72) -> 0 | BB74: =BB70/(BB71+BB72) -> 0 | BC74: =BC70/(BC71+BC72) -> 0 | BD74: =BD70/(BD71+BD72) -> 0 | BE74: =BE70/(BE71+BE72) -> 0 | BF74: =BF70/(BF71+BF72) -> 0 | BG74: =BG70/(BG71+BG72) -> 0 | BH74: =BH70/(BH71+BH72) -> 0 | BI74: =BI70/(BI71+BI72) -> 0 | BJ74: =BJ70/(BJ71+BJ72) -> 0 | BK74: =BK70/(BK71+BK72) -> 0 | BL74: =BL70/(BL71+BL72) -> 0 | BM74: =BM70/(BM71+BM72) -> 0 | BN74: =BN70/(BN71+BN72) -> 0 | BO74: =BO70/(BO71+BO72) -> 0 | BP74: =BP70/(BP71+BP72) -> 0 | BQ74: =BQ70/(BQ71+BQ72) -> 0 | BR74: =BR70/(BR71+BR72) -> 0 | BS74: =BS70/(BS71+BS72) -> 0 | BT74: =BT70/(BT71+BT72) -> 0 | BU74: =BU70/(BU71+BU72) -> 0 | BV74: =BV70/(BV71+BV72) -> 0 | BW74: =BW70/(BW71+BW72) -> 0 | BX74: =BX70/(BX71+BX72) -> 0 | BY74: =BY70/(BY71+BY72) -> 0 | BZ74: =BZ70/(BZ71+BZ72) -> 0 | CA74: =CA70/(CA71+CA72) -> 0 | CB74: =CB70/(CB71+CB72) -> 0 | CC74: =CC70/(CC71+CC72) -> 0 | CD74: =CD70/(CD71+CD72) -> 0 | CE74: =CE70/(CE71+CE72) -> 0 | CF74: =CF70/(CF71+CF72) -> 0 | CG74: =CG70/(CG71+CG72) -> 0 | CH74: =CH70/(CH71+CH72) -> 0 | CI74: =CI70/(CI71+CI72) -> 0 | CJ74: =CJ70/(CJ71+CJ72) -> 0 | CK74: =CK70/(CK71+CK72) -> 0 | CL74: =CL70/(CL71+CL72) -> 0 | CM74: =CM70/(CM71+CM72) -> 0 | CN74: =CN70/(CN71+CN72) -> 0 | CO74: =CO70/(CO71+CO72) -> 0 | CP74: =CP70/(CP71+CP72) -> 0 | CQ74: =CQ70/(CQ71+CQ72) -> 0 | CR74: =CR70/(CR71+CR72) -> 0 | CS74: =CS70/(CS71+CS72) -> 0 | CT74: =CT70/(CT71+CT72) -> 0 | CU74: =CU70/(CU71+CU72) -> 0 | CV74: =CV70/(CV71+CV72) -> 0 | CW74: =CW70/(CW71+CW72) -> 0 | CX74: =CX70/(CX71+CX72) -> 0 | CY74: =CY70/(CY71+CY72) -> 0 | CZ74: =CZ70/(CZ71+CZ72) -> 0 | DA74: =DA70/(DA71+DA72) -> 0
C75: Per Member Per Month
B76: 4.11 | C76: Allowed Claims | D76: =D66/D73 -> 878.9 | E76: =E66/E73 -> 0 | F76: =F66/F73 -> 0 | G76: =G66/G73 -> 0 | H76: =H66/H73 -> 0 | I76: =I66/I73 -> 0 | J76: =J66/J73 -> 0 | K76: =K66/K73 -> 0 | L76: =L66/L73 -> 0 | M76: =M66/M73 -> 0 | N76: =N66/N73 -> 0 | O76: =O66/O73 -> 0 | P76: =P66/P73 -> 0 | Q76: =Q66/Q73 -> 0 | R76: =R66/R73 -> 0 | S76: =S66/S73 -> 0 | T76: =T66/T73 -> 0 | U76: =U66/U73 -> 0 | V76: =V66/V73 -> 0 | W76: =W66/W73 -> 0 | X76: =X66/X73 -> 0 | Y76: =Y66/Y73 -> 0 | Z76: =Z66/Z73 -> 0 | AA76: =AA66/AA73 -> 0 | AB76: =AB66/AB73 -> 0 | AC76: =AC66/AC73 -> 0 | AD76: =AD66/AD73 -> 0 | AE76: =AE66/AE73 -> 0 | AF76: =AF66/AF73 -> 0 | AG76: =AG66/AG73 -> 0 | AH76: =AH66/AH73 -> 0 | AI76: =AI66/AI73 -> 0 | AJ76: =AJ66/AJ73 -> 0 | AK76: =AK66/AK73 -> 0 | AL76: =AL66/AL73 -> 0 | AM76: =AM66/AM73 -> 0 | AN76: =AN66/AN73 -> 0 | AO76: =AO66/AO73 -> 0 | AP76: =AP66/AP73 -> 0 | AQ76: =AQ66/AQ73 -> 0 | AR76: =AR66/AR73 -> 0 | AS76: =AS66/AS73 -> 0 | AT76: =AT66/AT73 -> 0 | AU76: =AU66/AU73 -> 0 | AV76: =AV66/AV73 -> 0 | AW76: =AW66/AW73 -> 0 | AX76: =AX66/AX73 -> 0 | AY76: =AY66/AY73 -> 0 | AZ76: =AZ66/AZ73 -> 0 | BA76: =BA66/BA73 -> 0 | BB76: =BB66/BB73 -> 0 | BC76: =BC66/BC73 -> 0 | BD76: =BD66/BD73 -> 0 | BE76: =BE66/BE73 -> 0 | BF76: =BF66/BF73 -> 0 | BG76: =BG66/BG73 -> 0 | BH76: =BH66/BH73 -> 0 | BI76: =BI66/BI73 -> 0 | BJ76: =BJ66/BJ73 -> 0 | BK76: =BK66/BK73 -> 0 | BL76: =BL66/BL73 -> 0 | BM76: =BM66/BM73 -> 0 | BN76: =BN66/BN73 -> 0 | BO76: =BO66/BO73 -> 0 | BP76: =BP66/BP73 -> 0 | BQ76: =BQ66/BQ73 -> 0 | BR76: =BR66/BR73 -> 0 | BS76: =BS66/BS73 -> 0 | BT76: =BT66/BT73 -> 0 | BU76: =BU66/BU73 -> 0 | BV76: =BV66/BV73 -> 0 | BW76: =BW66/BW73 -> 0 | BX76: =BX66/BX73 -> 0 | BY76: =BY66/BY73 -> 0 | BZ76: =BZ66/BZ73 -> 0 | CA76: =CA66/CA73 -> 0 | CB76: =CB66/CB73 -> 0 | CC76: =CC66/CC73 -> 0 | CD76: =CD66/CD73 -> 0 | CE76: =CE66/CE73 -> 0 | CF76: =CF66/CF73 -> 0 | CG76: =CG66/CG73 -> 0 | CH76: =CH66/CH73 -> 0 | CI76: =CI66/CI73 -> 0 | CJ76: =CJ66/CJ73 -> 0 | CK76: =CK66/CK73 -> 0 | CL76: =CL66/CL73 -> 0 | CM76: =CM66/CM73 -> 0 | CN76: =CN66/CN73 -> 0 | CO76: =CO66/CO73 -> 0 | CP76: =CP66/CP73 -> 0 | CQ76: =CQ66/CQ73 -> 0 | CR76: =CR66/CR73 -> 0 | CS76: =CS66/CS73 -> 0 | CT76: =CT66/CT73 -> 0 | CU76: =CU66/CU73 -> 0 | CV76: =CV66/CV73 -> 0 | CW76: =CW66/CW73 -> 0 | CX76: =CX66/CX73 -> 0 | CY76: =CY66/CY73 -> 0 | CZ76: =CZ66/CZ73 -> 0 | DA76: =DA66/DA73 -> 0
B77: 4.12 | C77: Reinsurance | D77: =D67/D73 -> 0 | E77: =E67/E73 -> 0 | F77: =F67/F73 -> 0 | G77: =G67/G73 -> 0 | H77: =H67/H73 -> 0 | I77: =I67/I73 -> 0 | J77: =J67/J73 -> 0 | K77: =K67/K73 -> 0 | L77: =L67/L73 -> 0 | M77: =M67/M73 -> 0 | N77: =N67/N73 -> 0 | O77: =O67/O73 -> 0 | P77: =P67/P73 -> 0 | Q77: =Q67/Q73 -> 0 | R77: =R67/R73 -> 0 | S77: =S67/S73 -> 0 | T77: =T67/T73 -> 0 | U77: =U67/U73 -> 0 | V77: =V67/V73 -> 0 | W77: =W67/W73 -> 0 | X77: =X67/X73 -> 0 | Y77: =Y67/Y73 -> 0 | Z77: =Z67/Z73 -> 0 | AA77: =AA67/AA73 -> 0 | AB77: =AB67/AB73 -> 0 | AC77: =AC67/AC73 -> 0 | AD77: =AD67/AD73 -> 0 | AE77: =AE67/AE73 -> 0 | AF77: =AF67/AF73 -> 0 | AG77: =AG67/AG73 -> 0 | AH77: =AH67/AH73 -> 0 | AI77: =AI67/AI73 -> 0 | AJ77: =AJ67/AJ73 -> 0 | AK77: =AK67/AK73 -> 0 | AL77: =AL67/AL73 -> 0 | AM77: =AM67/AM73 -> 0 | AN77: =AN67/AN73 -> 0 | AO77: =AO67/AO73 -> 0 | AP77: =AP67/AP73 -> 0 | AQ77: =AQ67/AQ73 -> 0 | AR77: =AR67/AR73 -> 0 | AS77: =AS67/AS73 -> 0 | AT77: =AT67/AT73 -> 0 | AU77: =AU67/AU73 -> 0 | AV77: =AV67/AV73 -> 0 | AW77: =AW67/AW73 -> 0 | AX77: =AX67/AX73 -> 0 | AY77: =AY67/AY73 -> 0 | AZ77: =AZ67/AZ73 -> 0 | BA77: =BA67/BA73 -> 0 | BB77: =BB67/BB73 -> 0 | BC77: =BC67/BC73 -> 0 | BD77: =BD67/BD73 -> 0 | BE77: =BE67/BE73 -> 0 | BF77: =BF67/BF73 -> 0 | BG77: =BG67/BG73 -> 0 | BH77: =BH67/BH73 -> 0 | BI77: =BI67/BI73 -> 0 | BJ77: =BJ67/BJ73 -> 0 | BK77: =BK67/BK73 -> 0 | BL77: =BL67/BL73 -> 0 | BM77: =BM67/BM73 -> 0 | BN77: =BN67/BN73 -> 0 | BO77: =BO67/BO73 -> 0 | BP77: =BP67/BP73 -> 0 | BQ77: =BQ67/BQ73 -> 0 | BR77: =BR67/BR73 -> 0 | BS77: =BS67/BS73 -> 0 | BT77: =BT67/BT73 -> 0 | BU77: =BU67/BU73 -> 0 | BV77: =BV67/BV73 -> 0 | BW77: =BW67/BW73 -> 0 | BX77: =BX67/BX73 -> 0 | BY77: =BY67/BY73 -> 0 | BZ77: =BZ67/BZ73 -> 0 | CA77: =CA67/CA73 -> 0 | CB77: =CB67/CB73 -> 0 | CC77: =CC67/CC73 -> 0 | CD77: =CD67/CD73 -> 0 | CE77: =CE67/CE73 -> 0 | CF77: =CF67/CF73 -> 0 | CG77: =CG67/CG73 -> 0 | CH77: =CH67/CH73 -> 0 | CI77: =CI67/CI73 -> 0 | CJ77: =CJ67/CJ73 -> 0 | CK77: =CK67/CK73 -> 0 | CL77: =CL67/CL73 -> 0 | CM77: =CM67/CM73 -> 0 | CN77: =CN67/CN73 -> 0 | CO77: =CO67/CO73 -> 0 | CP77: =CP67/CP73 -> 0 | CQ77: =CQ67/CQ73 -> 0 | CR77: =CR67/CR73 -> 0 | CS77: =CS67/CS73 -> 0 | CT77: =CT67/CT73 -> 0 | CU77: =CU67/CU73 -> 0 | CV77: =CV67/CV73 -> 0 | CW77: =CW67/CW73 -> 0 | CX77: =CX67/CX73 -> 0 | CY77: =CY67/CY73 -> 0 | CZ77: =CZ67/CZ73 -> 0 | DA77: =DA67/DA73 -> 0
B78: 4.13 | C78: Member Cost Sharing | D78: =D68/D73 -> 132.7139 | E78: =E68/E73 -> 0 | F78: =F68/F73 -> 0 | G78: =G68/G73 -> 0 | H78: =H68/H73 -> 0 | I78: =I68/I73 -> 0 | J78: =J68/J73 -> 0 | K78: =K68/K73 -> 0 | L78: =L68/L73 -> 0 | M78: =M68/M73 -> 0 | N78: =N68/N73 -> 0 | O78: =O68/O73 -> 0 | P78: =P68/P73 -> 0 | Q78: =Q68/Q73 -> 0 | R78: =R68/R73 -> 0 | S78: =S68/S73 -> 0 | T78: =T68/T73 -> 0 | U78: =U68/U73 -> 0 | V78: =V68/V73 -> 0 | W78: =W68/W73 -> 0 | X78: =X68/X73 -> 0 | Y78: =Y68/Y73 -> 0 | Z78: =Z68/Z73 -> 0 | AA78: =AA68/AA73 -> 0 | AB78: =AB68/AB73 -> 0 | AC78: =AC68/AC73 -> 0 | AD78: =AD68/AD73 -> 0 | AE78: =AE68/AE73 -> 0 | AF78: =AF68/AF73 -> 0 | AG78: =AG68/AG73 -> 0 | AH78: =AH68/AH73 -> 0 | AI78: =AI68/AI73 -> 0 | AJ78: =AJ68/AJ73 -> 0 | AK78: =AK68/AK73 -> 0 | AL78: =AL68/AL73 -> 0 | AM78: =AM68/AM73 -> 0 | AN78: =AN68/AN73 -> 0 | AO78: =AO68/AO73 -> 0 | AP78: =AP68/AP73 -> 0 | AQ78: =AQ68/AQ73 -> 0 | AR78: =AR68/AR73 -> 0 | AS78: =AS68/AS73 -> 0 | AT78: =AT68/AT73 -> 0 | AU78: =AU68/AU73 -> 0 | AV78: =AV68/AV73 -> 0 | AW78: =AW68/AW73 -> 0 | AX78: =AX68/AX73 -> 0 | AY78: =AY68/AY73 -> 0 | AZ78: =AZ68/AZ73 -> 0 | BA78: =BA68/BA73 -> 0 | BB78: =BB68/BB73 -> 0 | BC78: =BC68/BC73 -> 0 | BD78: =BD68/BD73 -> 0 | BE78: =BE68/BE73 -> 0 | BF78: =BF68/BF73 -> 0 | BG78: =BG68/BG73 -> 0 | BH78: =BH68/BH73 -> 0 | BI78: =BI68/BI73 -> 0 | BJ78: =BJ68/BJ73 -> 0 | BK78: =BK68/BK73 -> 0 | BL78: =BL68/BL73 -> 0 | BM78: =BM68/BM73 -> 0 | BN78: =BN68/BN73 -> 0 | BO78: =BO68/BO73 -> 0 | BP78: =BP68/BP73 -> 0 | BQ78: =BQ68/BQ73 -> 0 | BR78: =BR68/BR73 -> 0 | BS78: =BS68/BS73 -> 0 | BT78: =BT68/BT73 -> 0 | BU78: =BU68/BU73 -> 0 | BV78: =BV68/BV73 -> 0 | BW78: =BW68/BW73 -> 0 | BX78: =BX68/BX73 -> 0 | BY78: =BY68/BY73 -> 0 | BZ78: =BZ68/BZ73 -> 0 | CA78: =CA68/CA73 -> 0 | CB78: =CB68/CB73 -> 0 | CC78: =CC68/CC73 -> 0 | CD78: =CD68/CD73 -> 0 | CE78: =CE68/CE73 -> 0 | CF78: =CF68/CF73 -> 0 | CG78: =CG68/CG73 -> 0 | CH78: =CH68/CH73 -> 0 | CI78: =CI68/CI73 -> 0 | CJ78: =CJ68/CJ73 -> 0 | CK78: =CK68/CK73 -> 0 | CL78: =CL68/CL73 -> 0 | CM78: =CM68/CM73 -> 0 | CN78: =CN68/CN73 -> 0 | CO78: =CO68/CO73 -> 0 | CP78: =CP68/CP73 -> 0 | CQ78: =CQ68/CQ73 -> 0 | CR78: =CR68/CR73 -> 0 | CS78: =CS68/CS73 -> 0 | CT78: =CT68/CT73 -> 0 | CU78: =CU68/CU73 -> 0 | CV78: =CV68/CV73 -> 0 | CW78: =CW68/CW73 -> 0 | CX78: =CX68/CX73 -> 0 | CY78: =CY68/CY73 -> 0 | CZ78: =CZ68/CZ73 -> 0 | DA78: =DA68/DA73 -> 0
B79: 4.14 | C79: Cost Sharing Reduction | D79: =D69/D73 -> 0 | E79: =E69/E73 -> 0 | F79: =F69/F73 -> 0 | G79: =G69/G73 -> 0 | H79: =H69/H73 -> 0 | I79: =I69/I73 -> 0 | J79: =J69/J73 -> 0 | K79: =K69/K73 -> 0 | L79: =L69/L73 -> 0 | M79: =M69/M73 -> 0 | N79: =N69/N73 -> 0 | O79: =O69/O73 -> 0 | P79: =P69/P73 -> 0 | Q79: =Q69/Q73 -> 0 | R79: =R69/R73 -> 0 | S79: =S69/S73 -> 0 | T79: =T69/T73 -> 0 | U79: =U69/U73 -> 0 | V79: =V69/V73 -> 0 | W79: =W69/W73 -> 0 | X79: =X69/X73 -> 0 | Y79: =Y69/Y73 -> 0 | Z79: =Z69/Z73 -> 0 | AA79: =AA69/AA73 -> 0 | AB79: =AB69/AB73 -> 0 | AC79: =AC69/AC73 -> 0 | AD79: =AD69/AD73 -> 0 | AE79: =AE69/AE73 -> 0 | AF79: =AF69/AF73 -> 0 | AG79: =AG69/AG73 -> 0 | AH79: =AH69/AH73 -> 0 | AI79: =AI69/AI73 -> 0 | AJ79: =AJ69/AJ73 -> 0 | AK79: =AK69/AK73 -> 0 | AL79: =AL69/AL73 -> 0 | AM79: =AM69/AM73 -> 0 | AN79: =AN69/AN73 -> 0 | AO79: =AO69/AO73 -> 0 | AP79: =AP69/AP73 -> 0 | AQ79: =AQ69/AQ73 -> 0 | AR79: =AR69/AR73 -> 0 | AS79: =AS69/AS73 -> 0 | AT79: =AT69/AT73 -> 0 | AU79: =AU69/AU73 -> 0 | AV79: =AV69/AV73 -> 0 | AW79: =AW69/AW73 -> 0 | AX79: =AX69/AX73 -> 0 | AY79: =AY69/AY73 -> 0 | AZ79: =AZ69/AZ73 -> 0 | BA79: =BA69/BA73 -> 0 | BB79: =BB69/BB73 -> 0 | BC79: =BC69/BC73 -> 0 | BD79: =BD69/BD73 -> 0 | BE79: =BE69/BE73 -> 0 | BF79: =BF69/BF73 -> 0 | BG79: =BG69/BG73 -> 0 | BH79: =BH69/BH73 -> 0 | BI79: =BI69/BI73 -> 0 | BJ79: =BJ69/BJ73 -> 0 | BK79: =BK69/BK73 -> 0 | BL79: =BL69/BL73 -> 0 | BM79: =BM69/BM73 -> 0 | BN79: =BN69/BN73 -> 0 | BO79: =BO69/BO73 -> 0 | BP79: =BP69/BP73 -> 0 | BQ79: =BQ69/BQ73 -> 0 | BR79: =BR69/BR73 -> 0 | BS79: =BS69/BS73 -> 0 | BT79: =BT69/BT73 -> 0 | BU79: =BU69/BU73 -> 0 | BV79: =BV69/BV73 -> 0 | BW79: =BW69/BW73 -> 0 | BX79: =BX69/BX73 -> 0 | BY79: =BY69/BY73 -> 0 | BZ79: =BZ69/BZ73 -> 0 | CA79: =CA69/CA73 -> 0 | CB79: =CB69/CB73 -> 0 | CC79: =CC69/CC73 -> 0 | CD79: =CD69/CD73 -> 0 | CE79: =CE69/CE73 -> 0 | CF79: =CF69/CF73 -> 0 | CG79: =CG69/CG73 -> 0 | CH79: =CH69/CH73 -> 0 | CI79: =CI69/CI73 -> 0 | CJ79: =CJ69/CJ73 -> 0 | CK79: =CK69/CK73 -> 0 | CL79: =CL69/CL73 -> 0 | CM79: =CM69/CM73 -> 0 | CN79: =CN69/CN73 -> 0 | CO79: =CO69/CO73 -> 0 | CP79: =CP69/CP73 -> 0 | CQ79: =CQ69/CQ73 -> 0 | CR79: =CR69/CR73 -> 0 | CS79: =CS69/CS73 -> 0 | CT79: =CT69/CT73 -> 0 | CU79: =CU69/CU73 -> 0 | CV79: =CV69/CV73 -> 0 | CW79: =CW69/CW73 -> 0 | CX79: =CX69/CX73 -> 0 | CY79: =CY69/CY73 -> 0 | CZ79: =CZ69/CZ73 -> 0 | DA79: =DA69/DA73 -> 0
B80: 4.15 | C80: Incurred Claims | D80: =D70/D73 -> 746.1861 | E80: =E70/E73 -> 0 | F80: =F70/F73 -> 0 | G80: =G70/G73 -> 0 | H80: =H70/H73 -> 0 | I80: =I70/I73 -> 0 | J80: =J70/J73 -> 0 | K80: =K70/K73 -> 0 | L80: =L70/L73 -> 0 | M80: =M70/M73 -> 0 | N80: =N70/N73 -> 0 | O80: =O70/O73 -> 0 | P80: =P70/P73 -> 0 | Q80: =Q70/Q73 -> 0 | R80: =R70/R73 -> 0 | S80: =S70/S73 -> 0 | T80: =T70/T73 -> 0 | U80: =U70/U73 -> 0 | V80: =V70/V73 -> 0 | W80: =W70/W73 -> 0 | X80: =X70/X73 -> 0 | Y80: =Y70/Y73 -> 0 | Z80: =Z70/Z73 -> 0 | AA80: =AA70/AA73 -> 0 | AB80: =AB70/AB73 -> 0 | AC80: =AC70/AC73 -> 0 | AD80: =AD70/AD73 -> 0 | AE80: =AE70/AE73 -> 0 | AF80: =AF70/AF73 -> 0 | AG80: =AG70/AG73 -> 0 | AH80: =AH70/AH73 -> 0 | AI80: =AI70/AI73 -> 0 | AJ80: =AJ70/AJ73 -> 0 | AK80: =AK70/AK73 -> 0 | AL80: =AL70/AL73 -> 0 | AM80: =AM70/AM73 -> 0 | AN80: =AN70/AN73 -> 0 | AO80: =AO70/AO73 -> 0 | AP80: =AP70/AP73 -> 0 | AQ80: =AQ70/AQ73 -> 0 | AR80: =AR70/AR73 -> 0 | AS80: =AS70/AS73 -> 0 | AT80: =AT70/AT73 -> 0 | AU80: =AU70/AU73 -> 0 | AV80: =AV70/AV73 -> 0 | AW80: =AW70/AW73 -> 0 | AX80: =AX70/AX73 -> 0 | AY80: =AY70/AY73 -> 0 | AZ80: =AZ70/AZ73 -> 0 | BA80: =BA70/BA73 -> 0 | BB80: =BB70/BB73 -> 0 | BC80: =BC70/BC73 -> 0 | BD80: =BD70/BD73 -> 0 | BE80: =BE70/BE73 -> 0 | BF80: =BF70/BF73 -> 0 | BG80: =BG70/BG73 -> 0 | BH80: =BH70/BH73 -> 0 | BI80: =BI70/BI73 -> 0 | BJ80: =BJ70/BJ73 -> 0 | BK80: =BK70/BK73 -> 0 | BL80: =BL70/BL73 -> 0 | BM80: =BM70/BM73 -> 0 | BN80: =BN70/BN73 -> 0 | BO80: =BO70/BO73 -> 0 | BP80: =BP70/BP73 -> 0 | BQ80: =BQ70/BQ73 -> 0 | BR80: =BR70/BR73 -> 0 | BS80: =BS70/BS73 -> 0 | BT80: =BT70/BT73 -> 0 | BU80: =BU70/BU73 -> 0 | BV80: =BV70/BV73 -> 0 | BW80: =BW70/BW73 -> 0 | BX80: =BX70/BX73 -> 0 | BY80: =BY70/BY73 -> 0 | BZ80: =BZ70/BZ73 -> 0 | CA80: =CA70/CA73 -> 0 | CB80: =CB70/CB73 -> 0 | CC80: =CC70/CC73 -> 0 | CD80: =CD70/CD73 -> 0 | CE80: =CE70/CE73 -> 0 | CF80: =CF70/CF73 -> 0 | CG80: =CG70/CG73 -> 0 | CH80: =CH70/CH73 -> 0 | CI80: =CI70/CI73 -> 0 | CJ80: =CJ70/CJ73 -> 0 | CK80: =CK70/CK73 -> 0 | CL80: =CL70/CL73 -> 0 | CM80: =CM70/CM73 -> 0 | CN80: =CN70/CN73 -> 0 | CO80: =CO70/CO73 -> 0 | CP80: =CP70/CP73 -> 0 | CQ80: =CQ70/CQ73 -> 0 | CR80: =CR70/CR73 -> 0 | CS80: =CS70/CS73 -> 0 | CT80: =CT70/CT73 -> 0 | CU80: =CU70/CU73 -> 0 | CV80: =CV70/CV73 -> 0 | CW80: =CW70/CW73 -> 0 | CX80: =CX70/CX73 -> 0 | CY80: =CY70/CY73 -> 0 | CZ80: =CZ70/CZ73 -> 0 | DA80: =DA70/DA73 -> 0
B81: 4.16 | C81: Risk Adjustment Transfer Amount | D81: =D71/D73 -> -101.21 | E81: =E71/E73 -> 0 | F81: =F71/F73 -> 0 | G81: =G71/G73 -> 0 | H81: =H71/H73 -> 0 | I81: =I71/I73 -> 0 | J81: =J71/J73 -> 0 | K81: =K71/K73 -> 0 | L81: =L71/L73 -> 0 | M81: =M71/M73 -> 0 | N81: =N71/N73 -> 0 | O81: =O71/O73 -> 0 | P81: =P71/P73 -> 0 | Q81: =Q71/Q73 -> 0 | R81: =R71/R73 -> 0 | S81: =S71/S73 -> 0 | T81: =T71/T73 -> 0 | U81: =U71/U73 -> 0 | V81: =V71/V73 -> 0 | W81: =W71/W73 -> 0 | X81: =X71/X73 -> 0 | Y81: =Y71/Y73 -> 0 | Z81: =Z71/Z73 -> 0 | AA81: =AA71/AA73 -> 0 | AB81: =AB71/AB73 -> 0 | AC81: =AC71/AC73 -> 0 | AD81: =AD71/AD73 -> 0 | AE81: =AE71/AE73 -> 0 | AF81: =AF71/AF73 -> 0 | AG81: =AG71/AG73 -> 0 | AH81: =AH71/AH73 -> 0 | AI81: =AI71/AI73 -> 0 | AJ81: =AJ71/AJ73 -> 0 | AK81: =AK71/AK73 -> 0 | AL81: =AL71/AL73 -> 0 | AM81: =AM71/AM73 -> 0 | AN81: =AN71/AN73 -> 0 | AO81: =AO71/AO73 -> 0 | AP81: =AP71/AP73 -> 0 | AQ81: =AQ71/AQ73 -> 0 | AR81: =AR71/AR73 -> 0 | AS81: =AS71/AS73 -> 0 | AT81: =AT71/AT73 -> 0 | AU81: =AU71/AU73 -> 0 | AV81: =AV71/AV73 -> 0 | AW81: =AW71/AW73 -> 0 | AX81: =AX71/AX73 -> 0 | AY81: =AY71/AY73 -> 0 | AZ81: =AZ71/AZ73 -> 0 | BA81: =BA71/BA73 -> 0 | BB81: =BB71/BB73 -> 0 | BC81: =BC71/BC73 -> 0 | BD81: =BD71/BD73 -> 0 | BE81: =BE71/BE73 -> 0 | BF81: =BF71/BF73 -> 0 | BG81: =BG71/BG73 -> 0 | BH81: =BH71/BH73 -> 0 | BI81: =BI71/BI73 -> 0 | BJ81: =BJ71/BJ73 -> 0 | BK81: =BK71/BK73 -> 0 | BL81: =BL71/BL73 -> 0 | BM81: =BM71/BM73 -> 0 | BN81: =BN71/BN73 -> 0 | BO81: =BO71/BO73 -> 0 | BP81: =BP71/BP73 -> 0 | BQ81: =BQ71/BQ73 -> 0 | BR81: =BR71/BR73 -> 0 | BS81: =BS71/BS73 -> 0 | BT81: =BT71/BT73 -> 0 | BU81: =BU71/BU73 -> 0 | BV81: =BV71/BV73 -> 0 | BW81: =BW71/BW73 -> 0 | BX81: =BX71/BX73 -> 0 | BY81: =BY71/BY73 -> 0 | BZ81: =BZ71/BZ73 -> 0 | CA81: =CA71/CA73 -> 0 | CB81: =CB71/CB73 -> 0 | CC81: =CC71/CC73 -> 0 | CD81: =CD71/CD73 -> 0 | CE81: =CE71/CE73 -> 0 | CF81: =CF71/CF73 -> 0 | CG81: =CG71/CG73 -> 0 | CH81: =CH71/CH73 -> 0 | CI81: =CI71/CI73 -> 0 | CJ81: =CJ71/CJ73 -> 0 | CK81: =CK71/CK73 -> 0 | CL81: =CL71/CL73 -> 0 | CM81: =CM71/CM73 -> 0 | CN81: =CN71/CN73 -> 0 | CO81: =CO71/CO73 -> 0 | CP81: =CP71/CP73 -> 0 | CQ81: =CQ71/CQ73 -> 0 | CR81: =CR71/CR73 -> 0 | CS81: =CS71/CS73 -> 0 | CT81: =CT71/CT73 -> 0 | CU81: =CU71/CU73 -> 0 | CV81: =CV71/CV73 -> 0 | CW81: =CW71/CW73 -> 0 | CX81: =CX71/CX73 -> 0 | CY81: =CY71/CY73 -> 0 | CZ81: =CZ71/CZ73 -> 0 | DA81: =DA71/DA73 -> 0
B82: 4.17 | C82: Premium | D82: =D72/D73 -> 1032.8041 | E82: =E72/E73 -> 0 | F82: =F72/F73 -> 0 | G82: =G72/G73 -> 0 | H82: =H72/H73 -> 0 | I82: =I72/I73 -> 0 | J82: =J72/J73 -> 0 | K82: =K72/K73 -> 0 | L82: =L72/L73 -> 0 | M82: =M72/M73 -> 0 | N82: =N72/N73 -> 0 | O82: =O72/O73 -> 0 | P82: =P72/P73 -> 0 | Q82: =Q72/Q73 -> 0 | R82: =R72/R73 -> 0 | S82: =S72/S73 -> 0 | T82: =T72/T73 -> 0 | U82: =U72/U73 -> 0 | V82: =V72/V73 -> 0 | W82: =W72/W73 -> 0 | X82: =X72/X73 -> 0 | Y82: =Y72/Y73 -> 0 | Z82: =Z72/Z73 -> 0 | AA82: =AA72/AA73 -> 0 | AB82: =AB72/AB73 -> 0 | AC82: =AC72/AC73 -> 0 | AD82: =AD72/AD73 -> 0 | AE82: =AE72/AE73 -> 0 | AF82: =AF72/AF73 -> 0 | AG82: =AG72/AG73 -> 0 | AH82: =AH72/AH73 -> 0 | AI82: =AI72/AI73 -> 0 | AJ82: =AJ72/AJ73 -> 0 | AK82: =AK72/AK73 -> 0 | AL82: =AL72/AL73 -> 0 | AM82: =AM72/AM73 -> 0 | AN82: =AN72/AN73 -> 0 | AO82: =AO72/AO73 -> 0 | AP82: =AP72/AP73 -> 0 | AQ82: =AQ72/AQ73 -> 0 | AR82: =AR72/AR73 -> 0 | AS82: =AS72/AS73 -> 0 | AT82: =AT72/AT73 -> 0 | AU82: =AU72/AU73 -> 0 | AV82: =AV72/AV73 -> 0 | AW82: =AW72/AW73 -> 0 | AX82: =AX72/AX73 -> 0 | AY82: =AY72/AY73 -> 0 | AZ82: =AZ72/AZ73 -> 0 | BA82: =BA72/BA73 -> 0 | BB82: =BB72/BB73 -> 0 | BC82: =BC72/BC73 -> 0 | BD82: =BD72/BD73 -> 0 | BE82: =BE72/BE73 -> 0 | BF82: =BF72/BF73 -> 0 | BG82: =BG72/BG73 -> 0 | BH82: =BH72/BH73 -> 0 | BI82: =BI72/BI73 -> 0 | BJ82: =BJ72/BJ73 -> 0 | BK82: =BK72/BK73 -> 0 | BL82: =BL72/BL73 -> 0 | BM82: =BM72/BM73 -> 0 | BN82: =BN72/BN73 -> 0 | BO82: =BO72/BO73 -> 0 | BP82: =BP72/BP73 -> 0 | BQ82: =BQ72/BQ73 -> 0 | BR82: =BR72/BR73 -> 0 | BS82: =BS72/BS73 -> 0 | BT82: =BT72/BT73 -> 0 | BU82: =BU72/BU73 -> 0 | BV82: =BV72/BV73 -> 0 | BW82: =BW72/BW73 -> 0 | BX82: =BX72/BX73 -> 0 | BY82: =BY72/BY73 -> 0 | BZ82: =BZ72/BZ73 -> 0 | CA82: =CA72/CA73 -> 0 | CB82: =CB72/CB73 -> 0 | CC82: =CC72/CC73 -> 0 | CD82: =CD72/CD73 -> 0 | CE82: =CE72/CE73 -> 0 | CF82: =CF72/CF73 -> 0 | CG82: =CG72/CG73 -> 0 | CH82: =CH72/CH73 -> 0 | CI82: =CI72/CI73 -> 0 | CJ82: =CJ72/CJ73 -> 0 | CK82: =CK72/CK73 -> 0 | CL82: =CL72/CL73 -> 0 | CM82: =CM72/CM73 -> 0 | CN82: =CN72/CN73 -> 0 | CO82: =CO72/CO73 -> 0 | CP82: =CP72/CP73 -> 0 | CQ82: =CQ72/CQ73 -> 0 | CR82: =CR72/CR73 -> 0 | CS82: =CS72/CS73 -> 0 | CT82: =CT72/CT73 -> 0 | CU82: =CU72/CU73 -> 0 | CV82: =CV72/CV73 -> 0 | CW82: =CW72/CW73 -> 0 | CX82: =CX72/CX73 -> 0 | CY82: =CY72/CY73 -> 0 | CZ82: =CZ72/CZ73 -> 0 | DA82: =DA72/DA73 -> 0

Sheet Wksh 3 - Rating Areas
A1: Rating Area Data Collection [assistive technology users, please reference cell A2 for instructions] | C1: Specify the total number of Rating Areas in your State by selecting the Create Rating Areas button or Ctrl + Shift + R.
A2: Press TAB and directional arrow keys to read through the document. If macros are disabled, press and hold the ALT key and press the F, then I, and then N key. After that, select the Enable All Content option by pressing enter. (note that you can also press the C key to select "Enable All Content") Instructions can be found in cells C1 through C4. If screen reader fails to announce a cell after performing a dropdown selection, please press F2 and then ESC to force the screen reader to resume. | C2: Select only the Rating Areas you are offering plans within and add a factor for each area.
C3: To validate, select the Validate button or Ctrl + Shift + I.
C4: To finalize, select the Finalize button or Ctrl + Shift + F.
A5: Rating Area | B5: Rating Factor
A6: Rating Area 1 | B6: 0.76
A7: Rating Area 2 | B7: 0.7215
A8: Rating Area 3 | B8: 0.678
A9: Rating Area 4 | B9: 0.7219132605
A10: Rating Area 5 | B10: 0.707
A11: Rating Area 6 | B11: 0.778
A12: Rating Area 7 | B12: 0.8156
A13: Rating Area 8 | B13: 0.808

Sheet PlanTemplate (hidden)
A1: REBUILD | C1: Product-Plan Data Collection
C3: Company Legal Name: | D3: =IF('Wksh 1 - Market Experience'!C3<>"", 'Wksh 1 - Market Experience'!C3,"") ->  | N3: State: | O3: =IF('Wksh 1 - Market Experience'!E4="","",'Wksh 1 - Market Experience'!E4) -> 
C4: HIOS Issuer ID: | D4: =IF('Wksh 1 - Market Experience'!C4<>"", 'Wksh 1 - Market Experience'!C4,"") ->  | N4: Market: | O4: =IF('Wksh 1 - Market Experience'!E5="","",'Wksh 1 - Market Experience'!E5) -> 
C5: Effective Date of Rate Change(s): | D5: =IF('Wksh 1 - Market Experience'!#REF!<>"", 'Wksh 1 - Market Experience'!#REF!,"") -> 
C7: Product/Plan Level Calculations
B9: Field # | C9: Section I: General Product and Plan Information
B10: 1.1 | C10: Product Name | K10: Rating Area 1 | L10: AL | M10: New | N10: Platinum | O10: Yes
B11: 1.2 | C11: Product ID | K11: Rating Area 2 | L11: AK | M11: Renewing | N11: Gold | O11: No
B12: 1.3 | C12: Plan Name | K12: Rating Area 3 | L12: AZ | M12: Terminated | N12: Silver
B13: 1.4 | C13: Plan ID (Standard Component ID) | K13: Rating Area 4 | L13: AR | N13: Bronze
B14: 1.5 | C14: Metal | K14: Rating Area 5 | L14: CA | N14: Catastrophic
B15: 1.6 | C15: AV Metal Value | K15: Rating Area 6 | L15: CO | N15: Not Applicable
B16: 1.7 | C16: Plan Category | K16: Rating Area 7 | L16: CT
B17: 1.8 | C17: Plan Type | K17: Rating Area 8 | L17: DC
B18: 1.9 | C18: Exchange Plan? | L18: DE
B19: 1.10 | C19: Effective Date of Proposed Rates | L19: FL
B20: 1.11 | C20: Cumulative Rate Change % (over 12 mos prior) | L20: GA
B21: 1.12 | C21: Product Rate Increase % | L21: HI
B22: 1.13 | C22: Submission Level Rate Increase % | L22: ID
L23: IL
C24: Section II: Experience Period and Current Plan Level Information | L24: IN
B25: 2.1 | C25: Plan ID (Standard Component ID) | D25: Total | E25: =IF(E13<>"",E13,"") ->  | L25: IA
B26: 2.2 | C26: Allowed Claims | D26: =SUM(E26:XFD26) -> 0 | L26: KS
B27: 2.3 | C27: Reinsurance | D27: =SUM(E27:XFD27) -> 0 | L27: KY
B28: 2.4 | C28: Member Cost Sharing | D28: =SUM(E28:XFD28) -> 0 | L28: LA
B29: 2.5 | C29: Cost Sharing Reduction | D29: =SUM(E29:XFD29) -> 0 | L29: ME
B30: 2.6 | C30: Incurred Claims | D30: =D26-D27-D28-D29 -> 0 | E30: =E26-E27-E28-E29 -> 0 | L30: MD
B31: 2.7 | C31: Risk Adjustment Transfer Amount | D31: =SUM(E31:XFD31) -> 0 | L31: MA
B32: 2.8 | C32: Premium | D32: =SUM(E32:XFD32) -> 0 | L32: MI
B33: 2.9 | C33: Experience Period Member Months | D33: =SUM(E33:XFD33) -> 0 | L33: MN
B34: 2.10 | C34: Current Enrollment | D34: =SUM(E34:XFD34) -> 0 | L34: MS
B35: 2.11 | C35: Current Premium PMPM | D35: =SUMPRODUCT(E35:XFD35,E34:XFD34)/D34 ->  | L35: MO
B36: 2.12 | C36: Loss Ratio | D36: =D30/(D31+D32) ->  | E36: =E30/(E31+E32) ->  | L36: MT
C37: Per Member Per Month | L37: NE
B38: 2.13 | C38: Allowed Claims | D38: =D26/D33 ->  | E38: =E26/E33 ->  | L38: NV
B39: 2.14 | C39: Reinsurance | D39: =D27/D33 ->  | E39: =E27/E33 ->  | L39: NH
B40: 2.15 | C40: Member Cost Sharing | D40: =D28/D33 ->  | E40: =E28/E33 ->  | L40: NJ
B41: 2.16 | C41: Cost Sharing Reduction | D41: =D29/D33 ->  | E41: =E29/E33 ->  | L41: NM
B42: 2.17 | C42: Incurred Claims | D42: =D30/D33 ->  | E42: =E30/E33 ->  | L42: NY
B43: 2.18 | C43: Risk Adjustment Transfer Amount | D43: =D31/D33 ->  | E43: =E31/E33 ->  | L43: NC
B44: 2.19 | C44: Premium | D44: =D32/D33 ->  | E44: =E32/E33 ->  | L44: ND
L45: OH
C46: Section III: Plan Adjustment Factors | L46: OK
B47: 3.1 | C47: Plan ID (Standard Component ID) | E47: =IF(E13<>"",E13,"") ->  | L47: OR
B48: 3.2 | C48: Market Adjusted Index Rate | E48: ='Wksh 1 - Market Experience'!F46 -> 0 | L48: PA
B49: 3.3 | C49: AV and Cost Sharing Design of Plan | L49: RI
B50: 3.4 | C50: Provider Network Adjustment | L50: SC
B51: 3.5 | C51: Benefits in Addition to EHB | L51: SD
C52: Administrative Costs | L52: TN
B53: 3.6 | C53: Administrative Expense | L53: TX
B54: 3.7 | C54: Taxes and Fees | L54: UT
B55: 3.8 | C55: Profit & Risk Load | L55: VT
B56: 3.9 | C56: Catastrophic Adjustment | L56: VA
B57: 3.10 | C57: Plan Adjusted Index Rate | E57: =($E$48*PRODUCT(E49:E51)*E56)/(1-SUM(E53:E55)) -> 0 | L57: WA
L58: WV
B59: 3.11 | C59: Age Calibration Factor | E59: =IF(D59<>"", D59, "") ->  | L59: WI
B60: 3.12 | C60: Geographic Calibration Factor | E60: =IF(D60<>"", D60, "") ->  | L60: WY
B61: 3.13 | C61: Tobacco Calibration Factor | E61: =IF(D61<>"", D61, "") -> 
B62: 3.14 | C62: Calibrated Plan Adjusted Index Rate | E62: =E57*(PRODUCT($E$59:$E$61)) -> 0
C64: Section IV: Projected Plan Level Information
B65: 4.1 | C65: Plan ID (Standard Component ID) | D65: Total | E65: =IF(E13<>"",E13,"") -> 
B66: 4.2 | C66: Allowed Claims | D66: =SUM(E66:XFD66) -> 0
B67: 4.3 | C67: Reinsurance | D67: =SUM(E67:XFD67) -> 0
B68: 4.4 | C68: Member Cost Sharing | D68: =SUM(E68:XFD68) -> 0
B69: 4.5 | C69: Cost Sharing Reduction | D69: =SUM(E69:XFD69) -> 0
B70: 4.6 | C70: Incurred Claims | D70: =D66-D67-D68-D69 -> 0 | E70: =E66-E67-E68-E69 -> 0
B71: 4.7 | C71: Risk Adjustment Transfer Amount | D71: =SUM(E71:XFD71) -> 0
B72: 4.8 | C72: Premium | D72: =SUM(E72:XFD72) -> 0
B73: 4.9 | C73: Projected Member Months | D73: =SUM(E73:XFD73) -> 0
B74: 4.10 | C74: Loss Ratio | D74: =D70/(D71+D72) ->  | E74: =E70/(E71+E72) -> 
C75: Per Member Per Month
B76: 4.11 | C76: Allowed Claims | D76: =D66/D73 ->  | E76: =E66/E73 -> 
B77: 4.12 | C77: Reinsurance | D77: =D67/D73 ->  | E77: =E67/E73 -> 
B78: 4.13 | C78: Member Cost Sharing | D78: =D68/D73 ->  | E78: =E68/E73 -> 
B79: 4.14 | C79: Cost Sharing Reduction | D79: =D69/D73 ->  | E79: =E69/E73 -> 
B80: 4.15 | C80: Incurred Claims | D80: =D70/D73 ->  | E80: =E70/E73 -> 
B81: 4.16 | C81: Risk Adjustment Transfer Amount | D81: =D71/D73 ->  | E81: =E71/E73 -> 
B82: 4.17 | C82: Premium | D82: =D72/D73 ->  | E82: =E72/E73 -> 
